Ref No,Fund Type,Dept,Cost Centre Description    ,Description    ,Creditor Name    ,GL Code Net Amount,Payment date        
2,Revenue,CAHD,Bed Purchasing - North,Permanent Nursing,.,3294.28, 24-Oct-2017
3,Revenue,CAHD,South Glos Users in South Glos Homes,Permanent Nursing,.,620.20, 24-Oct-2017
4,Revenue,CAHD,Bed Purchasing - North,Permanent Nursing,.,4659.80, 24-Oct-2017
5,Revenue,CAHD,South Glos Users in South Glos Homes,Permanent Nursing,.,620.20, 24-Oct-2017
6,Revenue,CAHD,Bed Purchasing - South,Permanent Nursing,.,3349.56, 24-Oct-2017
7,Revenue,CAHD,South Glos Users in South Glos Homes,Permanent Nursing,.,620.20, 24-Oct-2017
8,Revenue,CAHD,Bed Purchasing - North,Permanent Nursing,.,3294.28, 24-Oct-2017
9,Revenue,CAHD,South Glos Users in South Glos Homes,Permanent Nursing,.,620.20, 24-Oct-2017
10,Revenue,CAHD,South Glos Users in South Glos Homes,Permanent Nursing,.,620.20, 24-Oct-2017
11,Revenue,CAHD,South Glos Users in South Glos Homes,Permanent Nursing,.,620.20, 24-Oct-2017
12,Revenue,CAHD,Bed Purchasing - South,Permanent Nursing,.,3294.28, 24-Oct-2017
13,Revenue,CAHD,South Glos Users in South Glos Homes,Permanent Nursing,.,620.20, 24-Oct-2017
14,Revenue,CAHD,Bed Purchasing - Southmead Hospital,Permanent Nursing,.,4800.00, 24-Oct-2017
15,Revenue,CAHD,South Glos Users in South Glos Homes,Permanent Nursing,.,620.20, 24-Oct-2017
16,Revenue,CAHD,South Glos Users in South Glos Homes,Permanent Nursing,.,620.20, 24-Oct-2017
17,Revenue,CAHD,Bed Purchasing - North,Permanent Residential,.,4254.60, 24-Oct-2017
18,Revenue,CAHD,South Glos Users in South Glos Homes,Permanent Nursing,.,620.20, 24-Oct-2017
19,Revenue,CAHD,Bed Purchasing - South,Permanent Nursing,.,3621.48, 24-Oct-2017
20,Revenue,CAHD,South Glos Users in South Glos Homes,Permanent Nursing,.,620.20, 24-Oct-2017
21,Revenue,CAHD,Bed Purchasing - North,Permanent Nursing,.,5039.68, 24-Oct-2017
22,Revenue,CAHD,South Glos Users in South Glos Homes,Permanent Nursing,.,620.20, 24-Oct-2017
23,Revenue,CAHD,Bed Purchasing - Southmead Hospital,Permanent Nursing,.,3824.08, 24-Oct-2017
24,Revenue,CAHD,South Glos Users in South Glos Homes,Permanent Nursing,.,620.20, 24-Oct-2017
25,Revenue,CAHD,South Glos Users in South Glos Homes,Permanent Nursing,.,620.20, 24-Oct-2017
26,Revenue,CAHD,South Glos Users in South Glos Homes,Permanent Nursing,.,620.20, 24-Oct-2017
27,Revenue,CAHD,South Glos Users in South Glos Homes,Permanent Nursing,.,620.20, 24-Oct-2017
28,Revenue,CAHD,South Glos Users in South Glos Homes,Permanent Nursing,.,620.20, 24-Oct-2017
29,Revenue,CAHD,South Glos Users in South Glos Homes,Permanent Nursing,.,620.20, 24-Oct-2017
30,Revenue,CAHD,Bed Purchasing - North,Permanent Nursing,.,4228.56, 24-Oct-2017
31,Revenue,CAHD,South Glos Users in South Glos Homes,Permanent Nursing,.,620.20, 24-Oct-2017
32,Revenue,CAHD,South Glos Users in South Glos Homes,Permanent Nursing,.,620.20, 24-Oct-2017
33,Revenue,CAHD,South Glos Users in South Glos Homes,Permanent Nursing,.,620.20, 24-Oct-2017
34,Revenue,CAHD,South Glos Users in South Glos Homes,Permanent Nursing,.,620.20, 24-Oct-2017
35,Revenue,CAHD,South Glos Users in South Glos Homes,Permanent Nursing,.,620.20, 24-Oct-2017
36,Revenue,CAHD,South Glos Users in South Glos Homes,Permanent Nursing,.,620.20, 24-Oct-2017
37,Revenue,CAHD,South Glos Users in South Glos Homes,Permanent Nursing,.,620.20, 24-Oct-2017
38,Revenue,CAHD,South Glos Users in South Glos Homes,Permanent Nursing,.,620.20, 24-Oct-2017
39,Revenue,CAHD,South Glos Users in South Glos Homes,Permanent Nursing,.,620.20, 24-Oct-2017
40,Revenue,CAHD,South Glos Users in South Glos Homes,Permanent Nursing,.,620.20, 24-Oct-2017
41,Revenue,CAHD,South Glos Users in South Glos Homes,Permanent Nursing,.,620.20, 24-Oct-2017
42,Revenue,CAHD,South Glos Users in South Glos Homes,Permanent Nursing,.,620.20, 24-Oct-2017
43,Revenue,CAHD,South Glos Users in South Glos Homes,Permanent Nursing,.,620.20, 24-Oct-2017
44,Revenue,CAHD,South Glos Users in South Glos Homes,Permanent Nursing,.,620.20, 24-Oct-2017
45,Revenue,CAHD,South Glos Users in South Glos Homes,Permanent Nursing,.,620.20, 24-Oct-2017
46,Revenue,CAHD,South Glos Users in South Glos Homes,Permanent Nursing,.,620.20, 24-Oct-2017
47,Revenue,CAHD,Bed Purchasing - North,Permanent Nursing,.,4179.80, 24-Oct-2017
48,Revenue,CAHD,South Glos Users in South Glos Homes,Permanent Nursing,.,620.20, 24-Oct-2017
49,Revenue,CAHD,South Glos Users in South Glos Homes,Permanent Nursing,.,620.20, 24-Oct-2017
50,Revenue,CAHD,South Glos Users in South Glos Homes,Permanent Nursing,.,620.20, 24-Oct-2017
51,Revenue,CAHD,South Glos Users in South Glos Homes,Permanent Nursing,.,620.20, 24-Oct-2017
52,Revenue,CAHD,South Glos Users in South Glos Homes,Permanent Nursing,.,620.20, 24-Oct-2017
53,Revenue,CAHD,South Glos Users in South Glos Homes,Permanent Nursing,.,620.20, 24-Oct-2017
54,Revenue,CAHD,South Glos Users in South Glos Homes,Permanent Nursing,.,620.20, 24-Oct-2017
55,Revenue,CAHD,South Glos Users in South Glos Homes,Permanent Nursing,.,620.20, 24-Oct-2017
56,Revenue,CAHD,Bed Purchasing - Southmead Hospital,Respite Planned - Nursing,.,7228.57, 24-Oct-2017
57,Revenue,CAHD,Bed Purchasing - Southmead Hospital,Respite Planned - Nursing,.,1571.43, 24-Oct-2017
58,Revenue,CAHD,South Glos Users in South Glos Homes,Permanent Nursing,.,1018.90, 24-Oct-2017
59,Revenue,CAHD,South Glos Users in South Glos Homes,Permanent Nursing,.,620.20, 24-Oct-2017
60,Revenue,CAHD,South Glos Users in South Glos Homes,Permanent Nursing,.,620.20, 24-Oct-2017
61,Revenue,CAHD,South Glos Users in South Glos Homes,Permanent Nursing,.,996.75, 24-Oct-2017
62,Revenue,CAHD,South Glos Users in South Glos Homes,Permanent Nursing,.,620.20, 24-Oct-2017
63,Revenue,CAHD,Bed Purchasing - Southmead Hospital,Permanent Residential,.,4400.00, 24-Oct-2017
64,Revenue,CAHD,South Glos Users in South Glos Homes,Permanent Nursing,.,620.20, 24-Oct-2017
65,Revenue,CAHD,South Glos Users in South Glos Homes,Permanent Nursing,.,620.20, 24-Oct-2017
66,Revenue,CAHD,Bed Purchasing - North,Permanent Nursing,.,3114.96, 24-Oct-2017
67,Revenue,CAHD,South Glos Users in South Glos Homes,Permanent Nursing,.,620.20, 24-Oct-2017
68,Revenue,CAHD,Bed Purchasing - South,Permanent Nursing,.,3779.80, 24-Oct-2017
69,Revenue,CAHD,South Glos Users in South Glos Homes,Permanent Nursing,.,620.20, 24-Oct-2017
70,Revenue,CAHD,South Glos Users in South Glos Homes,Permanent Nursing,.,620.20, 24-Oct-2017
71,Revenue,CAHD,Bed Purchasing - North,Permanent Nursing,.,3294.28, 24-Oct-2017
72,Revenue,CAHD,South Glos Users in South Glos Homes,Permanent Nursing,.,620.20, 24-Oct-2017
73,Revenue,CAHD,South Glos Users in South Glos Homes,Permanent Nursing,.,686.65, 24-Oct-2017
74,Revenue,CAHD,South Glos Users in South Glos Homes,Permanent Nursing,.,620.20, 24-Oct-2017
75,Revenue,CAHD,Bed Purchasing - North,Permanent Nursing,.,4400.00, 24-Oct-2017
76,Revenue,CAHD,South Glos Users in South Glos Homes,Permanent Nursing,.,620.20, 24-Oct-2017
77,Revenue,CAHD,South Glos Users in South Glos Homes,Permanent Nursing,.,620.20, 24-Oct-2017
78,Revenue,CAHD,Bed Purchasing - Southmead Hospital,Permanent Nursing,.,3824.08, 24-Oct-2017
79,Revenue,CAHD,South Glos Users in South Glos Homes,Permanent Nursing,.,620.20, 24-Oct-2017
80,Revenue,CAHD,South Glos Users in South Glos Homes,Permanent Nursing,.,620.20, 24-Oct-2017
81,Revenue,CAHD,South Glos Users in South Glos Homes,Permanent Nursing,.,620.20, 24-Oct-2017
82,Revenue,CAHD,South Glos Users in South Glos Homes,Permanent Nursing,.,620.20, 24-Oct-2017
83,Revenue,CAHD,Bed Purchasing - North,Permanent Residential,.,3545.52, 24-Oct-2017
84,Revenue,CAHD,Bed Purchasing - North,Permanent Nursing,.,4000.00, 24-Oct-2017
85,Revenue,CAHD,Bed Purchasing - North,Permanent Nursing,.,2361.59, 24-Oct-2017
86,Revenue,CAHD,Bed Purchasing - Southmead Hospital,Permanent Residential,.,4237.86, 24-Oct-2017
87,Revenue,CAHD,Bed Purchasing - South,Permanent Residential,.,3907.29, 24-Oct-2017
88,Revenue,CAHD,18-25 Year Olds,Permanent Residential,1 St Georges House,12778.20, 24-Oct-2017
89,Revenue,CAHD,Home Care - Elderly - South,Day Care / Social Activities,3 Trees Community Support Ltd,93.40, 04-Oct-2017
90,Revenue,CAHD,Home Care - Elderly - North,Day Care / Social Activities,3 Trees Community Support Ltd,1372.98, 04-Oct-2017
91,Revenue,CAHD,Home Care - Elderly - North,Other Small Contracts,3 Trees Community Support Ltd,709.84, 04-Oct-2017
92,Revenue,CAHD,Home Care - Elderly - North,Supported Living,3 Trees Community Support Ltd,7429.43, 04-Oct-2017
93,Revenue,CAHD,Home Care - Elderly - South,Day Care / Social Activities,3 Trees Community Support Ltd,93.40, 16-Oct-2017
94,Revenue,CAHD,Home Care - Elderly - North,Day Care / Social Activities,3 Trees Community Support Ltd,1368.31, 16-Oct-2017
95,Revenue,CAHD,Home Care - Elderly - North,Other Small Contracts,3 Trees Community Support Ltd,700.50, 16-Oct-2017
96,Revenue,CAHD,Home Care - Elderly - North,Supported Living,3 Trees Community Support Ltd,7436.97, 16-Oct-2017
97,Revenue,CAHD,Home Care - Elderly - South,Day Care / Social Activities,3 Trees Community Support Ltd,93.40, 16-Oct-2017
98,Revenue,CAHD,Home Care - Elderly - North,Day Care / Social Activities,3 Trees Community Support Ltd,1377.65, 16-Oct-2017
99,Revenue,CAHD,Home Care - Elderly - North,Other Small Contracts,3 Trees Community Support Ltd,700.50, 16-Oct-2017
100,Revenue,CAHD,Home Care - Elderly - North,Supported Living,3 Trees Community Support Ltd,7439.78, 16-Oct-2017
101,Revenue,CAHD,Bed Purchasing - North,Permanent Nursing,3Rd Floor  The Aspect,3179.80, 24-Oct-2017
102,Revenue,CAHD,18-25 Year Olds,Permanent Residential,5Th Floor Harlech Court,14619.64, 24-Oct-2017
103,Revenue,CAHD,18-25 Year Olds,Permanent Residential,5Th Floor Harlech Court,14760.00, 24-Oct-2017
104,Revenue,CAHD,18-25 Year Olds,Permanent Residential,5Th Floor Harlech Court,13130.76, 24-Oct-2017
105,Revenue,CAHD,Bed Purchasing - North,Permanent Residential,5Th Floor Harlech Court,15870.60, 24-Oct-2017
106,Revenue,CAHD,18-25 Year Olds,Permanent Residential,5Th Floor Harlech Court,17460.56, 24-Oct-2017
107,Revenue,CAHD,Bed Purchasing - North,Permanent Residential,5Th Floor Harlech Court,14104.28, 24-Oct-2017
108,Revenue,CAHD,Jointly Funded H&SC Packages,Permanent Residential,5Th Floor Harlech Court,3490.16, 24-Oct-2017
109,Revenue,CAHD,18-25 Year Olds,Permanent Residential,5Th Floor Harlech Court,16704.04, 24-Oct-2017
110,Revenue,CAHD,Bed Purchasing - South,Permanent Residential,5Th Floor Harlech Court,15973.00, 24-Oct-2017
111,Revenue,CAHD,Bed Purchasing - South,Permanent Residential,5Th Floor Harlech Court,9985.60, 24-Oct-2017
112,Revenue,CAHD,Bed purchasing - S28A Under 65 - South,Permanent Residential,5Th Floor Harlech Court,10450.56, 24-Oct-2017
113,Revenue,CAHD,Bed Purchasing - South,Permanent Residential,5Th Floor Harlech Court,10960.12, 24-Oct-2017
114,Revenue,CAHD,Bed Purchasing - North,Permanent Nursing,ABI Development Limited,7591.84, 24-Oct-2017
115,Revenue,CAHD,Home Care - Elderly - South,Day Care / Social Activities,About Me Care and Support Limited,1359.04, 10-Oct-2017
116,Revenue,CAHD,Home Care - Elderly - North,Day Care / Social Activities,About Me Care and Support Limited,591.84, 10-Oct-2017
117,Revenue,CAHD,Home Care - Elderly - South,Day Care / Social Activities,About Me Care and Support Limited,832.96, 10-Oct-2017
118,Revenue,CAHD,Home Care - Elderly - South,Day Care / Social Activities,About Me Care and Support Limited,1359.04, 04-Oct-2017
119,Revenue,CAHD,Home Care - Elderly - North,Day Care / Social Activities,About Me Care and Support Limited,613.76, 04-Oct-2017
120,Revenue,CAHD,Home Care - Elderly - South,Day Care / Social Activities,About Me Care and Support Limited,832.96, 04-Oct-2017
121,Revenue,CAHD,Home Care - Elderly - South,Day Care / Social Activities,About Me Care and Support Limited,1359.04, 17-Oct-2017
122,Revenue,CAHD,Home Care - Elderly - North,Day Care / Social Activities,About Me Care and Support Limited,613.76, 19-Oct-2017
123,Revenue,CAHD,Home Care - Elderly - South,Day Care / Social Activities,About Me Care and Support Limited,832.96, 17-Oct-2017
124,Revenue,CAHD,Community Support - South,Preventative Assistance,Accessible Transport 4 U,952.00, 27-Oct-2017
125,Revenue,CAHD,Community Support - South,Preventative Assistance,Accessible Transport 4 U,562.00, 27-Oct-2017
126,Revenue,CAHD,Community Support - South,Preventative Assistance,Accessible Transport 4 U,955.25, 27-Oct-2017
127,Revenue,CAHD,Tenancy Start Up Scheme,Other Supplies & Services,Accommodation Unlimited,2720.00, 27-Oct-2017
128,Revenue,CAHD,Training - Adult Services,Training Expenses,Acorn Health & Safety Limited,465.00, 16-Oct-2017
129,Revenue,CAHD,Training - Adult Services,Training Expenses,Acorn Health & Safety Limited,465.00, 16-Oct-2017
130,Revenue,CAHD,Home Care - Elderly - South,Other Small Contracts,Agincare UK Limited,2158.20, 04-Oct-2017
131,Revenue,CAHD,Home Care - Elderly - North,Day Care / Social Activities,Agincare UK Limited,187.48, 04-Oct-2017
132,Revenue,CAHD,Home Care - Elderly - North,Other Small Contracts,Agincare UK Limited,2406.72, 04-Oct-2017
133,Revenue,CAHD,Home care - Elderly MH - South,Other Small Contracts,Agincare UK Limited,61.04, 04-Oct-2017
134,Revenue,CAHD,Home Care - Elderly - South,Other Small Contracts,Agincare UK Limited,2018.68, 04-Oct-2017
135,Revenue,CAHD,Home Care - Elderly - North,Day Care / Social Activities,Agincare UK Limited,178.76, 04-Oct-2017
136,Revenue,CAHD,Home Care - Elderly - North,Other Small Contracts,Agincare UK Limited,2227.96, 04-Oct-2017
137,Revenue,CAHD,Home care - Elderly MH - South,Other Small Contracts,Agincare UK Limited,47.96, 04-Oct-2017
138,Revenue,CAHD,Home Care - Elderly - South,Other Small Contracts,Agincare UK Limited,2001.24, 04-Oct-2017
139,Revenue,CAHD,Home Care - Elderly - North,Day Care / Social Activities,Agincare UK Limited,187.48, 04-Oct-2017
140,Revenue,CAHD,Home Care - Elderly - North,Other Small Contracts,Agincare UK Limited,2315.16, 04-Oct-2017
141,Revenue,CAHD,Home care - Elderly MH - South,Other Small Contracts,Agincare UK Limited,69.76, 04-Oct-2017
142,Revenue,CAHD,Home Care - Elderly - South,Other Small Contracts,Agincare UK Limited,1979.44, 10-Oct-2017
143,Revenue,CAHD,Home Care - Elderly - North,Day Care / Social Activities,Agincare UK Limited,191.84, 10-Oct-2017
144,Revenue,CAHD,Home Care - Elderly - North,Other Small Contracts,Agincare UK Limited,2354.40, 10-Oct-2017
145,Revenue,CAHD,Home care - Elderly MH - South,Other Small Contracts,Agincare UK Limited,61.04, 10-Oct-2017
146,Revenue,CAHD,Home Care - Elderly - South,Other Small Contracts,Agincare UK Limited,2153.84, 10-Oct-2017
147,Revenue,CAHD,Home Care - Elderly - North,Day Care / Social Activities,Agincare UK Limited,191.84, 10-Oct-2017
148,Revenue,CAHD,Home Care - Elderly - North,Other Small Contracts,Agincare UK Limited,2450.32, 10-Oct-2017
149,Revenue,CAHD,Home care - Elderly MH - South,Other Small Contracts,Agincare UK Limited,65.40, 10-Oct-2017
150,Revenue,CAHD,Home Care - Elderly - South,Other Small Contracts,Agincare UK Limited,1848.64, 27-Oct-2017
151,Revenue,CAHD,Home Care - Elderly - North,Day Care / Social Activities,Agincare UK Limited,34.88, 27-Oct-2017
152,Revenue,CAHD,Home Care - Elderly - North,Other Small Contracts,Agincare UK Limited,2389.28, 27-Oct-2017
153,Revenue,CAHD,Home care - Elderly MH - South,Other Small Contracts,Agincare UK Limited,65.40, 27-Oct-2017
154,Revenue,CAHD,Extra Care Housing,Private & Voluntary Home Care,Agincare UK Limited,3216.70, 20-Oct-2017
155,Revenue,CAHD,Extra Care Housing,Private & Voluntary Home Care,Agincare UK Limited,3690.74, 20-Oct-2017
156,Revenue,CAHD,Extra Care Housing,Private & Voluntary Home Care,Agincare UK Limited,3330.98, 20-Oct-2017
157,Revenue,CAHD,Prison Assessments & Costs,Other Supplies & Services,Agincare UK Limited,11530.24, 04-Oct-2017
158,Revenue,CAHD,Prison Assessments & Costs,Other Supplies & Services,Agincare UK Limited,9287.79, 04-Oct-2017
159,Revenue,CAHD,Home Care - Elderly - South,Other Small Contracts,AliMo Care Ltd,1326.08, 12-Oct-2017
160,Revenue,CAHD,Home Care - Elderly - South,Other Small Contracts,AliMo Care Ltd,1361.92, 12-Oct-2017
161,Revenue,CAHD,Home Care - Elderly - North,Other Small Contracts,AliMo Care Ltd,8.96, 12-Oct-2017
162,Revenue,CAHD,Home Care - Elderly - South,Other Small Contracts,AliMo Care Ltd,1792.00, 12-Oct-2017
163,Revenue,CAHD,Home Care - Elderly - South,Other Small Contracts,AliMo Care Ltd,1680.00, 19-Oct-2017
164,Revenue,CAHD,Home Care - Elderly - South,Other Small Contracts,AliMo Care Ltd,1496.32, 25-Oct-2017
165,Revenue,CAHD,Bed Purchasing - South,Permanent Nursing,Ambleside Nusing Home,2126.16, 24-Oct-2017
166,Revenue,CAHD,Bed Purchasing - Southmead Hospital,Permanent Nursing,Amerind Grove Nursing Home,2593.60, 24-Oct-2017
167,Revenue,CAHD,Rapid Response Service,Operational Equipment,Arco Limited,456.12, 12-Oct-2017
168,Revenue,CAHD,Bed Purchasing - North,Permanent Residential,Ark Care Homes Ltd,11036.72, 24-Oct-2017
169,Revenue,CAHD,Bed Purchasing - South,Permanent Nursing,Ash Grove House,2836.40, 24-Oct-2017
170,Revenue,CAHD,Jointly Funded H&SC Packages,Permanent Residential,Ash View House,1065.12, 24-Oct-2017
171,Revenue,CAHD,Bed Purchasing - South,Permanent Residential,Ash View House,5195.24, 24-Oct-2017
172,Revenue,CAHD,S117 Placements PCT,Permanent Residential,Ash View House,7241.60, 24-Oct-2017
173,Revenue,CAHD,18-25 Year Olds,Permanent Residential,Ash View House,6803.84, 24-Oct-2017
174,Revenue,CAHD,Section 117 Placements MH Younger,Permanent Residential,Ash View House,4719.08, 24-Oct-2017
175,Revenue,CAHD,Jointly Funded H&SC Packages,Permanent Residential,Ash View House,2022.48, 24-Oct-2017
176,Revenue,CAHD,Bed purchasing - Elderly S117 - South,Permanent Residential,Ash View House,6414.04, 24-Oct-2017
177,Revenue,CAHD,18-25 Year Olds,Permanent Residential,Ash View House,6340.00, 24-Oct-2017
178,Revenue,CAHD,Bed Purchasing - North,Permanent Residential,Aspects 2 Limited,6930.72, 24-Oct-2017
179,Revenue,CAHD,Bed Purchasing - South,Permanent Residential,Autism Specialised Care Homes,6235.88, 24-Oct-2017
180,Revenue,CAHD,Younger Adult Mental Health,Health Services (Third Party Payments),Avon & Wiltshire Mental Health,1693.33, 26-Oct-2017
181,Revenue,CAHD,Purchase of RAC places,Other L.A.'s - General,Bath & North East Somerset Council,1207.60, 13-Oct-2017
182,Revenue,CAHD,Purchase of RAC places,Other L.A.'s - General,Bath & North East Somerset Council,1207.60, 30-Oct-2017
183,Revenue,CAHD,South Glos Users in South Glos Homes,Permanent Nursing,Beaufort Grange Care Home,620.20, 24-Oct-2017
184,Revenue,CAHD,South Glos Users in South Glos Homes,Permanent Nursing,Beaufort Grange Care Home,620.20, 24-Oct-2017
185,Revenue,CAHD,South Glos Users in South Glos Homes,Permanent Nursing,Beaufort Grange Care Home,2458.65, 24-Oct-2017
186,Revenue,CAHD,South Glos Users in South Glos Homes,Permanent Nursing,Beaufort Grange Care Home,620.20, 24-Oct-2017
187,Revenue,CAHD,Bed Purchasing - North,Permanent Nursing,Beaufort Grange Care Home,4229.28, 24-Oct-2017
188,Revenue,CAHD,South Glos Users in South Glos Homes,Permanent Nursing,Beaufort Grange Care Home,620.20, 24-Oct-2017
189,Revenue,CAHD,South Glos Users in South Glos Homes,Permanent Nursing,Beaufort Grange Care Home,620.20, 24-Oct-2017
190,Revenue,CAHD,South Glos Users in South Glos Homes,Permanent Nursing,Beaufort Grange Care Home,620.20, 24-Oct-2017
191,Revenue,CAHD,South Glos Users in South Glos Homes,Permanent Nursing,Beaufort Grange Care Home,620.20, 24-Oct-2017
192,Revenue,CAHD,South Glos Users in South Glos Homes,Permanent Nursing,Beaufort Grange Care Home,620.20, 24-Oct-2017
193,Revenue,CAHD,South Glos Users in South Glos Homes,Permanent Nursing,Beaufort Grange Care Home,620.20, 24-Oct-2017
194,Revenue,CAHD,South Glos Users in South Glos Homes,Permanent Nursing,Beaufort Grange Care Home,620.20, 24-Oct-2017
195,Revenue,CAHD,South Glos Users in South Glos Homes,Permanent Nursing,Beaufort Grange Care Home,620.20, 24-Oct-2017
196,Revenue,CAHD,South Glos Users in South Glos Homes,Permanent Nursing,Beaufort Grange Care Home,620.20, 24-Oct-2017
197,Revenue,CAHD,South Glos Users in South Glos Homes,Permanent Nursing,Beaufort Grange Care Home,620.20, 24-Oct-2017
198,Revenue,CAHD,Bed Purchasing - Elderly S117- North,Permanent Nursing,Beaufort Grange Care Home,4673.92, 24-Oct-2017
199,Revenue,CAHD,South Glos Users in South Glos Homes,Permanent Nursing,Beaufort Grange Care Home,620.20, 24-Oct-2017
200,Revenue,CAHD,South Glos Users in South Glos Homes,Permanent Nursing,Beaufort Grange Care Home,620.20, 24-Oct-2017
201,Revenue,CAHD,South Glos Users in South Glos Homes,Permanent Nursing,Beaufort Grange Care Home,620.20, 24-Oct-2017
202,Revenue,CAHD,South Glos Users in South Glos Homes,Permanent Nursing,Beaufort Grange Care Home,620.20, 24-Oct-2017
203,Revenue,CAHD,South Glos Users in South Glos Homes,Permanent Nursing,Beaufort Grange Care Home,620.20, 24-Oct-2017
204,Revenue,CAHD,Bed Purchasing - North,Permanent Residential,Beaufort House,2443.36, 24-Oct-2017
205,Revenue,CAHD,Bed Purchasing - Southmead Hospital,Permanent Residential,Beaufort House,2660.00, 24-Oct-2017
206,Revenue,CAHD,Bed Purchasing - North,Permanent Residential,Beaufort House,2464.28, 24-Oct-2017
207,Revenue,CAHD,Bed Purchasing - South,Permanent Residential,Beaufort House,2431.20, 24-Oct-2017
208,Revenue,CAHD,Bed Purchasing - South,Permanent Residential,Beaufort House,2339.40, 24-Oct-2017
209,Revenue,CAHD,Bed Purchasing - Southmead Hospital,Permanent Residential,Beaufort House,2464.28, 24-Oct-2017
210,Revenue,CAHD,Bed Purchasing - North,Permanent Residential,Beaufort House,2407.80, 24-Oct-2017
211,Revenue,CAHD,Bed Purchasing - Southmead Hospital,Permanent Residential,Beaufort House,2600.00, 24-Oct-2017
212,Revenue,CAHD,Bed Purchasing - North,Permanent Residential,Beaufort House,2407.80, 24-Oct-2017
213,Revenue,CAHD,Bed Purchasing - Southmead Hospital,Permanent Residential,Beaufort House,2660.00, 24-Oct-2017
214,Revenue,CAHD,Bed Purchasing - Southmead Hospital,Permanent Residential,Beaufort House,8821.43, 24-Oct-2017
215,Revenue,CAHD,Bed Purchasing - Southmead Hospital,Permanent Residential,Beaufort House,2600.00, 24-Oct-2017
216,Revenue,CAHD,Bed Purchasing - Southmead Hospital,Fees & Charges Income - General,Beaufort House,1805.47, 24-Oct-2017
217,Revenue,CAHD,Bed Purchasing - North,Permanent Residential,Beaufort House,2587.48, 24-Oct-2017
218,Revenue,CAHD,Bed Purchasing - South,Permanent Residential,Beaufort House,1671.43, 24-Oct-2017
219,Revenue,CAHD,Bed Purchasing - South,Permanent Residential,Beaufort House,928.57, 24-Oct-2017
220,Revenue,CAHD,Bed Purchasing - Southmead Hospital,Permanent Residential,Beaufort House,2464.28, 24-Oct-2017
221,Revenue,CAHD,Bed Purchasing - Southmead Hospital,Permanent Residential,Beaufort House,2633.80, 24-Oct-2017
222,Revenue,CAHD,South Glos Users in South Glos Homes,Permanent Nursing,Beech House,620.20, 24-Oct-2017
223,Revenue,CAHD,Bed Purchasing - South,Permanent Residential,Beech House,2836.40, 24-Oct-2017
224,Revenue,CAHD,South Glos Users in South Glos Homes,Permanent Nursing,Beech House,1683.40, 24-Oct-2017
225,Revenue,CAHD,South Glos Users in South Glos Homes,Permanent Nursing,Beech House,620.20, 24-Oct-2017
226,Revenue,CAHD,South Glos Users in South Glos Homes,Permanent Nursing,Beech House,620.20, 24-Oct-2017
227,Revenue,CAHD,South Glos Users in South Glos Homes,Permanent Nursing,Beech House,620.20, 24-Oct-2017
228,Revenue,CAHD,South Glos Users in South Glos Homes,Permanent Nursing,Beech House,1661.25, 24-Oct-2017
229,Revenue,CAHD,South Glos Users in South Glos Homes,Permanent Nursing,Beech House,620.20, 24-Oct-2017
230,Revenue,CAHD,Bed Purchasing - North,Permanent Nursing,Beech House,2709.76, 24-Oct-2017
231,Revenue,CAHD,South Glos Users in South Glos Homes,Permanent Nursing,Beech House,620.20, 24-Oct-2017
232,Revenue,CAHD,South Glos Users in South Glos Homes,Permanent Nursing,Beech House,620.20, 24-Oct-2017
233,Revenue,CAHD,South Glos Users in South Glos Homes,Permanent Nursing,Beech House,620.20, 24-Oct-2017
234,Revenue,CAHD,Bed Purchasing - North,Permanent Nursing,Beech House,3031.04, 24-Oct-2017
235,Revenue,CAHD,South Glos Users in South Glos Homes,Permanent Nursing,Beech House,620.20, 24-Oct-2017
236,Revenue,CAHD,Bed Purchasing - North,Permanent Residential,Beech House,2836.40, 24-Oct-2017
237,Revenue,CAHD,South Glos Users in South Glos Homes,Permanent Nursing,Beech House,620.20, 24-Oct-2017
238,Revenue,CAHD,South Glos Users in South Glos Homes,Permanent Nursing,Beech House,620.20, 24-Oct-2017
239,Revenue,CAHD,South Glos Users in South Glos Homes,Permanent Nursing,Beech House,620.20, 24-Oct-2017
240,Revenue,CAHD,South Glos Users in South Glos Homes,Permanent Nursing,Beech House,620.20, 24-Oct-2017
241,Revenue,CAHD,South Glos Users in South Glos Homes,Permanent Nursing,Beech House,620.20, 24-Oct-2017
242,Revenue,CAHD,South Glos Users in South Glos Homes,Permanent Nursing,Beech House,620.20, 24-Oct-2017
243,Revenue,CAHD,South Glos Users in South Glos Homes,Permanent Nursing,Beech House,686.65, 24-Oct-2017
244,Revenue,CAHD,South Glos Users in South Glos Homes,Permanent Nursing,Beech House,620.20, 24-Oct-2017
245,Revenue,CAHD,South Glos Users in South Glos Homes,Permanent Nursing,Beech House,620.20, 24-Oct-2017
246,Revenue,CAHD,South Glos Users in South Glos Homes,Permanent Nursing,Beech House,620.20, 24-Oct-2017
247,Revenue,CAHD,South Glos Users in South Glos Homes,Permanent Nursing,Beech House,620.20, 24-Oct-2017
248,Revenue,CAHD,Bed Purchasing - Southmead Hospital,Permanent Residential,Beech House,3680.00, 24-Oct-2017
249,Revenue,CAHD,South Glos Users in South Glos Homes,Permanent Nursing,Beech House,620.20, 24-Oct-2017
250,Revenue,CAHD,South Glos Users in South Glos Homes,Permanent Nursing,Beech House,620.20, 24-Oct-2017
251,Revenue,CAHD,Bed Purchasing - North,Permanent Nursing,Beech House,3182.14, 24-Oct-2017
252,Revenue,CAHD,South Glos Users in South Glos Homes,Permanent Nursing,Beech House,620.20, 24-Oct-2017
253,Revenue,CAHD,Bed Purchasing - North,Permanent Nursing,Beech House,3169.68, 24-Oct-2017
254,Revenue,CAHD,South Glos Users in South Glos Homes,Permanent Nursing,Beech House,620.20, 24-Oct-2017
255,Revenue,CAHD,South Glos Users in South Glos Homes,Permanent Nursing,Beech House,620.20, 24-Oct-2017
256,Revenue,CAHD,South Glos Users in South Glos Homes,Permanent Nursing,Beech House,620.20, 24-Oct-2017
257,Revenue,CAHD,South Glos Users in South Glos Homes,Permanent Nursing,Beech House,620.20, 24-Oct-2017
258,Revenue,CAHD,South Glos Users in South Glos Homes,Permanent Nursing,Beech House,620.20, 24-Oct-2017
259,Revenue,CAHD,Services,Services,Individual,1488.00, 02-Oct-2017
260,Revenue,CAHD,Home Care - Elderly - North,Other Small Contracts,Bibby Factors Bristol Limited,8259.06, 06-Oct-2017
261,Revenue,CAHD,Home Care - Elderly - North,Other Small Contracts,Bibby Factors Bristol Limited,7527.38, 19-Oct-2017
262,Revenue,CAHD,Home Care - Elderly - North,Other Small Contracts,Bibby Factors Bristol Limited,7550.56, 20-Oct-2017
263,Revenue,CAHD,Bed purchasing - Elderly S117 - South,Permanent Nursing,Blossom Field,4179.80, 24-Oct-2017
264,Revenue,CAHD,South Glos Users in South Glos Homes,Permanent Nursing,Blossom Field,620.20, 24-Oct-2017
265,Revenue,CAHD,Bed Purchasing - North,Permanent Nursing,Blossom Field,3523.92, 24-Oct-2017
266,Revenue,CAHD,South Glos Users in South Glos Homes,Permanent Nursing,Blossom Field,620.20, 24-Oct-2017
267,Revenue,CAHD,Bed Purchasing - Southmead Hospital,Fees & Charges Income - General,Blossom Field,691.46, 24-Oct-2017
268,Revenue,CAHD,Bed Purchasing - Elderly S117- North,Permanent Nursing,Blossom Field,3539.76, 24-Oct-2017
269,Revenue,CAHD,South Glos Users in South Glos Homes,Permanent Nursing,Blossom Field,620.20, 24-Oct-2017
270,Revenue,CAHD,South Glos Users in South Glos Homes,Permanent Nursing,Blossom Field,620.20, 24-Oct-2017
271,Revenue,CAHD,Bed Purchasing - Southmead Hospital,Permanent Nursing,Blossom Field,4862.40, 24-Oct-2017
272,Revenue,CAHD,South Glos Users in South Glos Homes,Permanent Nursing,Blossom Field,620.20, 24-Oct-2017
273,Revenue,CAHD,South Glos Users in South Glos Homes,Permanent Nursing,Blossom Field,620.20, 24-Oct-2017
274,Revenue,CAHD,South Glos Users in South Glos Homes,Permanent Nursing,Blossom Field,620.20, 24-Oct-2017
275,Revenue,CAHD,South Glos Users in South Glos Homes,Permanent Nursing,Blossom Field,620.20, 24-Oct-2017
276,Revenue,CAHD,South Glos Users in South Glos Homes,Permanent Nursing,Blossom Field,620.20, 24-Oct-2017
277,Revenue,CAHD,South Glos Users in South Glos Homes,Permanent Nursing,Blossom Field,620.20, 24-Oct-2017
278,Revenue,CAHD,South Glos Users in South Glos Homes,Permanent Nursing,Blossom Field,620.20, 24-Oct-2017
279,Revenue,CAHD,Bed purchasing - Elderly S117 - South,Permanent Nursing,Blossom Field,13042.86, 24-Oct-2017
280,Revenue,CAHD,Bed purchasing - Elderly S117 - South,Permanent Nursing,Blossom Field,4400.00, 24-Oct-2017
281,Revenue,CAHD,South Glos Users in South Glos Homes,Permanent Nursing,Blossom Field,1838.45, 24-Oct-2017
282,Revenue,CAHD,South Glos Users in South Glos Homes,Permanent Nursing,Blossom Field,620.20, 24-Oct-2017
283,Revenue,CAHD,South Glos Users in South Glos Homes,Permanent Nursing,Blossom Field,620.20, 24-Oct-2017
284,Revenue,CAHD,South Glos Users in South Glos Homes,Permanent Nursing,Blossom Field,620.20, 24-Oct-2017
285,Revenue,CAHD,Bed purchasing - Elderly S117 - South,Permanent Nursing,Blossom Field,4468.56, 24-Oct-2017
286,Revenue,CAHD,South Glos Users in South Glos Homes,Permanent Nursing,Blossom Field,620.20, 24-Oct-2017
287,Revenue,CAHD,Bed Purchasing - South,Permanent Nursing,Blossom Field,4229.28, 24-Oct-2017
288,Revenue,CAHD,South Glos Users in South Glos Homes,Permanent Nursing,Blossom Field,620.20, 24-Oct-2017
289,Revenue,CAHD,South Glos Users in South Glos Homes,Permanent Nursing,Blossom Field,620.20, 24-Oct-2017
290,Revenue,CAHD,South Glos Users in South Glos Homes,Permanent Nursing,Blossom Field,620.20, 24-Oct-2017
291,Revenue,CAHD,South Glos Users in South Glos Homes,Permanent Nursing,Blossom Field,620.20, 24-Oct-2017
292,Revenue,CAHD,South Glos Users in South Glos Homes,Permanent Nursing,Blossom Field,620.20, 24-Oct-2017
293,Revenue,CAHD,South Glos Users in South Glos Homes,Permanent Nursing,Blossom Field,620.20, 24-Oct-2017
294,Revenue,CAHD,South Glos Users in South Glos Homes,Permanent Nursing,Blossom Field,620.20, 24-Oct-2017
295,Revenue,CAHD,South Glos Users in South Glos Homes,Permanent Nursing,Blossom Field,3101.00, 24-Oct-2017
296,Revenue,CAHD,South Glos Users in South Glos Homes,Permanent Nursing,Blossom Field,620.20, 24-Oct-2017
297,Revenue,CAHD,South Glos Users in South Glos Homes,Permanent Nursing,Blossom Field,575.90, 24-Oct-2017
298,Revenue,CAHD,South Glos Users in South Glos Homes,Permanent Nursing,Blossom Field,1395.45, 24-Oct-2017
299,Revenue,CAHD,South Glos Users in South Glos Homes,Permanent Nursing,Blossom Field,620.20, 24-Oct-2017
300,Revenue,CAHD,Bed Purchasing - North,Permanent Nursing,Blossom Field,4179.80, 24-Oct-2017
301,Revenue,CAHD,South Glos Users in South Glos Homes,Permanent Nursing,Blossom Field,620.20, 24-Oct-2017
302,Revenue,CAHD,Bed Purchasing - North,Permanent Nursing,Blossom Field,3824.08, 24-Oct-2017
303,Revenue,CAHD,South Glos Users in South Glos Homes,Permanent Nursing,Blossom Field,620.20, 24-Oct-2017
304,Revenue,CAHD,Bed Purchasing - North,Permanent Nursing,Blossom Field,3483.56, 24-Oct-2017
305,Revenue,CAHD,South Glos Users in South Glos Homes,Permanent Nursing,Blossom Field,620.20, 24-Oct-2017
306,Revenue,CAHD,South Glos Users in South Glos Homes,Permanent Nursing,Blossom Field,620.20, 24-Oct-2017
307,Revenue,CAHD,South Glos Users in South Glos Homes,Permanent Nursing,Blossom Field,620.20, 24-Oct-2017
308,Revenue,CAHD,South Glos Users in South Glos Homes,Permanent Nursing,Blossom Fields,620.20, 13-Oct-2017
309,Revenue,CAHD,South Glos Users in South Glos Homes,Permanent Nursing,Blossom Fields,620.20, 13-Oct-2017
310,Revenue,CAHD,Bed Purchasing - North,Permanent Nursing,Blossom Fields,1880.20, 13-Oct-2017
311,Revenue,CAHD,Bed Purchasing - North,Permanent Nursing,Blossom Fields,2688.00, 13-Oct-2017
312,Revenue,CAHD,Training - Adult Services,Training Expenses,Bob Dawson,1350.00, 13-Oct-2017
313,Revenue,CAHD,Bed purchasing - S28A Under 65 - South,Permanent Residential,Bradbury House,4854.16, 24-Oct-2017
314,Revenue,CAHD,Bed Purchasing - South,Permanent Residential,Bradbury House,8375.20, 24-Oct-2017
315,Revenue,CAHD,Bed Purchasing - South,Fees & Charges Income - General,Bradbury House,2087.96, 24-Oct-2017
316,Revenue,CAHD,Bed purchasing - S28A Under 65 - South,Permanent Residential,Bradbury House,7152.84, 24-Oct-2017
317,Revenue,CAHD,18-25 Year Olds,Permanent Residential,Bradbury House,9504.08, 24-Oct-2017
318,Revenue,CAHD,Bed purchasing - Elderly S117 - South,Permanent Residential,Bradbury House,8572.56, 24-Oct-2017
319,Revenue,CAHD,Jointly Funded H&SC Packages,Permanent Residential,Bradbury House,3184.96, 24-Oct-2017
320,Revenue,CAHD,Bed Purchasing - North,Permanent Residential,Bradbury House,5952.84, 24-Oct-2017
321,Revenue,CAHD,Jointly Funded H&SC Packages,Permanent Residential,Bradbury House,8223.16, 24-Oct-2017
322,Revenue,CAHD,Bed Purchasing - North,Permanent Residential,Bradbury House,4242.86, 24-Oct-2017
323,Revenue,CAHD,Home Care - Elderly - North,Other Small Contracts,Bramble Home Care Limited,682.08, 04-Oct-2017
324,Revenue,CAHD,Home Care - Elderly - North,Other Small Contracts,Bramble Home Care Limited,1120.56, 18-Oct-2017
325,Revenue,CAHD,Home Care - Elderly - North,Other Small Contracts,Bramble Home Care Limited,682.08, 18-Oct-2017
326,Revenue,CAHD,Home Care - Elderly - North,Other Small Contracts,Bramble Home Care Limited,1120.56, 19-Oct-2017
327,Revenue,CAHD,Home Care - Elderly - North,Other Small Contracts,Bramble Home Care Limited,521.56, 18-Oct-2017
328,Revenue,CAHD,Home Care - Elderly - North,Other Small Contracts,Bramble Home Care Limited,1025.44, 04-Oct-2017
329,Revenue,CAHD,Home Care - Elderly - North,Other Small Contracts,Bramble Home Care Limited,909.44, 19-Oct-2017
330,Revenue,CAHD,Home Care - Elderly - North,Other Small Contracts,Bramble Home Care Limited,591.36, 19-Oct-2017
331,Revenue,CAHD,Home Care - Elderly - North,Other Small Contracts,Bramble Home Care Limited,1021.44, 20-Oct-2017
332,Revenue,CAHD,Home Care - Elderly - North,Other Small Contracts,Bramble Home Care Limited,628.74, 20-Oct-2017
333,Revenue,CAHD,Home Care - Elderly - North,Other Small Contracts,Bramble Home Care Limited,1003.52, 19-Oct-2017
334,Revenue,CAHD,Home Care - Elderly - North,Other Small Contracts,Bramble Home Care Limited,537.60, 19-Oct-2017
335,Revenue,CAHD,Home Care - Elderly - North,Other Small Contracts,Bramble Home Care Limited,716.80, 19-Oct-2017
336,Revenue,CAHD,Home Care - Elderly - North,Other Small Contracts,Bramble Home Care Limited,896.00, 19-Oct-2017
337,Revenue,CAHD,Home Care - Elderly - North,Other Small Contracts,Bramble Home Care Limited,586.88, 20-Oct-2017
338,Revenue,CAHD,Home Care - Elderly - North,Other Small Contracts,Bramble Home Care Limited,945.28, 20-Oct-2017
339,Revenue,CAHD,Home Care - Elderly - North,Other Small Contracts,Bramble Home Care Limited,638.72, 20-Oct-2017
340,Revenue,CAHD,Home Care - Elderly - North,Other Small Contracts,Bramble Home Care Limited,721.28, 20-Oct-2017
341,Revenue,CAHD,Home Care - Elderly - North,Other Small Contracts,Bramble Home Care Limited,591.36, 25-Oct-2017
342,Revenue,CAHD,Social Lettings Agency,Fees - General,Individual,11.41, 02-Oct-2017
343,Revenue,CAHD,Social Lettings Agency,Other Supplies & Services,Individual,746.54, 02-Oct-2017
344,Revenue,CAHD,Bed Purchasing - Southmead Hospital,Permanent Residential,Bridge House Care Home,2423.08, 24-Oct-2017
345,Revenue,CAHD,Bed Purchasing - North,Permanent Residential,Bridge House Care Home,2382.12, 24-Oct-2017
346,Revenue,CAHD,Home Care - Elderly - North,Day Care / Social Activities,Bridge House Care Home,526.72, 24-Oct-2017
347,Revenue,CAHD,Bed Purchasing - Southmead Hospital,Permanent Residential,Bridge House Care Home,2464.00, 24-Oct-2017
348,Revenue,CAHD,Bed Purchasing - North,Permanent Residential,Bridge House Care Home,2496.04, 24-Oct-2017
349,Revenue,CAHD,Bed Purchasing - North,Permanent Residential,Bridge House Care Home,2191.80, 24-Oct-2017
350,Revenue,CAHD,Bed Purchasing - North,Permanent Residential,Bridgwater Court,10324.96, 24-Oct-2017
351,Revenue,CAHD,Bed Purchasing - North,Permanent Residential,Bristol City Council,290109.44, 06-Oct-2017
352,Revenue,CAHD,Home Care - Elderly - North,Day Care / Social Activities,Bristol Community Links North,996.32, 24-Oct-2017
353,Revenue,CAHD,Home Care - Elderly - North,Day Care / Social Activities,Bristol Community Links North,622.70, 24-Oct-2017
354,Revenue,CAHD,Home Care - Elderly - South,Supported Living,Bristol Houses UK Limited,710.40, 13-Oct-2017
355,Revenue,CAHD,Home Care - Elderly - South,Day Care / Social Activities,Bristol Houses UK Limited,1349.76, 13-Oct-2017
356,Revenue,CAHD,18-25 Year Olds,SU Employment Support,Britannia House,712.08, 24-Oct-2017
357,Revenue,CAHD,Home Care - Elderly - North,Day Care / Social Activities,Britannia House,712.08, 24-Oct-2017
358,Revenue,CAHD,Home Care - Elderly - North,Day Care / Social Activities,Britannia House,949.44, 24-Oct-2017
359,Revenue,CAHD,18-25 Year Olds,Day Care / Social Activities,Britannia House,712.08, 24-Oct-2017
360,Revenue,CAHD,Home Care - Elderly - South,Supported Living,Britannia House,2209.12, 24-Oct-2017
361,Revenue,CAHD,Home Care - Elderly - North,Day Care / Social Activities,Britannia House,712.08, 24-Oct-2017
362,Revenue,CAHD,Home Care - Elderly - North,Day Care / Social Activities,Britannia House,949.44, 24-Oct-2017
363,Revenue,CAHD,Home Care - Elderly - South,Day Care / Social Activities,Britannia House,949.44, 24-Oct-2017
364,Revenue,CAHD,Home Care - Elderly - South,Day Care / Social Activities,Britannia House,712.08, 24-Oct-2017
365,Revenue,CAHD,Home Care - Elderly - South,Day Care / Social Activities,Britannia House,712.08, 24-Oct-2017
366,Revenue,CAHD,South Glos Users in South Glos Homes,Permanent Nursing,Britannia House,620.20, 24-Oct-2017
367,Revenue,CAHD,South Glos Users in South Glos Homes,Permanent Nursing,Britannia House,620.20, 24-Oct-2017
368,Revenue,CAHD,South Glos Users in South Glos Homes,Permanent Nursing,Britannia House,620.20, 24-Oct-2017
369,Revenue,CAHD,Bed Purchasing - South,Permanent Nursing,Britannia House,601.05, 24-Oct-2017
370,Revenue,CAHD,Bed Purchasing - South,Permanent Residential,Britannia House,10988.80, 24-Oct-2017
371,Revenue,CAHD,Bed Purchasing - South,Permanent Nursing,Britannia House,5559.08, 24-Oct-2017
372,Revenue,CAHD,South Glos Users in South Glos Homes,Permanent Nursing,Britannia House,620.20, 24-Oct-2017
373,Revenue,CAHD,Bed purchasing - S28A Under 65 - South,Permanent Nursing,Britannia House,5893.56, 24-Oct-2017
374,Revenue,CAHD,South Glos Users in South Glos Homes,Permanent Nursing,Britannia House,620.20, 24-Oct-2017
375,Revenue,CAHD,Bed purchasing - S28A Under 65 - South,Permanent Residential,Britannia House,5789.24, 24-Oct-2017
376,Revenue,CAHD,Bed Purchasing - LD S28A- Over 65- South,Permanent Nursing,Britannia House,5893.56, 24-Oct-2017
377,Revenue,CAHD,South Glos Users in South Glos Homes,Permanent Nursing,Britannia House,620.20, 24-Oct-2017
378,Revenue,CAHD,Bed Purchasing - South,Permanent Residential,Britannia House,3756.88, 24-Oct-2017
379,Revenue,CAHD,Bed purchasing - S28A Under 65 - South,Permanent Residential,Britannia House,5670.48, 24-Oct-2017
380,Revenue,CAHD,Bed purchasing - S28A Under 65 - South,Permanent Residential,Britannia House,5789.04, 24-Oct-2017
381,Revenue,CAHD,Bed Purchasing - North,Permanent Nursing,Britannia House,5553.32, 24-Oct-2017
382,Revenue,CAHD,South Glos Users in South Glos Homes,Permanent Nursing,Britannia House,620.20, 24-Oct-2017
383,Revenue,CAHD,Bed purchasing - S28A Under 65 - South,Permanent Nursing,Britannia House,5893.56, 24-Oct-2017
384,Revenue,CAHD,South Glos Users in South Glos Homes,Permanent Nursing,Britannia House,620.20, 24-Oct-2017
385,Revenue,CAHD,Bed purchasing -S28A  Under 65 - North,Permanent Nursing,Britannia House,5335.52, 24-Oct-2017
386,Revenue,CAHD,Bed purchasing - S28A Under 65 - South,Permanent Residential,Britannia House,5789.04, 24-Oct-2017
387,Revenue,CAHD,Bed Purchasing - LD S28A- Over 65- South,Permanent Residential,Britannia House,5442.56, 24-Oct-2017
388,Revenue,CAHD,Bed purchasing - S28A Under 65 - South,Permanent Residential,Britannia House,9567.24, 24-Oct-2017
389,Revenue,CAHD,Pathway 1 - Re-Ablement Home Care,Private & Voluntary Home Care,Brunelcare,24132.35, 02-Oct-2017
390,Revenue,CAHD,Pathway 1 - Re-Ablement Home Care,Private & Voluntary Home Care,Brunelcare,24132.35, 09-Oct-2017
391,Revenue,CAHD,Pathway 1 - Re-Ablement Home Care,Private & Voluntary Home Care,Brunelcare,24132.35, 16-Oct-2017
392,Revenue,CAHD,Pathway 1 - Re-Ablement Home Care,Private & Voluntary Home Care,Brunelcare,24132.35, 23-Oct-2017
393,Revenue,CAHD,Pathway 1 - Re-Ablement Home Care,Private & Voluntary Home Care,Brunelcare,24132.35, 30-Oct-2017
394,Revenue,CAHD,Pathway 2 - (Interim Beds),Permanent Nursing,Brunelcare,51751.00, 24-Oct-2017
395,Revenue,CAHD,South Glos Users in South Glos Homes,Permanent Nursing,Brunelcare,664.50, 06-Oct-2017
396,Revenue,CAHD,South Glos Users in South Glos Homes,Permanent Nursing,Brunelcare,664.50, 06-Oct-2017
397,Revenue,CAHD,South Glos Users in South Glos Homes,Permanent Nursing,Brunelcare,664.50, 06-Oct-2017
398,Revenue,CAHD,South Glos Users in South Glos Homes,Permanent Nursing,Brunelcare,664.50, 06-Oct-2017
399,Revenue,CAHD,South Glos Users in South Glos Homes,Permanent Nursing,Brunelcare,664.50, 06-Oct-2017
400,Revenue,CAHD,South Glos Users in South Glos Homes,Permanent Nursing,Brunelcare,664.50, 06-Oct-2017
401,Revenue,CAHD,South Glos Users in South Glos Homes,Permanent Nursing,Brunelcare,664.50, 06-Oct-2017
402,Revenue,CAHD,South Glos Users in South Glos Homes,Permanent Nursing,Brunelcare,664.50, 06-Oct-2017
403,Revenue,CAHD,South Glos Users in South Glos Homes,Permanent Nursing,Brunelcare,664.50, 06-Oct-2017
404,Revenue,CAHD,South Glos Users in South Glos Homes,Permanent Nursing,Brunelcare,664.50, 06-Oct-2017
405,Revenue,CAHD,South Glos Users in South Glos Homes,Permanent Nursing,Brunelcare,664.50, 06-Oct-2017
406,Revenue,CAHD,South Glos Users in South Glos Homes,Permanent Nursing,Brunelcare,664.50, 06-Oct-2017
407,Revenue,CAHD,South Glos Users in South Glos Homes,Permanent Nursing,Brunelcare,664.50, 06-Oct-2017
408,Revenue,CAHD,South Glos Users in South Glos Homes,Permanent Nursing,Brunelcare,664.50, 06-Oct-2017
409,Revenue,CAHD,Bed purchasing - Elderly S117 - South,Permanent Nursing,Brunelcare,3402.86, 06-Oct-2017
410,Revenue,CAHD,Bed Purchasing - Elderly S117- North,Permanent Nursing,Brunelcare,3402.86, 06-Oct-2017
411,Revenue,CAHD,Bed Purchasing - Elderly S117- North,Permanent Nursing,Brunelcare,3402.86, 06-Oct-2017
412,Revenue,CAHD,Bed Purchasing - Southmead Hospital,Permanent Nursing,Brunelcare,2761.07, 06-Oct-2017
413,Revenue,CAHD,Bed Purchasing - Southmead Hospital,Permanent Nursing,Brunelcare,2661.13, 06-Oct-2017
414,Revenue,CAHD,Bed Purchasing - Southmead Hospital,Permanent Nursing,Brunelcare,2826.64, 06-Oct-2017
415,Revenue,CAHD,Bed Purchasing - Southmead Hospital,Permanent Nursing,Brunelcare,3402.86, 06-Oct-2017
416,Revenue,CAHD,Bed Purchasing - South,Permanent Nursing,Brunelcare,2819.27, 06-Oct-2017
417,Revenue,CAHD,Bed Purchasing - South,Permanent Nursing,Brunelcare,3402.86, 06-Oct-2017
418,Revenue,CAHD,Bed Purchasing - South,Permanent Nursing,Brunelcare,2616.60, 06-Oct-2017
419,Revenue,CAHD,Bed Purchasing - South,Permanent Nursing,Brunelcare,2641.11, 06-Oct-2017
420,Revenue,CAHD,Bed Purchasing - South,Respite Planned - Nursing,Brunelcare,907.43, 06-Oct-2017
421,Revenue,CAHD,Bed Purchasing - South,Respite Planned - Nursing,Brunelcare,907.43, 06-Oct-2017
422,Revenue,CAHD,Bed Purchasing - South,Respite Planned - Nursing,Brunelcare,949.05, 06-Oct-2017
423,Revenue,CAHD,Bed Purchasing - North,Permanent Nursing,Brunelcare,2789.61, 06-Oct-2017
424,Revenue,CAHD,Bed Purchasing - North,Permanent Nursing,Brunelcare,2755.20, 06-Oct-2017
425,Revenue,CAHD,Bed Purchasing - North,Permanent Nursing,Brunelcare,2787.30, 06-Oct-2017
426,Revenue,CAHD,Bed Purchasing - North,Permanent Nursing,Brunelcare,2826.64, 06-Oct-2017
427,Revenue,CAHD,Bed Purchasing - North,Respite Planned - Nursing,Brunelcare,3402.86, 06-Oct-2017
428,Revenue,CAHD,South Glos Users in South Glos Homes,Permanent Nursing,Brunelcare,691.96, 06-Oct-2017
429,Revenue,CAHD,Pathway 2 - (Interim Beds),Permanent Nursing,Brunelcare,15608.00, 09-Oct-2017
430,Revenue,CAHD,Home Care - Elderly - South,Other Small Contracts,Brunelcare,2916.48, 04-Oct-2017
431,Revenue,CAHD,Home Care - Elderly - North,Other Small Contracts,Brunelcare,1209.60, 04-Oct-2017
432,Revenue,CAHD,Home Care - Elderly - South,Other Small Contracts,Brunelcare,2831.36, 04-Oct-2017
433,Revenue,CAHD,Home Care - Elderly - North,Other Small Contracts,Brunelcare,1146.88, 04-Oct-2017
434,Revenue,CAHD,Home Care - Elderly - South,Other Small Contracts,Brunelcare,2481.92, 12-Oct-2017
435,Revenue,CAHD,Home Care - Elderly - North,Other Small Contracts,Brunelcare,1021.44, 12-Oct-2017
436,Revenue,CAHD,Home Care - Elderly - South,Other Small Contracts,Brunelcare,2428.16, 27-Oct-2017
437,Revenue,CAHD,Home Care - Elderly - North,Other Small Contracts,Brunelcare,1061.76, 27-Oct-2017
438,Revenue,CAHD,Home Care - Elderly - South,Other Small Contracts,Brunelcare,2325.12, 27-Oct-2017
439,Revenue,CAHD,Home Care - Elderly - North,Other Small Contracts,Brunelcare,945.28, 27-Oct-2017
440,Revenue,CAHD,Woodleaze,Agency Staff (Admin/Support Staff) Pay,BS Project Services Limited,597.36, 04-Oct-2017
441,Revenue,CAHD,Woodleaze,Agency Staff (Admin/Support Staff) Pay,BS Project Services Limited,556.28, 23-Oct-2017
442,Revenue,CAHD,Woodleaze,Agency Staff (Admin/Support Staff) Pay,BS Project Services Limited,515.07, 23-Oct-2017
443,Revenue,CAHD,Woodleaze,Agency Staff (Admin/Support Staff) Pay,BS Project Services Limited,457.68, 11-Oct-2017
444,Revenue,CAHD,Woodleaze,Cleaning & Domestic Services,Bunzl Cleaning & Hygiene Supplies,472.83, 11-Oct-2017
445,Revenue,CAHD,Bed Purchasing - North,Permanent Nursing,Bupa Care Services  Bridge House,1762.64, 24-Oct-2017
446,Revenue,CAHD,Jointly Funded H&SC Packages,Permanent Nursing,Bupa Care Services  Bridge House,4400.48, 24-Oct-2017
447,Revenue,CAHD,South Glos Users in all other LA Homes,Permanent Nursing,Bupa Care Services  Bridge House,853.28, 24-Oct-2017
448,Revenue,CAHD,Cambrian Green Day Service,Catering - Client Meals/Pupil Sch. Meals,Cambrian Court Dining,517.00, 30-Oct-2017
449,Revenue,CAHD,Cambrian Green Day Service,Catering - Client Meals/Pupil Sch. Meals,Cambrian Court Dining,506.00, 02-Oct-2017
450,Revenue,CAHD,Cambrian Green Day Service,Catering - Client Meals/Pupil Sch. Meals,Cambrian Court Dining,500.50, 30-Oct-2017
451,Revenue,CAHD,Cambrian Green Day Service,Catering - Client Meals/Pupil Sch. Meals,Cambrian Court Dining,522.50, 02-Oct-2017
452,Revenue,CAHD,Cambrian Green Day Service,Catering - Client Meals/Pupil Sch. Meals,Cambrian Court Dining,528.00, 18-Oct-2017
453,Revenue,CAHD,Cambrian Green Day Service,Catering - Client Meals/Pupil Sch. Meals,Cambrian Court Dining,561.00, 18-Oct-2017
454,Revenue,CAHD,Home Care - Elderly - North,Day Care / Social Activities,Camphill Communities Thornbury Limited,1041.30, 06-Oct-2017
455,Revenue,CAHD,Home Care - Elderly - North,Other Small Contracts,Camphill Communities Thornbury Limited,160.20, 06-Oct-2017
456,Revenue,CAHD,Home Care - Elderly - North,Supported Living,Camphill Communities Thornbury Limited,796.55, 06-Oct-2017
457,Revenue,CAHD,Home Care - Elderly - North,Day Care / Social Activities,Camphill Communities Thornbury Limited,1072.45, 13-Oct-2017
458,Revenue,CAHD,Home Care - Elderly - North,Other Small Contracts,Camphill Communities Thornbury Limited,160.20, 13-Oct-2017
459,Revenue,CAHD,Home Care - Elderly - North,Supported Living,Camphill Communities Thornbury Limited,979.00, 13-Oct-2017
460,Revenue,CAHD,Home Care - Elderly - North,Day Care / Social Activities,Camphill Communities Thornbury Limited,965.65, 20-Oct-2017
461,Revenue,CAHD,Home Care - Elderly - North,Other Small Contracts,Camphill Communities Thornbury Limited,160.20, 20-Oct-2017
462,Revenue,CAHD,Home Care - Elderly - North,Supported Living,Camphill Communities Thornbury Limited,987.90, 20-Oct-2017
463,Revenue,CAHD,Home Care - Elderly - North,Day Care / Social Activities,Camphill Communities Thornbury Limited,1072.45, 27-Oct-2017
464,Revenue,CAHD,Home Care - Elderly - North,Other Small Contracts,Camphill Communities Thornbury Limited,164.65, 27-Oct-2017
465,Revenue,CAHD,Home Care - Elderly - North,Supported Living,Camphill Communities Thornbury Limited,854.40, 27-Oct-2017
466,Revenue,CAHD,Bed Purchasing - Elderly S117- North,Permanent Residential,Canjayor,2422.40, 24-Oct-2017
467,Revenue,CAHD,Home Care - Elderly - South,Other Small Contracts,Care 1st Homecare,2769.92, 27-Oct-2017
468,Revenue,CAHD,Home Care - Elderly - North,Other Small Contracts,Care 1st Homecare,4912.06, 27-Oct-2017
469,Revenue,CAHD,Home Care - Elderly - South,Other Small Contracts,Care 1st Homecare,2818.80, 27-Oct-2017
470,Revenue,CAHD,Home Care - Elderly - North,Other Small Contracts,Care 1st Homecare,3418.24, 27-Oct-2017
471,Revenue,CAHD,Community Support - South,Preventative Assistance,Care Futures,1188.00, 18-Oct-2017
472,Revenue,CAHD,Home Care - Elderly - South,Other Small Contracts,Care Horizons Limited,794.64, 04-Oct-2017
473,Revenue,CAHD,Home Care - Elderly - North,Day Care / Social Activities,Care Horizons Limited,388.08, 04-Oct-2017
474,Revenue,CAHD,Home Care - Elderly - North,Other Small Contracts,Care Horizons Limited,92.40, 04-Oct-2017
475,Revenue,CAHD,Home care - Elderly MH - North,Other Small Contracts,Care Horizons Limited,147.84, 04-Oct-2017
476,Revenue,CAHD,Home Care - Elderly - South,Other Small Contracts,Care Horizons Limited,845.46, 16-Oct-2017
477,Revenue,CAHD,Home Care - Elderly - North,Day Care / Social Activities,Care Horizons Limited,388.08, 16-Oct-2017
478,Revenue,CAHD,Home Care - Elderly - North,Other Small Contracts,Care Horizons Limited,207.90, 16-Oct-2017
479,Revenue,CAHD,Home care - Elderly MH - North,Other Small Contracts,Care Horizons Limited,138.60, 16-Oct-2017
480,Revenue,CAHD,Home Care - Elderly - South,Other Small Contracts,Care Horizons Limited,859.32, 17-Oct-2017
481,Revenue,CAHD,Home Care - Elderly - North,Day Care / Social Activities,Care Horizons Limited,388.08, 17-Oct-2017
482,Revenue,CAHD,Home Care - Elderly - North,Other Small Contracts,Care Horizons Limited,369.60, 17-Oct-2017
483,Revenue,CAHD,Home care - Elderly MH - North,Other Small Contracts,Care Horizons Limited,184.80, 17-Oct-2017
484,Revenue,CAHD,Home Care - Elderly - South,Other Small Contracts,Care Horizons Limited,919.38, 20-Oct-2017
485,Revenue,CAHD,Home Care - Elderly - North,Day Care / Social Activities,Care Horizons Limited,392.70, 20-Oct-2017
486,Revenue,CAHD,Home Care - Elderly - North,Other Small Contracts,Care Horizons Limited,341.88, 20-Oct-2017
487,Revenue,CAHD,Home care - Elderly MH - North,Other Small Contracts,Care Horizons Limited,189.42, 20-Oct-2017
488,Revenue,CAHD,Home Care - Elderly - South,Other Small Contracts,Carers R Us (Bristol) Limited,331.52, 04-Oct-2017
489,Revenue,CAHD,Home Care - Elderly - North,Other Small Contracts,Carers R Us (Bristol) Limited,2224.68, 04-Oct-2017
490,Revenue,CAHD,Home Care - Elderly - South,Other Small Contracts,Carers R Us (Bristol) Limited,340.48, 04-Oct-2017
491,Revenue,CAHD,Home Care - Elderly - North,Other Small Contracts,Carers R Us (Bristol) Limited,2198.74, 04-Oct-2017
492,Revenue,CAHD,Home Care - Elderly - South,Other Small Contracts,Carers R Us (Bristol) Limited,313.60, 12-Oct-2017
493,Revenue,CAHD,Home Care - Elderly - North,Other Small Contracts,Carers R Us (Bristol) Limited,2212.18, 12-Oct-2017
494,Revenue,CAHD,Home Care - Elderly - South,Other Small Contracts,Caring Comes 1st Ltd,976.80, 10-Oct-2017
495,Revenue,CAHD,Home Care - Elderly - South,Other Small Contracts,Caring Comes 1st Ltd,1110.00, 04-Oct-2017
496,Revenue,CAHD,Home Care - Elderly - South,Other Small Contracts,Caring Comes 1st Ltd,610.50, 26-Oct-2017
497,Revenue,CAHD,Home Care - Elderly - South,Other Small Contracts,Caring Comes 1st Ltd,2175.60, 04-Oct-2017
498,Revenue,CAHD,Home Care - Elderly - South,Other Small Contracts,Caring Comes 1st Ltd,976.80, 10-Oct-2017
499,Revenue,CAHD,Home Care - Elderly - South,Other Small Contracts,Caring Comes 1st Ltd,743.70, 04-Oct-2017
500,Revenue,CAHD,Home Care - Elderly - North,Other Small Contracts,Caring Comes 1st Ltd,621.60, 09-Oct-2017
501,Revenue,CAHD,Home Care - Elderly - South,Other Small Contracts,Caring Comes 1st Ltd,777.00, 10-Oct-2017
502,Revenue,CAHD,Home Care - Elderly - South,Other Small Contracts,Caring Comes 1st Ltd,666.00, 06-Oct-2017
503,Revenue,CAHD,Home Care - Elderly - South,Other Small Contracts,Caring Comes 1st Ltd,1970.25, 13-Oct-2017
504,Revenue,CAHD,Home Care - Elderly - South,Other Small Contracts,Caring Comes 1st Ltd,688.20, 13-Oct-2017
505,Revenue,CAHD,Home Care - Elderly - South,Other Small Contracts,Caring Comes 1st Ltd,1287.60, 24-Oct-2017
506,Revenue,CAHD,Home Care - Elderly - South,Other Small Contracts,Caring Comes 1st Ltd,2197.80, 26-Oct-2017
507,Revenue,CAHD,Home Care - Elderly - South,Other Small Contracts,Caring Comes 1st Ltd,621.60, 27-Oct-2017
508,Revenue,CAHD,Home Care - Elderly - North,Other Small Contracts,Caring Comes 1st Ltd,621.60, 16-Oct-2017
509,Revenue,CAHD,Home Care - Elderly - North,Other Small Contracts,Caring Comes 1st Ltd,1043.40, 16-Oct-2017
510,Revenue,CAHD,Home Care - Elderly - North,Other Small Contracts,Caring Comes 1st Ltd,1093.35, 16-Oct-2017
511,Revenue,CAHD,Home Care - Elderly - South,Other Small Contracts,Caring Comes 1st Ltd,888.00, 23-Oct-2017
512,Revenue,CAHD,Home Care - Elderly - South,Other Small Contracts,Caring Comes 1st Ltd,1110.00, 16-Oct-2017
513,Revenue,CAHD,Home Care - Elderly - South,Other Small Contracts,Caring Comes 1st Ltd,954.60, 24-Oct-2017
514,Revenue,CAHD,Home Care - Elderly - South,Other Small Contracts,Caring Comes 1st Ltd,777.00, 27-Oct-2017
515,Revenue,CAHD,Home Care - Elderly - South,Other Small Contracts,Caring Comes 1st Ltd,599.40, 27-Oct-2017
516,Revenue,CAHD,Home Care - Elderly - North,Other Small Contracts,Caring Comes 1st Ltd,532.80, 27-Oct-2017
517,Revenue,CAHD,Home Care - Elderly - South,Other Small Contracts,Caring Comes 1st Ltd,2075.70, 27-Oct-2017
518,Revenue,CAHD,Home Care - Elderly - North,Day Care / Social Activities,Causeway House,2951.04, 24-Oct-2017
519,Revenue,CAHD,Home Care - Elderly - South,Day Care / Social Activities,Causeway House,5034.88, 24-Oct-2017
520,Revenue,CAHD,Home Care - Elderly - North,Day Care / Social Activities,Causeway House,4311.60, 24-Oct-2017
521,Revenue,CAHD,Home Care - Elderly - North,Day Care / Social Activities,Causeway House,1089.68, 24-Oct-2017
522,Revenue,CAHD,Home Care - Elderly - North,Day Care / Social Activities,Causeway House,3729.92, 24-Oct-2017
523,Revenue,CAHD,Home Care - Elderly - North,Day Care / Social Activities,Causeway House,1991.36, 24-Oct-2017
524,Revenue,CAHD,Home Care - Elderly - North,Day Care / Social Activities,Causeway House,3092.16, 24-Oct-2017
525,Revenue,CAHD,Home Care - Elderly - North,Day Care / Social Activities,Causeway House,4606.72, 24-Oct-2017
526,Revenue,CAHD,Home Care - Elderly - North,Day Care / Social Activities,Causeway House,1050.12, 24-Oct-2017
527,Revenue,CAHD,Home Care - Elderly - North,Day Care / Social Activities,Causeway House,2625.30, 24-Oct-2017
528,Revenue,CAHD,Home Care - Elderly - North,Day Care / Social Activities,Causeway House,1634.40, 24-Oct-2017
529,Revenue,CAHD,Home Care - Elderly - North,Day Care / Social Activities,Causeway House,3018.24, 24-Oct-2017
530,Revenue,CAHD,Bed Purchasing - Elderly S117- North,Permanent Nursing,Cedar Care Homes Limited,4352.00, 24-Oct-2017
531,Revenue,CAHD,Bed Purchasing - North,Permanent Residential,Charlton House,1886.24, 24-Oct-2017
532,Revenue,CAHD,Home Care - Elderly - South,Other Small Contracts,Cherish Able Care Limited,8575.41, 05-Oct-2017
533,Revenue,CAHD,Home Care - Elderly - North,Other Small Contracts,Cherish Able Care Limited,4353.72, 05-Oct-2017
534,Revenue,CAHD,Home Care - Elderly - South,Other Small Contracts,Cherish Able Care Limited,8396.21, 12-Oct-2017
535,Revenue,CAHD,Home Care - Elderly - North,Other Small Contracts,Cherish Able Care Limited,4554.34, 12-Oct-2017
536,Revenue,CAHD,Home Care - Elderly - South,Other Small Contracts,Cherish Able Care Limited,8337.97, 20-Oct-2017
537,Revenue,CAHD,Home Care - Elderly - North,Other Small Contracts,Cherish Able Care Limited,4617.28, 20-Oct-2017
538,Revenue,CAHD,Home Care - Elderly - South,Other Small Contracts,Cherish Able Care Limited,8293.17, 26-Oct-2017
539,Revenue,CAHD,Home Care - Elderly - North,Other Small Contracts,Cherish Able Care Limited,4621.25, 26-Oct-2017
540,Revenue,CAHD,Bed purchasing -S28A  Under 65 - North,Permanent Residential,Chescombe Lodge,9357.80, 24-Oct-2017
541,Revenue,CAHD,18-25 Year Olds,Permanent Residential,Chosen Care Ltd  Citibase Watford,7689.72, 24-Oct-2017
542,Revenue,CAHD,Bed Purchasing - Elderly S117- North,Permanent Residential,Chosen Care Ltd  Citibase Watford,5060.64, 24-Oct-2017
543,Revenue,CAHD,Jointly Funded H&SC Packages,Permanent Residential,Chosen Care Ltd  Citibase Watford,5060.64, 24-Oct-2017
544,Revenue,CAHD,18-25 Year Olds,Permanent Residential,Chosen Care Ltd  Citibase Watford,6073.44, 24-Oct-2017
545,Revenue,CAHD,Bed Purchasing - Southmead Hospital,Permanent Nursing,Churchill Property Services,2249.92, 24-Oct-2017
546,Revenue,CAHD,Home Care - Elderly - South,Other Small Contracts,Cintre,560.40, 12-Oct-2017
547,Revenue,CAHD,Home Care - Elderly - North,Day Care / Social Activities,Cintre,112.08, 12-Oct-2017
548,Revenue,CAHD,Home Care - Elderly - North,Other Small Contracts,Cintre,312.89, 12-Oct-2017
549,Revenue,CAHD,Home Care - Elderly - South,Other Small Contracts,Cintre,560.40, 12-Oct-2017
550,Revenue,CAHD,Home Care - Elderly - North,Day Care / Social Activities,Cintre,126.09, 12-Oct-2017
551,Revenue,CAHD,Home Care - Elderly - North,Other Small Contracts,Cintre,392.28, 12-Oct-2017
552,Revenue,CAHD,Home Care - Elderly - South,Other Small Contracts,Cintre,593.09, 27-Oct-2017
553,Revenue,CAHD,Home Care - Elderly - North,Day Care / Social Activities,Cintre,102.74, 27-Oct-2017
554,Revenue,CAHD,Home Care - Elderly - North,Other Small Contracts,Cintre,261.52, 27-Oct-2017
555,Revenue,CAHD,Training - Adult Services,Training Expenses,City & Guilds,3678.00, 26-Oct-2017
556,Revenue,CAHD,MH Purchasing - Younger,Permanent Residential,Claro Homes,2207.44, 24-Oct-2017
557,Revenue,CAHD,Section 117 Placements MH Younger,Permanent Residential,Claro Homes,3406.56, 24-Oct-2017
558,Revenue,CAHD,Bed Purchasing - South,Permanent Residential,Cleeve Lodge,1232.16, 24-Oct-2017
559,Revenue,CAHD,Bed Purchasing - Southmead Hospital,Permanent Residential,Cleeve Lodge,2800.00, 24-Oct-2017
560,Revenue,CAHD,Bed Purchasing - North,Respite Planned - Residential,Cleeve Lodge,3000.00, 24-Oct-2017
561,Revenue,CAHD,Bed Purchasing - South,Permanent Residential,Cleeve Lodge,2957.96, 24-Oct-2017
562,Revenue,CAHD,Bed Purchasing - South,Permanent Residential,Cleeve Lodge,2361.60, 24-Oct-2017
563,Revenue,CAHD,Bed Purchasing - South,Permanent Residential,Cleeve Lodge,2735.12, 24-Oct-2017
564,Revenue,CAHD,Bed Purchasing - South,Permanent Residential,Cleeve Lodge,2525.84, 24-Oct-2017
565,Revenue,CAHD,Bed Purchasing - South,Permanent Residential,Cleeve Lodge,2486.76, 24-Oct-2017
566,Revenue,CAHD,Bed Purchasing - South,Permanent Residential,Clerkenleap Barn,6079.80, 24-Oct-2017
567,Revenue,CAHD,Bed Purchasing - South,Permanent Residential,Collingwood Residential Home,2147.96, 24-Oct-2017
568,Revenue,CAHD,Bed Purchasing - Southmead Hospital,Permanent Residential,Collingwood Residential Home,2431.20, 24-Oct-2017
569,Revenue,CAHD,Bed Purchasing - South,Permanent Residential,Collingwood Residential Home,2329.92, 24-Oct-2017
570,Revenue,CAHD,Bed Purchasing - South,Permanent Residential,Collingwood Residential Home,2320.00, 24-Oct-2017
571,Revenue,CAHD,Bed Purchasing - Southmead Hospital,Permanent Residential,Collingwood Residential Home,2350.16, 24-Oct-2017
572,Revenue,CAHD,Bed Purchasing - South,Respite Planned - Residential,Collingwood Residential Home,5141.43, 24-Oct-2017
573,Revenue,CAHD,Bed Purchasing - South,Permanent Residential,Collingwood Residential Home,6490.00, 24-Oct-2017
574,Revenue,CAHD,Bed Purchasing - South,Permanent Residential,Collingwood Residential Home,2360.00, 24-Oct-2017
575,Revenue,CAHD,Bed Purchasing - South,Respite Planned - Residential,Collingwood Residential Home,590.00, 24-Oct-2017
576,Revenue,CAHD,Bed Purchasing - South,Permanent Residential,Collingwood Residential Home,2016.16, 24-Oct-2017
577,Revenue,CAHD,Bed Purchasing - South,Permanent Nursing,Community Integrated Care,1901.96, 24-Oct-2017
578,Revenue,CAHD,Training - Adult Services,Training Expenses,ComputerWorld Systems Limited,3337.50, 05-Oct-2017
579,Revenue,CAHD,Bed and Breakfast,Bed & Breakfast,Connolly & Callaghan Limited,455.00, 02-Oct-2017
580,Revenue,CAHD,Bed and Breakfast,Bed & Breakfast,Connolly & Callaghan Limited,532.00, 10-Oct-2017
581,Revenue,CAHD,Bed and Breakfast,Bed & Breakfast,Connolly & Callaghan Limited,539.00, 10-Oct-2017
582,Revenue,CAHD,Bed and Breakfast,Bed & Breakfast,Connolly & Callaghan Limited,455.00, 10-Oct-2017
583,Revenue,CAHD,Bed and Breakfast,Bed & Breakfast,Connolly & Callaghan Limited,490.00, 10-Oct-2017
584,Revenue,CAHD,Bed and Breakfast,Bed & Breakfast,Connolly & Callaghan Limited,490.00, 10-Oct-2017
585,Revenue,CAHD,Bed and Breakfast,Bed & Breakfast,Connolly & Callaghan Limited,455.00, 10-Oct-2017
586,Revenue,CAHD,Bed and Breakfast,Bed & Breakfast,Connolly & Callaghan Limited,581.00, 10-Oct-2017
587,Revenue,CAHD,Bed and Breakfast,Bed & Breakfast,Connolly & Callaghan Limited,721.00, 10-Oct-2017
588,Revenue,CAHD,Bed and Breakfast,Bed & Breakfast,Connolly & Callaghan Limited,532.00, 13-Oct-2017
589,Revenue,CAHD,Bed and Breakfast,Bed & Breakfast,Connolly & Callaghan Limited,539.00, 13-Oct-2017
590,Revenue,CAHD,Bed and Breakfast,Bed & Breakfast,Connolly & Callaghan Limited,455.00, 13-Oct-2017
591,Revenue,CAHD,Bed and Breakfast,Bed & Breakfast,Connolly & Callaghan Limited,497.00, 13-Oct-2017
592,Revenue,CAHD,Bed and Breakfast,Bed & Breakfast,Connolly & Callaghan Limited,490.00, 13-Oct-2017
593,Revenue,CAHD,Bed and Breakfast,Bed & Breakfast,Connolly & Callaghan Limited,490.00, 13-Oct-2017
594,Revenue,CAHD,Bed and Breakfast,Bed & Breakfast,Connolly & Callaghan Limited,455.00, 13-Oct-2017
595,Revenue,CAHD,Bed and Breakfast,Bed & Breakfast,Connolly & Callaghan Limited,581.00, 13-Oct-2017
596,Revenue,CAHD,Bed and Breakfast,Bed & Breakfast,Connolly & Callaghan Limited,721.00, 13-Oct-2017
597,Revenue,CAHD,Bed and Breakfast,Bed & Breakfast,Connolly & Callaghan Limited,532.00, 23-Oct-2017
598,Revenue,CAHD,Bed and Breakfast,Bed & Breakfast,Connolly & Callaghan Limited,539.00, 23-Oct-2017
599,Revenue,CAHD,Bed and Breakfast,Bed & Breakfast,Connolly & Callaghan Limited,455.00, 23-Oct-2017
600,Revenue,CAHD,Bed and Breakfast,Bed & Breakfast,Connolly & Callaghan Limited,420.00, 23-Oct-2017
601,Revenue,CAHD,Bed and Breakfast,Bed & Breakfast,Connolly & Callaghan Limited,497.00, 24-Oct-2017
602,Revenue,CAHD,Bed and Breakfast,Bed & Breakfast,Connolly & Callaghan Limited,490.00, 23-Oct-2017
603,Revenue,CAHD,Bed and Breakfast,Bed & Breakfast,Connolly & Callaghan Limited,455.00, 24-Oct-2017
604,Revenue,CAHD,Bed and Breakfast,Bed & Breakfast,Connolly & Callaghan Limited,581.00, 23-Oct-2017
605,Revenue,CAHD,Bed and Breakfast,Bed & Breakfast,Connolly & Callaghan Limited,721.00, 23-Oct-2017
606,Revenue,CAHD,Bed and Breakfast,Bed & Breakfast,Connolly & Callaghan Limited,532.00, 30-Oct-2017
607,Revenue,CAHD,Bed and Breakfast,Bed & Breakfast,Connolly & Callaghan Limited,490.00, 30-Oct-2017
608,Revenue,CAHD,Bed and Breakfast,Bed & Breakfast,Connolly & Callaghan Limited,497.00, 30-Oct-2017
609,Revenue,CAHD,Bed and Breakfast,Bed & Breakfast,Connolly & Callaghan Limited,455.00, 30-Oct-2017
610,Revenue,CAHD,Bed and Breakfast,Bed & Breakfast,Connolly & Callaghan Limited,581.00, 30-Oct-2017
611,Revenue,CAHD,Bed and Breakfast,Bed & Breakfast,Connolly & Callaghan Limited,721.00, 30-Oct-2017
612,Revenue,CAHD,Bed Purchasing - North,Permanent Residential,Cream Iii Ltd,8284.00, 24-Oct-2017
613,Revenue,CAHD,Bed purchasing -S28A  Under 65 - North,Permanent Residential,Creedy Court,10156.60, 24-Oct-2017
614,Revenue,CAHD,Bed Purchasing - S28A - Over 65- North,Permanent Residential,Creedy Court,8534.04, 24-Oct-2017
615,Revenue,CAHD,Bed Purchasing - North,Permanent Residential,Creedy Court,13468.68, 24-Oct-2017
616,Revenue,CAHD,NTS Grant - Trainee Social Wor,Training Expenses,Cruidin Training and Consultancy Ltd,2107.70, 02-Oct-2017
617,Revenue,CAHD,Bed Purchasing - South,Permanent Residential,Daneswood,11757.84, 24-Oct-2017
618,Revenue,CAHD,Home Care - Elderly - South,Day Care / Social Activities,Daneswood,1354.56, 24-Oct-2017
619,Revenue,CAHD,Bed Purchasing - North,Permanent Residential,Daneswood,9836.56, 24-Oct-2017
620,Revenue,CAHD,Bed Purchasing - Elderly S117- North,Permanent Nursing,Danshell Healthcare Group,10419.44, 24-Oct-2017
621,Revenue,CAHD,Jointly Funded H&SC Packages,Permanent Nursing,Danshell Healthcare Group,1546.12, 24-Oct-2017
622,Revenue,CAHD,Learning Difficulties PSL,Other Supplies & Services,Individual,2105.50, 20-Oct-2017
623,Revenue,CAHD,Care Management Team - North,Legal Fees,Individual,3655.50, 16-Oct-2017
624,Revenue,CAHD,Home Care - Elderly - South,Supported Living,Design House,2746.28, 24-Oct-2017
625,Revenue,CAHD,Home Care - Elderly - South,Supported Living,Design House,2935.76, 24-Oct-2017
626,Revenue,CAHD,Home Care - Elderly - South,Supported Living,Design House,3002.60, 24-Oct-2017
627,Revenue,CAHD,Home Care - Elderly - South,Supported Living,Design House,2868.88, 24-Oct-2017
628,Revenue,CAHD,18-25 Year Olds,Supported Living,Design House,1599.92, 24-Oct-2017
629,Revenue,CAHD,Home Care - Elderly - North,Day Care / Social Activities,Design House,2339.44, 24-Oct-2017
630,Revenue,CAHD,Home Care - Elderly - South,Day Care / Social Activities,Design House,1471.60, 24-Oct-2017
631,Revenue,CAHD,Home Care - Elderly - South,Supported Living,Design House,2528.96, 24-Oct-2017
632,Revenue,CAHD,Home Care - Elderly - South,Supported Living,Design House,2528.96, 24-Oct-2017
633,Revenue,CAHD,Home Care - Elderly - South,Supported Living,Design House,2060.00, 24-Oct-2017
634,Revenue,CAHD,Home Care - Elderly - South,Supported Living,Design House,1817.72, 24-Oct-2017
635,Revenue,CAHD,Home Care - Elderly - South,Supported Living,Design House,2412.00, 24-Oct-2017
636,Revenue,CAHD,Home Care - Elderly - South,Supported Living,Design House,4128.16, 24-Oct-2017
637,Revenue,CAHD,Home Care - Elderly - South,Supported Living,Design House,2927.36, 24-Oct-2017
638,Revenue,CAHD,Home Care - Elderly - South,Day Care / Social Activities,Design House,1431.60, 24-Oct-2017
639,Revenue,CAHD,Home Care - Elderly - South,Supported Living,Design House,2779.72, 24-Oct-2017
640,Revenue,CAHD,Home Care - Elderly - South,Supported Living,Design House,2829.88, 24-Oct-2017
641,Revenue,CAHD,Home Care - Elderly - South,Supported Living,Design House,2163.68, 24-Oct-2017
642,Revenue,CAHD,Home Care - Elderly - South,Supported Living,Design House,1817.72, 24-Oct-2017
643,Revenue,CAHD,Home Care - Elderly - South,Supported Living,Design House,2163.68, 24-Oct-2017
644,Revenue,CAHD,Bed Purchasing - South,Permanent Residential,Devon & Cornwall Autistic Community Trus,9526.04, 24-Oct-2017
645,Revenue,CAHD,Home Care - Elderly - South,Other Small Contracts,Dhek Bhal,619.92, 16-Oct-2017
646,Revenue,CAHD,Home Care - Elderly - North,Other Small Contracts,Dhek Bhal,40.32, 16-Oct-2017
647,Revenue,CAHD,Home Care - Elderly - South,Other Small Contracts,Dhek Bhal,665.28, 16-Oct-2017
648,Revenue,CAHD,Home Care - Elderly - North,Other Small Contracts,Dhek Bhal,40.32, 16-Oct-2017
649,Revenue,CAHD,Home Care - Elderly - South,Other Small Contracts,Dhek Bhal,529.20, 16-Oct-2017
650,Revenue,CAHD,Home Care - Elderly - North,Other Small Contracts,Dhek Bhal,40.32, 16-Oct-2017
651,Revenue,CAHD,Home Care - Elderly - South,Other Small Contracts,Dhek Bhal,569.52, 27-Oct-2017
652,Revenue,CAHD,Home Care - Elderly - North,Other Small Contracts,Dhek Bhal,120.96, 27-Oct-2017
653,Revenue,CAHD,Bed Purchasing - South,Permanent Residential,Dimensions  Suite 2,5396.28, 24-Oct-2017
654,Revenue,CAHD,Bed Purchasing - South,Permanent Residential,Dimensions  Suite 2,2689.28, 24-Oct-2017
655,Revenue,CAHD,Home Care - Elderly - North,Supported Living,Dimensions Suite 2,1823.24, 24-Oct-2017
656,Revenue,CAHD,Home Care - Elderly - South,Supported Living,Dimensions Suite 2,1823.24, 24-Oct-2017
657,Revenue,CAHD,Home Care - Elderly - South,Supported Living,Dimensions Suite 2,1823.24, 24-Oct-2017
658,Revenue,CAHD,Home Care - Elderly - South,Supported Living,Dimensions Suite 2,1823.24, 24-Oct-2017
659,Revenue,CAHD,Home Care - Elderly - North,Supported Living,Dimensions Suite 2,1823.24, 24-Oct-2017
660,Revenue,CAHD,Training - Adult Services,Training Expenses,Do The Write Thing,850.00, 16-Oct-2017
661,Revenue,CAHD,Home Care - Elderly - South,Day Care / Social Activities,DoCare Ltd,72.38, 04-Oct-2017
662,Revenue,CAHD,Home Care - Elderly - South,Other Small Contracts,DoCare Ltd,1005.46, 04-Oct-2017
663,Revenue,CAHD,Home Care - Elderly - North,Other Small Contracts,DoCare Ltd,5764.20, 04-Oct-2017
664,Revenue,CAHD,Home Care - Elderly - South,Day Care / Social Activities,DoCare Ltd,77.55, 12-Oct-2017
665,Revenue,CAHD,Home Care - Elderly - South,Other Small Contracts,DoCare Ltd,1098.01, 12-Oct-2017
666,Revenue,CAHD,Home Care - Elderly - North,Other Small Contracts,DoCare Ltd,6006.54, 12-Oct-2017
667,Revenue,CAHD,Home Care - Elderly - South,Day Care / Social Activities,DoCare Ltd,72.38, 12-Oct-2017
668,Revenue,CAHD,Home Care - Elderly - South,Other Small Contracts,DoCare Ltd,1299.64, 12-Oct-2017
669,Revenue,CAHD,Home Care - Elderly - North,Other Small Contracts,DoCare Ltd,6111.03, 12-Oct-2017
670,Revenue,CAHD,Social Lettings Agency,Other Supplies & Services,Individual,605.64, 24-Oct-2017
671,Revenue,CAHD,Bed Purchasing - Southmead Hospital,Permanent Nursing,Drakes Court,2700.00, 24-Oct-2017
672,Revenue,CAHD,Bed Purchasing - North,Permanent Nursing,Drakes Court,2288.92, 24-Oct-2017
673,Revenue,CAHD,South Glos Users in South Glos Homes,Permanent Nursing,Drakes Court,620.20, 24-Oct-2017
674,Revenue,CAHD,Bed Purchasing - Southmead Hospital,Permanent Nursing,Drakes Court,8716.75, 24-Oct-2017
675,Revenue,CAHD,Bed Purchasing - Southmead Hospital,Permanent Nursing,Drakes Court,2780.00, 24-Oct-2017
676,Revenue,CAHD,South Glos Users in South Glos Homes,Permanent Nursing,Drakes Court,620.20, 24-Oct-2017
677,Revenue,CAHD,Bed Purchasing - North,Permanent Nursing,Drakes Court,2700.00, 24-Oct-2017
678,Revenue,CAHD,Bed Purchasing - Southmead Hospital,Permanent Nursing,Drakes Court,1945.28, 24-Oct-2017
679,Revenue,CAHD,South Glos Users in South Glos Homes,Permanent Nursing,Drakes Court,620.20, 24-Oct-2017
680,Revenue,CAHD,Bed Purchasing - South,Permanent Nursing,Drakes Court,2780.00, 24-Oct-2017
681,Revenue,CAHD,South Glos Users in South Glos Homes,Permanent Nursing,Drakes Court,620.20, 24-Oct-2017
682,Revenue,CAHD,Bed Purchasing - North,Respite Planned - Nursing,Drakes Court,2735.12, 24-Oct-2017
683,Revenue,CAHD,South Glos Users in South Glos Homes,Permanent Nursing,Drakes Court,620.20, 24-Oct-2017
684,Revenue,CAHD,South Glos Users in South Glos Homes,Permanent Nursing,Drakes Court,620.20, 24-Oct-2017
685,Revenue,CAHD,Bed Purchasing - North,Permanent Nursing,Drakes Court,1945.28, 24-Oct-2017
686,Revenue,CAHD,Bed Purchasing - Southmead Hospital,Permanent Nursing,Drakes Court,1945.28, 24-Oct-2017
687,Revenue,CAHD,South Glos Users in South Glos Homes,Permanent Nursing,Drakes Court,620.20, 24-Oct-2017
688,Revenue,CAHD,South Glos Users in South Glos Homes,Permanent Nursing,Drakes Court,620.20, 24-Oct-2017
689,Revenue,CAHD,South Glos Users in South Glos Homes,Permanent Nursing,Drakes Court,620.20, 24-Oct-2017
690,Revenue,CAHD,Bed Purchasing - North,Permanent Residential,Drakes Court,1886.24, 24-Oct-2017
691,Revenue,CAHD,Bed Purchasing - North,Permanent Nursing,Drakes Court,2283.32, 24-Oct-2017
692,Revenue,CAHD,South Glos Users in South Glos Homes,Permanent Nursing,Drakes Court,620.20, 24-Oct-2017
693,Revenue,CAHD,Bed Purchasing - North,Permanent Nursing,Drakes Court,2633.80, 24-Oct-2017
694,Revenue,CAHD,South Glos Users in South Glos Homes,Permanent Nursing,Drakes Court,620.20, 24-Oct-2017
695,Revenue,CAHD,South Glos Users in South Glos Homes,Permanent Nursing,Drakes Court,620.20, 24-Oct-2017
696,Revenue,CAHD,South Glos Users in South Glos Homes,Permanent Nursing,Drakes Court,620.20, 24-Oct-2017
697,Revenue,CAHD,South Glos Users in South Glos Homes,Permanent Nursing,Drakes Court,620.20, 24-Oct-2017
698,Revenue,CAHD,South Glos Users in South Glos Homes,Permanent Nursing,Drakes Court,620.20, 24-Oct-2017
699,Revenue,CAHD,Tenancy Start Up Scheme,Other Supplies & Services,DTZ Yate Shopping Centre,1687.00, 02-Oct-2017
700,Revenue,CAHD,MH Purchasing - Younger,Permanent Residential,Dunraven House,2272.96, 24-Oct-2017
701,Revenue,CAHD,Bed and Breakfast,Bed & Breakfast,Individual,602.00, 02-Oct-2017
702,Revenue,CAHD,Bed and Breakfast,Bed & Breakfast,Individual,567.00, 10-Oct-2017
703,Revenue,CAHD,Bed and Breakfast,Bed & Breakfast,Individual,464.00, 09-Oct-2017
704,Revenue,CAHD,Bed and Breakfast,Bed & Breakfast,Individual,441.00, 16-Oct-2017
705,Revenue,CAHD,Bed and Breakfast,Bed & Breakfast,Individual,441.00, 23-Oct-2017
706,Revenue,CAHD,Bed and Breakfast,Bed & Breakfast,Individual,441.00, 30-Oct-2017
707,Revenue,CAHD,Bed and Breakfast,Bed & Breakfast,Individual,860.00, 30-Oct-2017
708,Revenue,CAHD,Bed Purchasing - North,Permanent Residential,East Court,2648.48, 24-Oct-2017
709,Revenue,CAHD,Bed Purchasing - Southmead Hospital,Permanent Residential,Edgecumbe Lodge,2072.00, 24-Oct-2017
710,Revenue,CAHD,Bed Purchasing - South,Permanent Residential,Edgecumbe Lodge,2140.00, 24-Oct-2017
711,Revenue,CAHD,Bed Purchasing - Southmead Hospital,Permanent Residential,Edgecumbe Lodge,2431.20, 24-Oct-2017
712,Revenue,CAHD,Bed Purchasing - South,Permanent Residential,Edgecumbe Lodge,2156.24, 24-Oct-2017
713,Revenue,CAHD,Bed Purchasing - North,Permanent Residential,Edgecumbe Lodge,2320.48, 24-Oct-2017
714,Revenue,CAHD,Bed Purchasing - South,Permanent Residential,Edgecumbe Lodge,2400.00, 24-Oct-2017
715,Revenue,CAHD,Bed Purchasing - South,Permanent Residential,Edgecumbe Lodge,2156.24, 24-Oct-2017
716,Revenue,CAHD,Bed Purchasing - South,Permanent Residential,Edgecumbe Lodge,2431.20, 24-Oct-2017
717,Revenue,CAHD,Bed Purchasing - South,Permanent Residential,Edgecumbe Lodge,2400.00, 24-Oct-2017
718,Revenue,CAHD,Bed Purchasing - Southmead Hospital,Permanent Residential,Edgecumbe Lodge,2431.20, 24-Oct-2017
719,Revenue,CAHD,Bed Purchasing - North,Permanent Residential,Edgecumbe Lodge,2156.24, 24-Oct-2017
720,Revenue,CAHD,Bed Purchasing - South,Permanent Residential,Edgemont House Ltd,2228.60, 24-Oct-2017
721,Revenue,CAHD,Bed Purchasing - Southmead Hospital,Permanent Residential,Edgemont House Ltd,1879.20, 24-Oct-2017
722,Revenue,CAHD,Bed Purchasing - South,Permanent Residential,Edgemont House Ltd,2188.08, 24-Oct-2017
723,Revenue,CAHD,Bed Purchasing - South,Permanent Residential,Edgemont House Ltd,2013.32, 24-Oct-2017
724,Revenue,CAHD,South Glos Users in South Glos Homes,Permanent Nursing,Edgemont View Nursing Home,620.20, 24-Oct-2017
725,Revenue,CAHD,South Glos Users in South Glos Homes,Permanent Nursing,Edgemont View Nursing Home,620.20, 24-Oct-2017
726,Revenue,CAHD,South Glos Users in South Glos Homes,Permanent Nursing,Edgemont View Nursing Home,620.20, 24-Oct-2017
727,Revenue,CAHD,South Glos Users in South Glos Homes,Permanent Nursing,Edgemont View Nursing Home,620.20, 24-Oct-2017
728,Revenue,CAHD,Bed Purchasing - South,Permanent Nursing,Edgemont View Nursing Home,2917.44, 24-Oct-2017
729,Revenue,CAHD,South Glos Users in South Glos Homes,Permanent Nursing,Edgemont View Nursing Home,620.20, 24-Oct-2017
730,Revenue,CAHD,South Glos Users in South Glos Homes,Permanent Nursing,Edgemont View Nursing Home,620.20, 24-Oct-2017
731,Revenue,CAHD,South Glos Users in South Glos Homes,Permanent Nursing,Edgemont View Nursing Home,620.20, 24-Oct-2017
732,Revenue,CAHD,South Glos Users in South Glos Homes,Permanent Nursing,Edgemont View Nursing Home,620.20, 24-Oct-2017
733,Revenue,CAHD,South Glos Users in South Glos Homes,Permanent Nursing,Edgemont View Nursing Home,620.20, 24-Oct-2017
734,Revenue,CAHD,South Glos Users in South Glos Homes,Permanent Nursing,Edgemont View Nursing Home,620.20, 24-Oct-2017
735,Revenue,CAHD,South Glos Users in South Glos Homes,Permanent Nursing,Edgemont View Nursing Home,620.20, 24-Oct-2017
736,Revenue,CAHD,South Glos Users in South Glos Homes,Permanent Nursing,Edgemont View Nursing Home,620.20, 24-Oct-2017
737,Revenue,CAHD,South Glos Users in South Glos Homes,Permanent Nursing,Edgemont View Nursing Home,620.20, 24-Oct-2017
738,Revenue,CAHD,Bed Purchasing - South,Permanent Nursing,Edgemont View Nursing Home,2880.00, 24-Oct-2017
739,Revenue,CAHD,Bed Purchasing - South,Permanent Nursing,Edgemont View Nursing Home,2228.00, 24-Oct-2017
740,Revenue,CAHD,South Glos Users in South Glos Homes,Permanent Nursing,Edgemont View Nursing Home,620.20, 24-Oct-2017
741,Revenue,CAHD,South Glos Users in South Glos Homes,Permanent Nursing,Edgemont View Nursing Home,620.20, 24-Oct-2017
742,Revenue,CAHD,South Glos Users in South Glos Homes,Permanent Nursing,Edgemont View Nursing Home,620.20, 24-Oct-2017
743,Revenue,CAHD,South Glos Users in South Glos Homes,Permanent Nursing,Edgemont View Nursing Home,620.20, 24-Oct-2017
744,Revenue,CAHD,Planning and Partnerships Procurement,Other Supplies & Services,Eldercare,3050.61, 18-Oct-2017
745,Revenue,CAHD,Planning and Partnerships Procurement,Other Supplies & Services,Eldercare,3023.16, 30-Oct-2017
746,Revenue,CAHD,Home Care - Elderly - South,Day Care / Social Activities,Elite Home Care Ltd,181.60, 04-Oct-2017
747,Revenue,CAHD,Home Care - Elderly - South,Other Small Contracts,Elite Home Care Ltd,9021.54, 04-Oct-2017
748,Revenue,CAHD,Home Care - Elderly - North,Other Small Contracts,Elite Home Care Ltd,408.60, 04-Oct-2017
749,Revenue,CAHD,Home Care - Elderly - South,Day Care / Social Activities,Elite Home Care Ltd,190.68, 27-Oct-2017
750,Revenue,CAHD,Home Care - Elderly - South,Other Small Contracts,Elite Home Care Ltd,8502.46, 27-Oct-2017
751,Revenue,CAHD,Home Care - Elderly - North,Other Small Contracts,Elite Home Care Ltd,399.52, 27-Oct-2017
752,Revenue,CAHD,Home Care - Elderly - South,Day Care / Social Activities,Elite Home Care Ltd,190.68, 27-Oct-2017
753,Revenue,CAHD,Home Care - Elderly - South,Other Small Contracts,Elite Home Care Ltd,8239.14, 27-Oct-2017
754,Revenue,CAHD,Home Care - Elderly - South,Supported Living,Elite Home Care Ltd,54.48, 27-Oct-2017
755,Revenue,CAHD,Home Care - Elderly - North,Other Small Contracts,Elite Home Care Ltd,517.56, 27-Oct-2017
756,Revenue,CAHD,Bed Purchasing - North,Permanent Residential,Epworth House,2798.12, 24-Oct-2017
757,Revenue,CAHD,Learning Difficulties Development Fund,Other Supplies & Services,FACE,1375.00, 09-Oct-2017
758,Revenue,CAHD,South Glos Users in South Glos Homes,Permanent Nursing,Fairview Court,620.20, 24-Oct-2017
759,Revenue,CAHD,South Glos Users in South Glos Homes,Permanent Nursing,Fairview Court,620.20, 24-Oct-2017
760,Revenue,CAHD,South Glos Users in South Glos Homes,Permanent Nursing,Fairview Court,620.20, 24-Oct-2017
761,Revenue,CAHD,South Glos Users in South Glos Homes,Permanent Nursing,Fairview Court,620.20, 24-Oct-2017
762,Revenue,CAHD,Bed Purchasing - Southmead Hospital,Permanent Nursing,Fairview Court,3360.00, 24-Oct-2017
763,Revenue,CAHD,South Glos Users in South Glos Homes,Permanent Nursing,Fairview Court,620.20, 24-Oct-2017
764,Revenue,CAHD,Bed Purchasing - Southmead Hospital,Permanent Nursing,Fairview Court,3241.60, 24-Oct-2017
765,Revenue,CAHD,South Glos Users in South Glos Homes,Permanent Nursing,Fairview Court,620.20, 24-Oct-2017
766,Revenue,CAHD,South Glos Users in South Glos Homes,Permanent Nursing,Fairview Court,620.20, 24-Oct-2017
767,Revenue,CAHD,South Glos Users in South Glos Homes,Permanent Nursing,Fairview Court,620.20, 24-Oct-2017
768,Revenue,CAHD,Bed Purchasing - Southmead Hospital,Permanent Nursing,Fairview Court,3031.04, 24-Oct-2017
769,Revenue,CAHD,South Glos Users in South Glos Homes,Permanent Nursing,Fairview Court,620.20, 24-Oct-2017
770,Revenue,CAHD,Bed purchasing - Elderly S117 - South,Respite Planned - Nursing,Fairview Court,5100.00, 24-Oct-2017
771,Revenue,CAHD,Bed purchasing - Elderly S117 - South,Permanent Nursing,Fairview Court,4000.00, 24-Oct-2017
772,Revenue,CAHD,South Glos Users in South Glos Homes,Permanent Nursing,Fairview Court,620.20, 24-Oct-2017
773,Revenue,CAHD,Bed Purchasing - Southmead Hospital,Permanent Nursing,Fairview Court,3400.00, 24-Oct-2017
774,Revenue,CAHD,Bed Purchasing - Southmead Hospital,Permanent Nursing,Fairview Court,1700.00, 24-Oct-2017
775,Revenue,CAHD,Bed purchasing - Elderly S117 - South,Permanent Nursing,Fairview Court,3000.00, 24-Oct-2017
776,Revenue,CAHD,South Glos Users in South Glos Homes,Permanent Nursing,Fairview Court,620.20, 24-Oct-2017
777,Revenue,CAHD,South Glos Users in South Glos Homes,Permanent Nursing,Fairview Court,620.20, 24-Oct-2017
778,Revenue,CAHD,Bed Purchasing - South,Permanent Nursing,Fairview Court,3241.60, 24-Oct-2017
779,Revenue,CAHD,South Glos Users in South Glos Homes,Permanent Nursing,Fairview Court,620.20, 24-Oct-2017
780,Revenue,CAHD,South Glos Users in South Glos Homes,Permanent Nursing,Fairview Court,620.20, 24-Oct-2017
781,Revenue,CAHD,South Glos Users in South Glos Homes,Permanent Nursing,Fairview Court,620.20, 24-Oct-2017
782,Revenue,CAHD,Bed Purchasing - Southmead Hospital,Permanent Nursing,Fairview Court,3241.60, 24-Oct-2017
783,Revenue,CAHD,South Glos Users in South Glos Homes,Permanent Nursing,Fairview Court,620.20, 24-Oct-2017
784,Revenue,CAHD,Bed Purchasing - Southmead Hospital,Permanent Nursing,Fairview Court,3157.14, 24-Oct-2017
785,Revenue,CAHD,South Glos Users in South Glos Homes,Permanent Nursing,Fairview Court,1816.30, 24-Oct-2017
786,Revenue,CAHD,South Glos Users in South Glos Homes,Permanent Nursing,Fairview Court,620.20, 24-Oct-2017
787,Revenue,CAHD,South Glos Users in South Glos Homes,Permanent Nursing,Fairview Court,620.20, 24-Oct-2017
788,Revenue,CAHD,Bed Purchasing - Southmead Hospital,Permanent Nursing,Fairview Court,11900.00, 24-Oct-2017
789,Revenue,CAHD,Bed Purchasing - Southmead Hospital,Permanent Nursing,Fairview Court,3400.00, 24-Oct-2017
790,Revenue,CAHD,South Glos Users in South Glos Homes,Permanent Nursing,Fairview Court,620.20, 24-Oct-2017
791,Revenue,CAHD,South Glos Users in South Glos Homes,Permanent Nursing,Fairview Court,620.20, 24-Oct-2017
792,Revenue,CAHD,South Glos Users in South Glos Homes,Permanent Nursing,Fairview Court,620.20, 24-Oct-2017
793,Revenue,CAHD,South Glos Users in South Glos Homes,Permanent Nursing,Fairview Court,620.20, 24-Oct-2017
794,Revenue,CAHD,Bed Purchasing - North,Permanent Nursing,Fairview Court,5464.29, 24-Oct-2017
795,Revenue,CAHD,South Glos Users in South Glos Homes,Permanent Nursing,Fairview Court,1018.90, 24-Oct-2017
796,Revenue,CAHD,Bed Purchasing - Southmead Hospital,Permanent Nursing,Fairview Court,3400.00, 24-Oct-2017
797,Revenue,CAHD,Bed Purchasing - Southmead Hospital,Permanent Nursing,Fairview Court,850.00, 24-Oct-2017
798,Revenue,CAHD,South Glos Users in South Glos Homes,Permanent Nursing,Fairview Court,620.20, 24-Oct-2017
799,Revenue,CAHD,South Glos Users in South Glos Homes,Permanent Nursing,Fairview Court,620.20, 24-Oct-2017
800,Revenue,CAHD,Bed Purchasing - South,Permanent Nursing,Fairview Court,3000.00, 24-Oct-2017
801,Revenue,CAHD,South Glos Users in South Glos Homes,Permanent Nursing,Fairview Court,620.20, 24-Oct-2017
802,Revenue,CAHD,South Glos Users in South Glos Homes,Permanent Nursing,Fairview Court,620.20, 24-Oct-2017
803,Revenue,CAHD,Bed Purchasing - Southmead Hospital,Permanent Nursing,Fairview Court,3360.00, 24-Oct-2017
804,Revenue,CAHD,Bed Purchasing - Southmead Hospital,Permanent Nursing,Fairview Court,19792.86, 24-Oct-2017
805,Revenue,CAHD,Bed Purchasing - Southmead Hospital,Permanent Nursing,Fairview Court,3400.00, 24-Oct-2017
806,Revenue,CAHD,South Glos Users in South Glos Homes,Permanent Nursing,Fairview Court,620.20, 24-Oct-2017
807,Revenue,CAHD,South Glos Users in South Glos Homes,Permanent Nursing,Fairview Court,620.20, 24-Oct-2017
808,Revenue,CAHD,Bed purchasing - Elderly S117 - South,Permanent Residential,Fairview House,2058.04, 24-Oct-2017
809,Revenue,CAHD,Bed Purchasing - Southmead Hospital,Permanent Residential,Fairview House,2400.00, 24-Oct-2017
810,Revenue,CAHD,Bed Purchasing - South,Permanent Residential,Fairview House,2094.64, 24-Oct-2017
811,Revenue,CAHD,Bed Purchasing - South,Permanent Residential,Fairview House,1886.24, 24-Oct-2017
812,Revenue,CAHD,Bed Purchasing - South,Permanent Residential,Fairview House,2127.32, 24-Oct-2017
813,Revenue,CAHD,Bed Purchasing - South,Permanent Residential,Fairview House,1886.24, 24-Oct-2017
814,Revenue,CAHD,Bed Purchasing - South,Permanent Residential,Fairview House,1886.24, 24-Oct-2017
815,Revenue,CAHD,Bed Purchasing - South,Permanent Residential,Fairview House,1917.36, 24-Oct-2017
816,Revenue,CAHD,Bed Purchasing - South,Permanent Residential,Fairview House,2117.24, 24-Oct-2017
817,Revenue,CAHD,Bed Purchasing - North,Permanent Residential,Faith House,2633.80, 24-Oct-2017
818,Revenue,CAHD,Bed Purchasing - North,Permanent Residential,Faith House,2740.00, 24-Oct-2017
819,Revenue,CAHD,Bed Purchasing - North,Permanent Residential,Faith House,2544.29, 24-Oct-2017
820,Revenue,CAHD,South Glos Users in South Glos Homes,Permanent Nursing,Field House Care Home,620.20, 24-Oct-2017
821,Revenue,CAHD,Bed Purchasing - Southmead Hospital,Permanent Nursing,Field House Care Home,3261.88, 24-Oct-2017
822,Revenue,CAHD,Bed Purchasing - Southmead Hospital,Permanent Nursing,Field House Care Home,3280.00, 24-Oct-2017
823,Revenue,CAHD,Bed Purchasing - North,Permanent Nursing,Field House Care Home,3280.00, 24-Oct-2017
824,Revenue,CAHD,Bed Purchasing - Southmead Hospital,Permanent Nursing,Field House Care Home,1680.00, 24-Oct-2017
825,Revenue,CAHD,Bed Purchasing - North,Permanent Nursing,Field House Care Home,3360.00, 24-Oct-2017
826,Revenue,CAHD,Bed Purchasing - South,Respite Planned - Residential,Fieldview,750.00, 24-Oct-2017
827,Revenue,CAHD,Bed Purchasing - North,Permanent Residential,Fieldview,2836.40, 24-Oct-2017
828,Revenue,CAHD,Bed Purchasing - Elderly S117- North,Permanent Residential,Fieldview,4800.00, 24-Oct-2017
829,Revenue,CAHD,Bed Purchasing - Southmead Hospital,Respite Planned - Residential,Fieldview,1900.00, 24-Oct-2017
830,Revenue,CAHD,MH Purchasing - Younger,Permanent Nursing,Fieldview,5267.60, 24-Oct-2017
831,Revenue,CAHD,Bed Purchasing - South,Permanent Residential,Fig House,2836.40, 24-Oct-2017
832,Revenue,CAHD,Home Care - Elderly - South,Other Small Contracts,Firstpoint Homecare Ltd,981.20, 04-Oct-2017
833,Revenue,CAHD,Home Care - Elderly - North,Day Care / Social Activities,Firstpoint Homecare Ltd,132.00, 04-Oct-2017
834,Revenue,CAHD,Home Care - Elderly - South,Other Small Contracts,Firstpoint Homecare Ltd,800.80, 16-Oct-2017
835,Revenue,CAHD,Home Care - Elderly - North,Day Care / Social Activities,Firstpoint Homecare Ltd,145.20, 16-Oct-2017
836,Revenue,CAHD,Home Care - Elderly - South,Other Small Contracts,Firstpoint Homecare Ltd,836.00, 16-Oct-2017
837,Revenue,CAHD,Home Care - Elderly - North,Day Care / Social Activities,Firstpoint Homecare Ltd,132.00, 16-Oct-2017
838,Revenue,CAHD,Home Care - Elderly - South,Other Small Contracts,Firstpoint Homecare Ltd,822.80, 20-Oct-2017
839,Revenue,CAHD,Home Care - Elderly - North,Day Care / Social Activities,Firstpoint Homecare Ltd,132.00, 20-Oct-2017
840,Revenue,CAHD,Home Care - Elderly - South,Other Small Contracts,Firstpoint Homecare Ltd,818.40, 27-Oct-2017
841,Revenue,CAHD,Home Care - Elderly - North,Day Care / Social Activities,Firstpoint Homecare Ltd,127.60, 27-Oct-2017
842,Revenue,CAHD,Home Care - Elderly - South,Day Care / Social Activities,Fourways Care Limited,39.12, 04-Oct-2017
843,Revenue,CAHD,Home Care - Elderly - South,Other Small Contracts,Fourways Care Limited,6136.33, 04-Oct-2017
844,Revenue,CAHD,Home Care - Elderly - North,Other Small Contracts,Fourways Care Limited,4446.92, 04-Oct-2017
845,Revenue,CAHD,Younger MH non-res purchasing,Other Small Contracts,Fourways Care Limited,743.28, 04-Oct-2017
846,Revenue,CAHD,Home Care - Elderly - South,Day Care / Social Activities,Fourways Care Limited,39.12, 13-Oct-2017
847,Revenue,CAHD,Home Care - Elderly - South,Other Small Contracts,Fourways Care Limited,7089.88, 13-Oct-2017
848,Revenue,CAHD,Home Care - Elderly - North,Other Small Contracts,Fourways Care Limited,4627.85, 13-Oct-2017
849,Revenue,CAHD,Younger MH non-res purchasing,Other Small Contracts,Fourways Care Limited,709.05, 13-Oct-2017
850,Revenue,CAHD,Home Care - Elderly - South,Day Care / Social Activities,Fourways Care Limited,39.12, 16-Oct-2017
851,Revenue,CAHD,Home Care - Elderly - South,Other Small Contracts,Fourways Care Limited,6884.50, 16-Oct-2017
852,Revenue,CAHD,Home Care - Elderly - North,Other Small Contracts,Fourways Care Limited,4168.19, 16-Oct-2017
853,Revenue,CAHD,Younger MH non-res purchasing,Other Small Contracts,Fourways Care Limited,479.22, 16-Oct-2017
854,Revenue,CAHD,Home Care - Elderly - South,Day Care / Social Activities,Fourways Care Limited,78.24, 20-Oct-2017
855,Revenue,CAHD,Home Care - Elderly - South,Other Small Contracts,Fourways Care Limited,6703.57, 20-Oct-2017
856,Revenue,CAHD,Home Care - Elderly - North,Other Small Contracts,Fourways Care Limited,4197.53, 20-Oct-2017
857,Revenue,CAHD,Younger MH non-res purchasing,Other Small Contracts,Fourways Care Limited,772.62, 20-Oct-2017
858,Revenue,CAHD,Freeways,Permanent Residential,Freeways Trust Limited,3677.48, 19-Oct-2017
859,Revenue,CAHD,Freeways,Permanent Residential,Freeways Trust Limited,2364.64, 19-Oct-2017
860,Revenue,CAHD,Freeways,Permanent Residential,Freeways Trust Limited,2364.64, 19-Oct-2017
861,Revenue,CAHD,Freeways,Permanent Residential,Freeways Trust Limited,3441.12, 19-Oct-2017
862,Revenue,CAHD,Freeways,Permanent Residential,Freeways Trust Limited,2364.64, 19-Oct-2017
863,Revenue,CAHD,Freeways,Permanent Residential,Freeways Trust Limited,3491.60, 19-Oct-2017
864,Revenue,CAHD,Freeways,Permanent Residential,Freeways Trust Limited,2629.12, 19-Oct-2017
865,Revenue,CAHD,Freeways,Permanent Residential,Freeways Trust Limited,3649.08, 19-Oct-2017
866,Revenue,CAHD,Freeways,Permanent Residential,Freeways Trust Limited,2229.44, 19-Oct-2017
867,Revenue,CAHD,Freeways,Permanent Residential,Freeways Trust Limited,2792.80, 19-Oct-2017
868,Revenue,CAHD,Freeways,Permanent Residential,Freeways Trust Limited,3557.68, 19-Oct-2017
869,Revenue,CAHD,Freeways,Permanent Residential,Freeways Trust Limited,3122.76, 19-Oct-2017
870,Revenue,CAHD,Freeways,Permanent Residential,Freeways Trust Limited,2364.64, 19-Oct-2017
871,Revenue,CAHD,Freeways,Permanent Residential,Freeways Trust Limited,1798.11, 19-Oct-2017
872,Revenue,CAHD,Freeways,Permanent Residential,Freeways Trust Limited,719.25, 19-Oct-2017
873,Revenue,CAHD,Freeways,Permanent Residential,Freeways Trust Limited,1977.93, 19-Oct-2017
874,Revenue,CAHD,Freeways,Permanent Residential,Freeways Trust Limited,539.43, 19-Oct-2017
875,Revenue,CAHD,Freeways,Permanent Residential,Freeways Trust Limited,2517.36, 19-Oct-2017
876,Revenue,CAHD,Freeways,Permanent Residential,Freeways Trust Limited,539.43, 19-Oct-2017
877,Revenue,CAHD,Freeways,Permanent Residential,Freeways Trust Limited,1258.68, 19-Oct-2017
878,Revenue,CAHD,Home Care - Elderly - North,Other Small Contracts,Freeways Trust Limited,811.36, 04-Oct-2017
879,Revenue,CAHD,Home Care - Elderly - North,Other Small Contracts,Freeways Trust Limited,599.30, 10-Oct-2017
880,Revenue,CAHD,Home Care - Elderly - South,Other Small Contracts,Freeways Trust Limited,534.76, 11-Oct-2017
881,Revenue,CAHD,Home Care - Elderly - North,Other Small Contracts,Freeways Trust Limited,626.96, 11-Oct-2017
882,Revenue,CAHD,Home Care - Elderly - South,Other Small Contracts,Freeways Trust Limited,1180.16, 17-Oct-2017
883,Revenue,CAHD,Home Care - Elderly - North,Supported Living,Freeways Trust Ltd,810.40, 24-Oct-2017
884,Revenue,CAHD,Bed purchasing - S28A Under 65 - South,Permanent Residential,Freeways Trust Ltd,3592.40, 24-Oct-2017
885,Revenue,CAHD,Bed Purchasing - North,Permanent Residential,Freeways Trust Ltd,3606.68, 24-Oct-2017
886,Revenue,CAHD,Bed Purchasing - South,Permanent Residential,Freeways Trust Ltd,3825.16, 24-Oct-2017
887,Revenue,CAHD,Bed Purchasing - North,Permanent Residential,Freeways Trust Ltd,2888.32, 24-Oct-2017
888,Revenue,CAHD,Bed Purchasing - South,Permanent Residential,Freeways Trust Ltd,3043.64, 24-Oct-2017
889,Revenue,CAHD,Bed Purchasing - North,Permanent Residential,Freeways Trust Ltd,3190.00, 24-Oct-2017
890,Revenue,CAHD,Bed Purchasing - North,Permanent Residential,Freeways Trust Ltd,3818.20, 24-Oct-2017
891,Revenue,CAHD,18-25 Year Olds,Permanent Residential,Freeways Trust Ltd,3527.20, 24-Oct-2017
892,Revenue,CAHD,Section 117 Placements MH Younger,Permanent Residential,Freeways Trust Ltd,3200.00, 24-Oct-2017
893,Revenue,CAHD,Home Care - Elderly - North,Day Care / Social Activities,Frenchay Beckspool Building,864.00, 24-Oct-2017
894,Revenue,CAHD,Home Care - Elderly - South,Day Care / Social Activities,Frenchay Beckspool Building,864.00, 24-Oct-2017
895,Revenue,CAHD,Pathway 3 - (Complex Beds),Permanent Nursing,Frenchay House,3204.00, 17-Oct-2017
896,Revenue,CAHD,Bed Purchasing - Southmead Hospital,Permanent Nursing,Frenchay Park Nursing Home,3200.00, 24-Oct-2017
897,Revenue,CAHD,Bed Purchasing - Southmead Hospital,Permanent Residential,FSHC,2600.00, 24-Oct-2017
898,Revenue,CAHD,Bed Purchasing - Southmead Hospital,Permanent Residential,FSHC,2600.00, 24-Oct-2017
899,Revenue,CAHD,Bed Purchasing - Southmead Hospital,Fees & Charges Income - General,FSHC,801.30, 24-Oct-2017
900,Revenue,CAHD,Bed Purchasing - North,Permanent Residential,FSHC,2600.00, 24-Oct-2017
901,Revenue,CAHD,South Glos Users in South Glos Homes,Permanent Nursing,Fshc  1St Floor,620.20, 24-Oct-2017
902,Revenue,CAHD,Bed Purchasing - South,Permanent Nursing,Fshc  1St Floor,2621.16, 24-Oct-2017
903,Revenue,CAHD,South Glos Users in South Glos Homes,Permanent Nursing,Fshc  1St Floor,620.20, 24-Oct-2017
904,Revenue,CAHD,Bed Purchasing - South,Permanent Nursing,Fshc  1St Floor,2228.00, 24-Oct-2017
905,Revenue,CAHD,Bed Purchasing - Southmead Hospital,Permanent Nursing,Fshc  1St Floor,2281.28, 24-Oct-2017
906,Revenue,CAHD,Bed Purchasing - South,Permanent Nursing,Fshc  1St Floor,2228.00, 24-Oct-2017
907,Revenue,CAHD,South Glos Users in South Glos Homes,Permanent Nursing,Fshc  1St Floor,620.20, 24-Oct-2017
908,Revenue,CAHD,Bed Purchasing - Southmead Hospital,Permanent Nursing,Fshc  1St Floor,2390.68, 24-Oct-2017
909,Revenue,CAHD,South Glos Users in South Glos Homes,Permanent Nursing,Fshc  1St Floor,620.20, 24-Oct-2017
910,Revenue,CAHD,Bed Purchasing - Southmead Hospital,Permanent Nursing,Fshc  1St Floor,2228.00, 24-Oct-2017
911,Revenue,CAHD,South Glos Users in South Glos Homes,Permanent Nursing,Fshc  1St Floor,620.20, 24-Oct-2017
912,Revenue,CAHD,Bed Purchasing - Southmead Hospital,Permanent Residential,Fshc  1St Floor,2200.00, 24-Oct-2017
913,Revenue,CAHD,Bed Purchasing - Southmead Hospital,Permanent Nursing,Fshc  1St Floor,2281.28, 24-Oct-2017
914,Revenue,CAHD,South Glos Users in South Glos Homes,Permanent Nursing,Fshc  1St Floor,620.20, 24-Oct-2017
915,Revenue,CAHD,South Glos Users in South Glos Homes,Permanent Nursing,Fshc  1St Floor,620.20, 24-Oct-2017
916,Revenue,CAHD,South Glos Users in South Glos Homes,Permanent Nursing,Fshc  1St Floor,620.20, 24-Oct-2017
917,Revenue,CAHD,Bed Purchasing - Southmead Hospital,Permanent Nursing,Fshc  1St Floor,2228.00, 24-Oct-2017
918,Revenue,CAHD,South Glos Users in South Glos Homes,Permanent Nursing,Fshc  1St Floor,620.20, 24-Oct-2017
919,Revenue,CAHD,Bed Purchasing - Southmead Hospital,Permanent Nursing,Fshc  1St Floor,3099.80, 24-Oct-2017
920,Revenue,CAHD,South Glos Users in South Glos Homes,Permanent Nursing,Fshc  1St Floor,620.20, 24-Oct-2017
921,Revenue,CAHD,Bed Purchasing - Southmead Hospital,Permanent Nursing,Fshc  1St Floor,2360.00, 24-Oct-2017
922,Revenue,CAHD,South Glos Users in South Glos Homes,Permanent Nursing,Fshc  1St Floor,620.20, 24-Oct-2017
923,Revenue,CAHD,Bed Purchasing - South,Permanent Nursing,Fshc  1St Floor,2613.56, 24-Oct-2017
924,Revenue,CAHD,South Glos Users in South Glos Homes,Permanent Nursing,Fshc  1St Floor,620.20, 24-Oct-2017
925,Revenue,CAHD,Bed Purchasing - South,Respite Planned - Nursing,Fshc  1St Floor,822.86, 24-Oct-2017
926,Revenue,CAHD,South Glos Users in South Glos Homes,Permanent Nursing,Fshc  1St Floor,620.20, 24-Oct-2017
927,Revenue,CAHD,Bed Purchasing - South,Respite Planned - Nursing,Fshc  1St Floor,5225.71, 24-Oct-2017
928,Revenue,CAHD,Bed Purchasing - South,Respite Planned - Nursing,Fshc  1St Floor,2360.00, 24-Oct-2017
929,Revenue,CAHD,South Glos Users in South Glos Homes,Permanent Nursing,Fshc  1St Floor,620.20, 24-Oct-2017
930,Revenue,CAHD,Bed Purchasing - Southmead Hospital,Permanent Nursing,Fshc  1St Floor,2281.28, 24-Oct-2017
931,Revenue,CAHD,South Glos Users in South Glos Homes,Permanent Nursing,Fshc  1St Floor,620.20, 24-Oct-2017
932,Revenue,CAHD,Bed Purchasing - Southmead Hospital,Permanent Nursing,Fshc  1St Floor,2360.00, 24-Oct-2017
933,Revenue,CAHD,South Glos Users in South Glos Homes,Permanent Nursing,Fshc  1St Floor,686.65, 24-Oct-2017
934,Revenue,CAHD,South Glos Users in South Glos Homes,Permanent Nursing,Fshc  1St Floor,620.20, 24-Oct-2017
935,Revenue,CAHD,Bed Purchasing - South,Permanent Nursing,Fshc  1St Floor,2228.00, 24-Oct-2017
936,Revenue,CAHD,South Glos Users in South Glos Homes,Permanent Nursing,Fshc  1St Floor,620.20, 24-Oct-2017
937,Revenue,CAHD,Bed Purchasing - Southmead Hospital,Permanent Nursing,Fshc  1St Floor,2228.00, 24-Oct-2017
938,Revenue,CAHD,South Glos Users in South Glos Homes,Permanent Nursing,Fshc  1St Floor,620.20, 24-Oct-2017
939,Revenue,CAHD,Bed Purchasing - South,Permanent Nursing,Fshc  1St Floor,2228.00, 24-Oct-2017
940,Revenue,CAHD,South Glos Users in South Glos Homes,Permanent Nursing,Fshc  1St Floor,620.20, 24-Oct-2017
941,Revenue,CAHD,Bed Purchasing - South,Permanent Nursing,Fshc  1St Floor,2281.28, 24-Oct-2017
942,Revenue,CAHD,South Glos Users in South Glos Homes,Permanent Nursing,Fshc  1St Floor,620.20, 24-Oct-2017
943,Revenue,CAHD,South Glos Users in South Glos Homes,Permanent Nursing,Fshc  1St Floor,620.20, 24-Oct-2017
944,Revenue,CAHD,Bed Purchasing - Southmead Hospital,Respite Planned - Nursing,Fshc  1St Floor,514.29, 24-Oct-2017
945,Revenue,CAHD,South Glos Users in South Glos Homes,Permanent Nursing,Fshc  1St Floor,620.20, 24-Oct-2017
946,Revenue,CAHD,Bed Purchasing - North,Permanent Nursing,Fshc  1St Floor,2312.32, 24-Oct-2017
947,Revenue,CAHD,South Glos Users in South Glos Homes,Permanent Nursing,Fshc  1St Floor,620.20, 24-Oct-2017
948,Revenue,CAHD,Bed Purchasing - Southmead Hospital,Permanent Nursing,Fshc  1St Floor,2810.84, 24-Oct-2017
949,Revenue,CAHD,Bed Purchasing - Southmead Hospital,Respite Emergency - Residential,Fshc  1St Floor,8678.57, 24-Oct-2017
950,Revenue,CAHD,South Glos Users in South Glos Homes,Permanent Nursing,Fshc  1St Floor,620.20, 24-Oct-2017
951,Revenue,CAHD,Bed Purchasing - North,Respite Emergency - Residential,Fshc  1St Floor,2050.00, 24-Oct-2017
952,Revenue,CAHD,South Glos Users in South Glos Homes,Permanent Nursing,Fshc  1St Floor,1018.90, 24-Oct-2017
953,Revenue,CAHD,South Glos Users in South Glos Homes,Permanent Nursing,Fshc  1St Floor,930.30, 24-Oct-2017
954,Revenue,CAHD,South Glos Users in South Glos Homes,Permanent Nursing,Fshc  1St Floor,620.20, 24-Oct-2017
955,Revenue,CAHD,South Glos Users in South Glos Homes,Permanent Nursing,Fshc  1St Floor,4230.65, 24-Oct-2017
956,Revenue,CAHD,South Glos Users in South Glos Homes,Permanent Nursing,Fshc  1St Floor,1361.61, 24-Oct-2017
957,Revenue,CAHD,Bed Purchasing - Southmead Hospital,Permanent Residential,Fshc  1St Floor,2256.96, 24-Oct-2017
958,Revenue,CAHD,South Glos Users in South Glos Homes,Permanent Nursing,Fshc  1St Floor,620.20, 24-Oct-2017
959,Revenue,CAHD,Bed Purchasing - Southmead Hospital,Permanent Nursing,Fshc  1St Floor,2228.00, 24-Oct-2017
960,Revenue,CAHD,South Glos Users in South Glos Homes,Permanent Nursing,Fshc  1St Floor,620.20, 24-Oct-2017
961,Revenue,CAHD,South Glos Users in South Glos Homes,Permanent Nursing,Fshc  1St Floor,620.20, 24-Oct-2017
962,Revenue,CAHD,Bed Purchasing - Southmead Hospital,Respite Planned - Nursing,Fshc  1St Floor,2296.00, 24-Oct-2017
963,Revenue,CAHD,South Glos Users in South Glos Homes,Permanent Nursing,Fshc  1St Floor,620.20, 24-Oct-2017
964,Revenue,CAHD,Bed Purchasing - North,Permanent Nursing,Fshc  1St Floor,2228.00, 24-Oct-2017
965,Revenue,CAHD,South Glos Users in South Glos Homes,Permanent Nursing,Fshc  1St Floor,620.20, 24-Oct-2017
966,Revenue,CAHD,South Glos Users in South Glos Homes,Permanent Nursing,Fshc  1St Floor,620.20, 24-Oct-2017
967,Revenue,CAHD,Bed Purchasing - Southmead Hospital,Permanent Nursing,Fshc  1St Floor,2228.00, 24-Oct-2017
968,Revenue,CAHD,South Glos Users in South Glos Homes,Permanent Nursing,Fshc  1St Floor,620.20, 24-Oct-2017
969,Revenue,CAHD,Bed Purchasing - Southmead Hospital,Permanent Residential,Fshc  1St Floor,2072.00, 24-Oct-2017
970,Revenue,CAHD,Bed Purchasing - South,Permanent Residential,Fshc  1St Floor,1942.86, 24-Oct-2017
971,Revenue,CAHD,Bed Purchasing - South,Permanent Residential,Fshc  1St Floor,1257.14, 24-Oct-2017
972,Revenue,CAHD,South Glos Users in South Glos Homes,Permanent Nursing,Fshc  1St Floor,620.20, 24-Oct-2017
973,Revenue,CAHD,Bed Purchasing - North,Permanent Nursing,Fshc  1St Floor,6642.00, 24-Oct-2017
974,Revenue,CAHD,Bed Purchasing - North,Permanent Nursing,Fshc  1St Floor,2296.00, 24-Oct-2017
975,Revenue,CAHD,South Glos Users in South Glos Homes,Permanent Nursing,Fshc  1St Floor,620.20, 24-Oct-2017
976,Revenue,CAHD,Bed Purchasing - Southmead Hospital,Permanent Nursing,Fshc  1St Floor,2228.00, 24-Oct-2017
977,Revenue,CAHD,South Glos Users in South Glos Homes,Permanent Nursing,Fshc  1St Floor,620.20, 24-Oct-2017
978,Revenue,CAHD,Bed Purchasing - Southmead Hospital,Permanent Nursing,Fshc  1St Floor,2256.96, 24-Oct-2017
979,Revenue,CAHD,South Glos Users in South Glos Homes,Permanent Nursing,Fshc  1St Floor,620.20, 24-Oct-2017
980,Revenue,CAHD,Bed Purchasing - Southmead Hospital,Permanent Nursing,Fshc  1St Floor,2228.00, 24-Oct-2017
981,Revenue,CAHD,South Glos Users in South Glos Homes,Permanent Nursing,Fshc  1St Floor,620.20, 24-Oct-2017
982,Revenue,CAHD,South Glos Users in South Glos Homes,Permanent Nursing,Fshc  1St Floor,620.20, 24-Oct-2017
983,Revenue,CAHD,Bed Purchasing - North,Permanent Nursing,Fshc  1St Floor,2228.00, 24-Oct-2017
984,Revenue,CAHD,South Glos Users in South Glos Homes,Permanent Nursing,Fshc  1St Floor,620.20, 24-Oct-2017
985,Revenue,CAHD,South Glos Users in South Glos Homes,Permanent Nursing,Fshc  1St Floor,620.20, 24-Oct-2017
986,Revenue,CAHD,Bed Purchasing - North,Permanent Nursing,Fshc  1St Floor,2228.00, 24-Oct-2017
987,Revenue,CAHD,South Glos Users in South Glos Homes,Permanent Nursing,Fshc  1St Floor,620.20, 24-Oct-2017
988,Revenue,CAHD,South Glos Users in South Glos Homes,Permanent Nursing,Fshc  1St Floor,620.20, 24-Oct-2017
989,Revenue,CAHD,Bed Purchasing - North,Respite Planned - Nursing,Fshc  1St Floor,2228.00, 24-Oct-2017
990,Revenue,CAHD,Bed Purchasing - North,Respite Planned - Nursing,Fshc  1St Floor,1671.00, 24-Oct-2017
991,Revenue,CAHD,Bed Purchasing - Southmead Hospital,Permanent Nursing,Fshc  1St Floor,6232.00, 24-Oct-2017
992,Revenue,CAHD,Bed Purchasing - Southmead Hospital,Permanent Nursing,Fshc  1St Floor,2296.00, 24-Oct-2017
993,Revenue,CAHD,South Glos Users in South Glos Homes,Permanent Nursing,Fshc  1St Floor,841.70, 24-Oct-2017
994,Revenue,CAHD,South Glos Users in South Glos Homes,Permanent Nursing,Fshc  1St Floor,620.20, 24-Oct-2017
995,Revenue,CAHD,Bed Purchasing - Southmead Hospital,Fees & Charges Income - General,Fshc  1St Floor,710.66, 24-Oct-2017
996,Revenue,CAHD,Bed Purchasing - Southmead Hospital,Permanent Residential,Fshc  1St Floor,2228.00, 24-Oct-2017
997,Revenue,CAHD,Bed Purchasing - North,Permanent Nursing,Fshc  1St Floor,2228.00, 24-Oct-2017
998,Revenue,CAHD,South Glos Users in South Glos Homes,Permanent Nursing,Fshc  1St Floor,620.20, 24-Oct-2017
999,Revenue,CAHD,South Glos Users in South Glos Homes,Permanent Nursing,Fshc  1St Floor,620.20, 24-Oct-2017
1000,Revenue,CAHD,Bed Purchasing - Southmead Hospital,Fees & Charges Income - General,Fshc  1St Floor,1511.86, 24-Oct-2017
1001,Revenue,CAHD,South Glos Users in South Glos Homes,Permanent Nursing,Fshc  1St Floor,620.20, 24-Oct-2017
1002,Revenue,CAHD,Bed Purchasing - Southmead Hospital,Permanent Nursing,Fshc  1St Floor,2228.00, 24-Oct-2017
1003,Revenue,CAHD,Bed Purchasing - Southmead Hospital,Permanent Nursing,Fshc  1St Floor,1432.29, 24-Oct-2017
1004,Revenue,CAHD,South Glos Users in South Glos Homes,Permanent Nursing,Fshc  1St Floor,620.20, 24-Oct-2017
1005,Revenue,CAHD,South Glos Users in South Glos Homes,Permanent Nursing,Fshc  1St Floor,620.20, 24-Oct-2017
1006,Revenue,CAHD,South Glos Users in South Glos Homes,Permanent Nursing,Fshc  1St Floor,797.40, 24-Oct-2017
1007,Revenue,CAHD,Bed Purchasing - North,Permanent Nursing,Fshc  1St Floor,2228.00, 24-Oct-2017
1008,Revenue,CAHD,South Glos Users in South Glos Homes,Permanent Nursing,Fshc  1St Floor,620.20, 24-Oct-2017
1009,Revenue,CAHD,Bed Purchasing - North,Permanent Nursing,Fshc  1St Floor,2228.00, 24-Oct-2017
1010,Revenue,CAHD,South Glos Users in South Glos Homes,Permanent Nursing,Fshc  1St Floor,620.20, 24-Oct-2017
1011,Revenue,CAHD,Bed Purchasing - North,Permanent Nursing,Fshc  1St Floor,2228.00, 24-Oct-2017
1012,Revenue,CAHD,South Glos Users in South Glos Homes,Permanent Nursing,Fshc  1St Floor,620.20, 24-Oct-2017
1013,Revenue,CAHD,South Glos Users in South Glos Homes,Permanent Nursing,Fshc  1St Floor,620.20, 24-Oct-2017
1014,Revenue,CAHD,Bed Purchasing - North,Permanent Nursing,Fshc  1St Floor,2228.00, 24-Oct-2017
1015,Revenue,CAHD,South Glos Users in South Glos Homes,Permanent Nursing,Fshc  1St Floor,620.20, 24-Oct-2017
1016,Revenue,CAHD,Bed Purchasing - North,Permanent Nursing,Fshc  1St Floor,2228.00, 24-Oct-2017
1017,Revenue,CAHD,South Glos Users in South Glos Homes,Permanent Nursing,Fshc  1St Floor,620.20, 24-Oct-2017
1018,Revenue,CAHD,Bed Purchasing - North,Permanent Nursing,Fshc  1St Floor,2256.96, 24-Oct-2017
1019,Revenue,CAHD,South Glos Users in South Glos Homes,Permanent Nursing,Fshc  1St Floor,620.20, 24-Oct-2017
1020,Revenue,CAHD,Bed Purchasing - North,Permanent Nursing,Fshc  1St Floor,2228.00, 24-Oct-2017
1021,Revenue,CAHD,South Glos Users in South Glos Homes,Permanent Nursing,Fshc  1St Floor,620.20, 24-Oct-2017
1022,Revenue,CAHD,Bed Purchasing - Southmead Hospital,Permanent Nursing,Fshc  1St Floor,2228.00, 24-Oct-2017
1023,Revenue,CAHD,South Glos Users in South Glos Homes,Permanent Nursing,Fshc  1St Floor,620.20, 24-Oct-2017
1024,Revenue,CAHD,Bed Purchasing - North,Permanent Nursing,Fshc  1St Floor,2296.00, 24-Oct-2017
1025,Revenue,CAHD,South Glos Users in South Glos Homes,Permanent Nursing,Fshc  1St Floor,620.20, 24-Oct-2017
1026,Revenue,CAHD,Bed Purchasing - North,Permanent Nursing,Fshc  1St Floor,2228.00, 24-Oct-2017
1027,Revenue,CAHD,South Glos Users in South Glos Homes,Permanent Nursing,Fshc  1St Floor,620.20, 24-Oct-2017
1028,Revenue,CAHD,Bed Purchasing - North,Permanent Nursing,Fshc  1St Floor,2228.00, 24-Oct-2017
1029,Revenue,CAHD,South Glos Users in South Glos Homes,Permanent Nursing,Fshc  1St Floor,620.20, 24-Oct-2017
1030,Revenue,CAHD,Bed Purchasing - North,Permanent Nursing,Fshc  1St Floor,2296.00, 24-Oct-2017
1031,Revenue,CAHD,South Glos Users in South Glos Homes,Permanent Nursing,Fshc  1St Floor,620.20, 24-Oct-2017
1032,Revenue,CAHD,Bed Purchasing - Southmead Hospital,Permanent Nursing,Fshc  1St Floor,2382.56, 24-Oct-2017
1033,Revenue,CAHD,South Glos Users in South Glos Homes,Permanent Nursing,Fshc  1St Floor,620.20, 24-Oct-2017
1034,Revenue,CAHD,South Glos Users in South Glos Homes,Permanent Nursing,Fshc  1St Floor,620.20, 24-Oct-2017
1035,Revenue,CAHD,Bed Purchasing - North,Permanent Nursing,Fshc  1St Floor,2228.00, 24-Oct-2017
1036,Revenue,CAHD,South Glos Users in South Glos Homes,Permanent Nursing,Fshc  1St Floor,620.20, 24-Oct-2017
1037,Revenue,CAHD,Bed Purchasing - North,Permanent Nursing,Fshc  1St Floor,1904.24, 24-Oct-2017
1038,Revenue,CAHD,South Glos Users in South Glos Homes,Permanent Nursing,Fshc  1St Floor,620.20, 24-Oct-2017
1039,Revenue,CAHD,Bed Purchasing - Southmead Hospital,Permanent Nursing,Fshc  1St Floor,3100.00, 24-Oct-2017
1040,Revenue,CAHD,South Glos Users in South Glos Homes,Permanent Nursing,Fshc  1St Floor,620.20, 24-Oct-2017
1041,Revenue,CAHD,South Glos Users in South Glos Homes,Permanent Nursing,Fshc  1St Floor,620.20, 24-Oct-2017
1042,Revenue,CAHD,South Glos Users in South Glos Homes,Permanent Nursing,Fshc  1St Floor,620.20, 24-Oct-2017
1043,Revenue,CAHD,South Glos Users in South Glos Homes,Permanent Nursing,Fshc  1St Floor,620.20, 24-Oct-2017
1044,Revenue,CAHD,South Glos Users in South Glos Homes,Permanent Nursing,Fshc  1St Floor,4230.65, 24-Oct-2017
1045,Revenue,CAHD,South Glos Users in South Glos Homes,Permanent Nursing,Fshc  1St Floor,1183.04, 24-Oct-2017
1046,Revenue,CAHD,South Glos Users in South Glos Homes,Permanent Nursing,Fshc  1St Floor,620.20, 24-Oct-2017
1047,Revenue,CAHD,South Glos Users in South Glos Homes,Permanent Nursing,Fshc  1St Floor,620.20, 24-Oct-2017
1048,Revenue,CAHD,Bed Purchasing - South,Permanent Nursing,Fshc  1St Floor,2507.16, 24-Oct-2017
1049,Revenue,CAHD,South Glos Users in South Glos Homes,Permanent Nursing,Fshc  1St Floor,620.20, 24-Oct-2017
1050,Revenue,CAHD,South Glos Users in South Glos Homes,Permanent Nursing,Fshc  1St Floor,620.20, 24-Oct-2017
1051,Revenue,CAHD,Bed Purchasing - North,Permanent Nursing,Fshc  1St Floor,2228.00, 24-Oct-2017
1052,Revenue,CAHD,South Glos Users in South Glos Homes,Permanent Nursing,Fshc  1St Floor,620.20, 24-Oct-2017
1053,Revenue,CAHD,South Glos Users in South Glos Homes,Permanent Nursing,Fshc  1St Floor,4230.65, 24-Oct-2017
1054,Revenue,CAHD,South Glos Users in South Glos Homes,Permanent Nursing,Fshc  1St Floor,620.20, 24-Oct-2017
1055,Revenue,CAHD,South Glos Users in South Glos Homes,Permanent Nursing,Fshc  1St Floor,620.20, 24-Oct-2017
1056,Revenue,CAHD,Bed Purchasing - Southmead Hospital,Permanent Residential,Fshc  1St Floor,2072.00, 24-Oct-2017
1057,Revenue,CAHD,Bed Purchasing - Southmead Hospital,Permanent Nursing,Fshc  1St Floor,2479.80, 24-Oct-2017
1058,Revenue,CAHD,South Glos Users in South Glos Homes,Permanent Nursing,Fshc  1St Floor,620.20, 24-Oct-2017
1059,Revenue,CAHD,South Glos Users in South Glos Homes,Permanent Nursing,Fshc  1St Floor,620.20, 24-Oct-2017
1060,Revenue,CAHD,South Glos Users in South Glos Homes,Permanent Nursing,Fshc  1St Floor,620.20, 24-Oct-2017
1061,Revenue,CAHD,South Glos Users in South Glos Homes,Permanent Nursing,Fshc  1St Floor,620.20, 24-Oct-2017
1062,Revenue,CAHD,Bed Purchasing - Southmead Hospital,Permanent Nursing,Fshc  1St Floor,2405.88, 24-Oct-2017
1063,Revenue,CAHD,South Glos Users in South Glos Homes,Permanent Nursing,Fshc  1St Floor,620.20, 24-Oct-2017
1064,Revenue,CAHD,South Glos Users in South Glos Homes,Permanent Nursing,Fshc  1St Floor,620.20, 24-Oct-2017
1065,Revenue,CAHD,Bed Purchasing - North,Respite Emergency - Nursing,Fshc  1St Floor,7879.65, 24-Oct-2017
1066,Revenue,CAHD,South Glos Users in South Glos Homes,Permanent Nursing,Fshc  1St Floor,620.20, 24-Oct-2017
1067,Revenue,CAHD,Bed Purchasing - North,Respite Emergency - Residential,Fshc  1St Floor,2900.00, 24-Oct-2017
1068,Revenue,CAHD,Bed Purchasing - North,Respite Emergency - Residential,Fshc  1St Floor,1035.71, 24-Oct-2017
1069,Revenue,CAHD,South Glos Users in South Glos Homes,Permanent Nursing,Fshc  1St Floor,620.20, 24-Oct-2017
1070,Revenue,CAHD,Bed Purchasing - North,Permanent Nursing,Fshc  1St Floor,2549.24, 24-Oct-2017
1071,Revenue,CAHD,Bed Purchasing - Southmead Hospital,Permanent Nursing,Fshc  1St Floor,2507.16, 24-Oct-2017
1072,Revenue,CAHD,South Glos Users in South Glos Homes,Permanent Nursing,Fshc  1St Floor,620.20, 24-Oct-2017
1073,Revenue,CAHD,Bed Purchasing - North,Permanent Nursing,Fshc  1St Floor,2296.00, 24-Oct-2017
1074,Revenue,CAHD,South Glos Users in South Glos Homes,Permanent Nursing,Fshc  1St Floor,620.20, 24-Oct-2017
1075,Revenue,CAHD,South Glos Users in South Glos Homes,Permanent Nursing,Fshc  1St Floor,620.20, 24-Oct-2017
1076,Revenue,CAHD,Bed Purchasing - Southmead Hospital,Permanent Nursing,Fshc  1St Floor,2228.00, 24-Oct-2017
1077,Revenue,CAHD,South Glos Users in South Glos Homes,Permanent Nursing,Fshc  1St Floor,620.20, 24-Oct-2017
1078,Revenue,CAHD,Bed Purchasing - Southmead Hospital,Permanent Nursing,Fshc  1St Floor,3100.00, 24-Oct-2017
1079,Revenue,CAHD,South Glos Users in South Glos Homes,Permanent Nursing,Fshc  1St Floor,620.20, 24-Oct-2017
1080,Revenue,CAHD,South Glos Users in South Glos Homes,Permanent Nursing,Fshc  1St Floor,620.20, 24-Oct-2017
1081,Revenue,CAHD,Bed Purchasing - North,Permanent Nursing,Fshc  1St Floor,2410.72, 24-Oct-2017
1082,Revenue,CAHD,South Glos Users in South Glos Homes,Permanent Nursing,Fshc  1St Floor,620.20, 24-Oct-2017
1083,Revenue,CAHD,Bed Purchasing - North,Permanent Nursing,Fshc  1St Floor,2228.00, 24-Oct-2017
1084,Revenue,CAHD,South Glos Users in South Glos Homes,Permanent Nursing,Fshc  1St Floor,620.20, 24-Oct-2017
1085,Revenue,CAHD,Bed Purchasing - South,Permanent Nursing,Fshc  1St Floor,2507.16, 24-Oct-2017
1086,Revenue,CAHD,South Glos Users in South Glos Homes,Permanent Nursing,Fshc  1St Floor,620.20, 24-Oct-2017
1087,Revenue,CAHD,Bed Purchasing - Southmead Hospital,Permanent Nursing,Fshc  1St Floor,2296.00, 24-Oct-2017
1088,Revenue,CAHD,South Glos Users in South Glos Homes,Permanent Nursing,Fshc  1St Floor,620.20, 24-Oct-2017
1089,Revenue,CAHD,Bed Purchasing - Southmead Hospital,Permanent Nursing,Fshc  1St Floor,3100.00, 24-Oct-2017
1090,Revenue,CAHD,Bed Purchasing - Southmead Hospital,Permanent Nursing,Fshc  1St Floor,1328.57, 24-Oct-2017
1091,Revenue,CAHD,Bed Purchasing - South,Permanent Nursing,Fshc  1St Floor,2431.20, 24-Oct-2017
1092,Revenue,CAHD,South Glos Users in South Glos Homes,Permanent Nursing,Fshc  1St Floor,620.20, 24-Oct-2017
1093,Revenue,CAHD,South Glos Users in South Glos Homes,Permanent Nursing,Fshc  1St Floor,620.20, 24-Oct-2017
1094,Revenue,CAHD,Bed Purchasing - South,Permanent Nursing,Fshc  1St Floor,2500.00, 24-Oct-2017
1095,Revenue,CAHD,South Glos Users in South Glos Homes,Permanent Nursing,Fshc  1St Floor,620.20, 24-Oct-2017
1096,Revenue,CAHD,Bed Purchasing - Southmead Hospital,Permanent Nursing,Fshc  1St Floor,2228.00, 24-Oct-2017
1097,Revenue,CAHD,South Glos Users in South Glos Homes,Permanent Nursing,Fshc  1St Floor,620.20, 24-Oct-2017
1098,Revenue,CAHD,South Glos Users in South Glos Homes,Permanent Nursing,Fshc  1St Floor,620.20, 24-Oct-2017
1099,Revenue,CAHD,Bed Purchasing - South,Permanent Nursing,Fshc  1St Floor,2300.00, 24-Oct-2017
1100,Revenue,CAHD,South Glos Users in South Glos Homes,Permanent Nursing,Fshc  1St Floor,620.20, 24-Oct-2017
1101,Revenue,CAHD,Bed Purchasing - South,Permanent Residential,Fshc  1St Floor,2182.36, 24-Oct-2017
1102,Revenue,CAHD,South Glos Users in South Glos Homes,Permanent Nursing,Fshc  1St Floor,620.20, 24-Oct-2017
1103,Revenue,CAHD,South Glos Users in South Glos Homes,Permanent Nursing,Fshc  1St Floor,620.20, 24-Oct-2017
1104,Revenue,CAHD,Bed Purchasing - Southmead Hospital,Permanent Residential,Fshc  1St Floor,2072.00, 24-Oct-2017
1105,Revenue,CAHD,South Glos Users in South Glos Homes,Permanent Nursing,Fshc  1St Floor,620.20, 24-Oct-2017
1106,Revenue,CAHD,Bed Purchasing - South,Permanent Nursing,Fshc  1St Floor,2228.00, 24-Oct-2017
1107,Revenue,CAHD,South Glos Users in South Glos Homes,Permanent Nursing,Fshc  1St Floor,620.20, 24-Oct-2017
1108,Revenue,CAHD,South Glos Users in South Glos Homes,Permanent Nursing,Fshc  1St Floor,620.20, 24-Oct-2017
1109,Revenue,CAHD,Bed Purchasing - Southmead Hospital,Permanent Residential,Fshc  1St Floor,2300.00, 24-Oct-2017
1110,Revenue,CAHD,Bed Purchasing - Southmead Hospital,Permanent Residential,Fshc  1St Floor,2135.71, 24-Oct-2017
1111,Revenue,CAHD,South Glos Users in South Glos Homes,Permanent Nursing,Fshc  1St Floor,620.20, 24-Oct-2017
1112,Revenue,CAHD,Bed Purchasing - Southmead Hospital,Permanent Nursing,Fshc  1St Floor,2258.92, 24-Oct-2017
1113,Revenue,CAHD,South Glos Users in South Glos Homes,Permanent Nursing,Fshc  1St Floor,620.20, 24-Oct-2017
1114,Revenue,CAHD,South Glos Users in South Glos Homes,Permanent Nursing,Fshc  1St Floor,620.20, 24-Oct-2017
1115,Revenue,CAHD,South Glos Users in South Glos Homes,Permanent Nursing,Fshc  1St Floor,620.20, 24-Oct-2017
1116,Revenue,CAHD,Bed Purchasing - South,Permanent Residential,Fshc  1St Floor,2600.00, 24-Oct-2017
1117,Revenue,CAHD,Bed Purchasing - Southmead Hospital,Fees & Charges Income - General,Fshc  1St Floor,931.53, 24-Oct-2017
1118,Revenue,CAHD,Bed Purchasing - Southmead Hospital,Permanent Residential,Fshc  1St Floor,2300.00, 24-Oct-2017
1119,Revenue,CAHD,Bed Purchasing - South,Permanent Residential,Fshc  1St Floor,2140.00, 24-Oct-2017
1120,Revenue,CAHD,Bed Purchasing - Southmead Hospital,Permanent Nursing,Fshc  1St Floor,2296.00, 24-Oct-2017
1121,Revenue,CAHD,South Glos Users in South Glos Homes,Permanent Nursing,Fshc  1St Floor,620.20, 24-Oct-2017
1122,Revenue,CAHD,Bed Purchasing - South,Permanent Nursing,Fshc  1St Floor,2836.40, 24-Oct-2017
1123,Revenue,CAHD,South Glos Users in South Glos Homes,Permanent Nursing,Fshc  1St Floor,620.20, 24-Oct-2017
1124,Revenue,CAHD,Bed Purchasing - Southmead Hospital,Permanent Nursing,Fshc  1St Floor,2228.00, 24-Oct-2017
1125,Revenue,CAHD,South Glos Users in South Glos Homes,Permanent Nursing,Fshc  1St Floor,620.20, 24-Oct-2017
1126,Revenue,CAHD,Bed Purchasing - South,Permanent Nursing,Fshc  1St Floor,2633.80, 24-Oct-2017
1127,Revenue,CAHD,South Glos Users in South Glos Homes,Permanent Nursing,Fshc  1St Floor,620.20, 24-Oct-2017
1128,Revenue,CAHD,Bed Purchasing - South,Permanent Nursing,Fshc  1St Floor,2228.00, 24-Oct-2017
1129,Revenue,CAHD,South Glos Users in South Glos Homes,Permanent Nursing,Fshc  1St Floor,620.20, 24-Oct-2017
1130,Revenue,CAHD,Bed Purchasing - South,Permanent Nursing,Fshc  1St Floor,2228.00, 24-Oct-2017
1131,Revenue,CAHD,South Glos Users in South Glos Homes,Permanent Nursing,Fshc  1St Floor,620.20, 24-Oct-2017
1132,Revenue,CAHD,Bed Purchasing - South,Permanent Nursing,Fshc  1St Floor,2354.28, 24-Oct-2017
1133,Revenue,CAHD,South Glos Users in South Glos Homes,Permanent Nursing,Fshc  1St Floor,620.20, 24-Oct-2017
1134,Revenue,CAHD,Bed Purchasing - South,Permanent Nursing,Fshc  1St Floor,2228.00, 24-Oct-2017
1135,Revenue,CAHD,South Glos Users in South Glos Homes,Permanent Nursing,Fshc  1St Floor,620.20, 24-Oct-2017
1136,Revenue,CAHD,Bed Purchasing - South,Permanent Residential,Fshc  1St Floor,2182.36, 24-Oct-2017
1137,Revenue,CAHD,Bed Purchasing - South,Permanent Nursing,Fshc  1St Floor,2192.12, 24-Oct-2017
1138,Revenue,CAHD,Bed Purchasing - Southmead Hospital,Permanent Nursing,Fshc  1St Floor,2874.96, 24-Oct-2017
1139,Revenue,CAHD,Bed purchasing - Elderly S117 - South,Permanent Nursing,Fshc  1St Floor,2192.12, 24-Oct-2017
1140,Revenue,CAHD,Bed Purchasing - South,Permanent Nursing,Fshc  1St Floor,3444.20, 24-Oct-2017
1141,Revenue,CAHD,Bed Purchasing - South,Permanent Nursing,Fshc  1St Floor,2633.80, 24-Oct-2017
1142,Revenue,CAHD,Bed Purchasing - South,Permanent Nursing,Fshc  1St Floor,3849.40, 24-Oct-2017
1143,Revenue,CAHD,Bed Purchasing - Southmead Hospital,Permanent Nursing,Fshc  1St Floor,2192.12, 24-Oct-2017
1144,Revenue,CAHD,Bed Purchasing - Southmead Hospital,Permanent Nursing,Fshc  1St Floor,2192.12, 24-Oct-2017
1145,Revenue,CAHD,South Glos Users in South Glos Homes,Permanent Nursing,Fshc  1St Floor,620.20, 24-Oct-2017
1146,Revenue,CAHD,Bed Purchasing - Southmead Hospital,Permanent Nursing,Fshc  1St Floor,2192.12, 24-Oct-2017
1147,Revenue,CAHD,Bed Purchasing - South,Permanent Nursing,Fshc  1St Floor,2192.12, 24-Oct-2017
1148,Revenue,CAHD,Bed Purchasing - South,Permanent Residential,Fshc  1St Floor,3588.12, 24-Oct-2017
1149,Revenue,CAHD,Bed Purchasing - North,Respite Planned - Residential,Fshc  1St Floor,2214.64, 24-Oct-2017
1150,Revenue,CAHD,Bed Purchasing - North,Respite Planned - Residential,Fshc  1St Floor,949.13, 24-Oct-2017
1151,Revenue,CAHD,Bed Purchasing - Southmead Hospital,Permanent Residential,Fshc  1St Floor,2014.64, 24-Oct-2017
1152,Revenue,CAHD,Bed Purchasing - North,Respite Emergency - Residential,Fshc  1St Floor,2214.64, 24-Oct-2017
1153,Revenue,CAHD,Bed Purchasing - North,Permanent Nursing,Fshc  1St Floor,2194.20, 24-Oct-2017
1154,Revenue,CAHD,Bed Purchasing - North,Permanent Nursing,Fshc  1St Floor,2066.00, 24-Oct-2017
1155,Revenue,CAHD,South Glos Users in South Glos Homes,Permanent Nursing,Fshc  1St Floor,620.20, 24-Oct-2017
1156,Revenue,CAHD,South Glos Users in South Glos Homes,Permanent Nursing,Fshc  1St Floor,2522.32, 24-Oct-2017
1157,Revenue,CAHD,Bed Purchasing - Southmead Hospital,Permanent Nursing,Fshc  1St Floor,3714.29, 24-Oct-2017
1158,Revenue,CAHD,Bed Purchasing - North,Permanent Nursing,Fshc  1St Floor,2222.72, 24-Oct-2017
1159,Revenue,CAHD,Bed Purchasing - North,Permanent Nursing,Fshc  1St Floor,2266.00, 24-Oct-2017
1160,Revenue,CAHD,Bed Purchasing - North,Permanent Nursing,Fshc  1St Floor,2218.32, 24-Oct-2017
1161,Revenue,CAHD,Bed Purchasing - South,Permanent Residential,Fshc  1St Floor,2228.60, 24-Oct-2017
1162,Revenue,CAHD,Bed Purchasing - North,Permanent Residential,Fshc  1St Floor,1855.12, 24-Oct-2017
1163,Revenue,CAHD,Bed Purchasing - North,Permanent Residential,Fshc  1St Floor,13050.00, 24-Oct-2017
1164,Revenue,CAHD,Bed Purchasing - North,Permanent Residential,Fshc  1St Floor,3480.00, 24-Oct-2017
1165,Revenue,CAHD,Bed Purchasing - North,Fees & Charges Income - General,Fshc  1St Floor,1858.96, 24-Oct-2017
1166,Revenue,CAHD,Bed Purchasing - North,Fees & Charges Income - General,Fshc  1St Floor,692.37, 24-Oct-2017
1167,Revenue,CAHD,Bed Purchasing - North,Fees & Charges Income - General,Fshc  1St Floor,944.14, 24-Oct-2017
1168,Revenue,CAHD,Bed Purchasing - South,Permanent Residential,Gladstone House,5749.96, 24-Oct-2017
1169,Revenue,CAHD,Bed Purchasing - North,Permanent Residential,Glan Y Felin,6520.08, 24-Oct-2017
1170,Revenue,CAHD,Bed Purchasing - South,Permanent Residential,Glasallt Fawr,5121.84, 24-Oct-2017
1171,Revenue,CAHD,South Glos Users in South Glos Homes,Permanent Nursing,Glebe House Nursing Home,620.20, 24-Oct-2017
1172,Revenue,CAHD,South Glos Users in South Glos Homes,Permanent Nursing,Glebe House Nursing Home,620.20, 24-Oct-2017
1173,Revenue,CAHD,South Glos Users in South Glos Homes,Permanent Nursing,Glebe House Nursing Home,620.20, 24-Oct-2017
1174,Revenue,CAHD,South Glos Users in South Glos Homes,Permanent Nursing,Glebe House Nursing Home,620.20, 24-Oct-2017
1175,Revenue,CAHD,South Glos Users in South Glos Homes,Permanent Nursing,Glebe House Nursing Home,620.20, 24-Oct-2017
1176,Revenue,CAHD,South Glos Users in South Glos Homes,Permanent Nursing,Glebe House Nursing Home,620.20, 24-Oct-2017
1177,Revenue,CAHD,Bed Purchasing - North,Permanent Nursing,Glebe House Nursing Home,3154.24, 24-Oct-2017
1178,Revenue,CAHD,South Glos Users in South Glos Homes,Permanent Nursing,Glebe House Nursing Home,620.20, 24-Oct-2017
1179,Revenue,CAHD,South Glos Users in South Glos Homes,Permanent Nursing,Glebe House Nursing Home,620.20, 24-Oct-2017
1180,Revenue,CAHD,South Glos Users in South Glos Homes,Permanent Nursing,Glebe House Nursing Home,620.20, 24-Oct-2017
1181,Revenue,CAHD,South Glos Users in South Glos Homes,Permanent Nursing,Glebe House Nursing Home,620.20, 24-Oct-2017
1182,Revenue,CAHD,Bed Purchasing - North,Permanent Nursing,Glebe House Nursing Home,3043.36, 24-Oct-2017
1183,Revenue,CAHD,South Glos Users in South Glos Homes,Permanent Nursing,Glebe House Nursing Home,620.20, 24-Oct-2017
1184,Revenue,CAHD,South Glos Users in South Glos Homes,Permanent Nursing,Glebe House Nursing Home,620.20, 24-Oct-2017
1185,Revenue,CAHD,South Glos Users in South Glos Homes,Permanent Nursing,Glebe House Nursing Home,620.20, 24-Oct-2017
1186,Revenue,CAHD,South Glos Users in South Glos Homes,Permanent Nursing,Glebe House Nursing Home,620.20, 24-Oct-2017
1187,Revenue,CAHD,South Glos Users in South Glos Homes,Permanent Nursing,Glebe House Nursing Home,620.20, 24-Oct-2017
1188,Revenue,CAHD,South Glos Users in South Glos Homes,Permanent Nursing,Glebe House Nursing Home,620.20, 24-Oct-2017
1189,Revenue,CAHD,South Glos Users in South Glos Homes,Permanent Nursing,Glebe House Nursing Home,620.20, 24-Oct-2017
1190,Revenue,CAHD,South Glos Users in South Glos Homes,Permanent Nursing,Glebe House Nursing Home,620.20, 24-Oct-2017
1191,Revenue,CAHD,South Glos Users in South Glos Homes,Permanent Nursing,Glebe House Nursing Home,620.20, 24-Oct-2017
1192,Revenue,CAHD,South Glos Users in South Glos Homes,Permanent Nursing,Glebe House Nursing Home,620.20, 24-Oct-2017
1193,Revenue,CAHD,Bed Purchasing - North,Permanent Nursing,Glebe House Nursing Home,3216.28, 24-Oct-2017
1194,Revenue,CAHD,South Glos Users in South Glos Homes,Permanent Nursing,Glebe House Nursing Home,620.20, 24-Oct-2017
1195,Revenue,CAHD,South Glos Users in South Glos Homes,Permanent Nursing,Glebe House Nursing Home,620.20, 24-Oct-2017
1196,Revenue,CAHD,Training - Adult Services,Training Expenses,Gloucestershire Deaf Association,650.00, 30-Oct-2017
1197,Revenue,CAHD,Bed Purchasing - South,Permanent Residential,Goldcare House,4539.28, 24-Oct-2017
1198,Revenue,CAHD,Bed Purchasing - Southmead Hospital,Permanent Residential,Gordena Care Home,3852.48, 24-Oct-2017
1199,Revenue,CAHD,Bed Purchasing - South,Permanent Residential,Gordena Care Home,2586.80, 24-Oct-2017
1200,Revenue,CAHD,Bed Purchasing - South,Permanent Residential,Gordena Care Home,3682.84, 24-Oct-2017
1201,Revenue,CAHD,Bed Purchasing - South,Permanent Residential,Gordena Care Home,2582.60, 24-Oct-2017
1202,Revenue,CAHD,Bed Purchasing - South,Permanent Residential,Gordena Care Home,3694.04, 24-Oct-2017
1203,Revenue,CAHD,Bed Purchasing - South,Permanent Residential,Gordena Care Limited,4826.88, 24-Oct-2017
1204,Revenue,CAHD,Bed Purchasing - South,Permanent Residential,Gordena Care Limited,7380.04, 24-Oct-2017
1205,Revenue,CAHD,Jointly Funded H&SC Packages,Permanent Residential,Gordena Care Limited,2900.80, 24-Oct-2017
1206,Revenue,CAHD,Bed purchasing - S28A Under 65 - South,Permanent Residential,Gordena Care Limited,4694.40, 24-Oct-2017
1207,Revenue,CAHD,Bed Purchasing - North,Permanent Residential,Gordena Care Limited,4892.64, 24-Oct-2017
1208,Revenue,CAHD,Bed Purchasing - South,Permanent Nursing,Gracefields Nursing Home,2486.52, 24-Oct-2017
1209,Revenue,CAHD,South Glos Users in South Glos Homes,Permanent Nursing,Gracefields Nursing Home,620.20, 24-Oct-2017
1210,Revenue,CAHD,South Glos Users in South Glos Homes,Permanent Nursing,Gracefields Nursing Home,620.20, 24-Oct-2017
1211,Revenue,CAHD,Bed Purchasing - North,Permanent Nursing,Gracefields Nursing Home,3500.00, 24-Oct-2017
1212,Revenue,CAHD,Bed Purchasing - North,Permanent Nursing,Gracefields Nursing Home,1625.00, 24-Oct-2017
1213,Revenue,CAHD,South Glos Users in South Glos Homes,Permanent Nursing,Gracefields Nursing Home,620.20, 24-Oct-2017
1214,Revenue,CAHD,South Glos Users in South Glos Homes,Permanent Nursing,Gracefields Nursing Home,4230.65, 24-Oct-2017
1215,Revenue,CAHD,South Glos Users in South Glos Homes,Permanent Nursing,Gracefields Nursing Home,2745.54, 24-Oct-2017
1216,Revenue,CAHD,South Glos Users in South Glos Homes,Permanent Nursing,Gracefields Nursing Home,620.20, 24-Oct-2017
1217,Revenue,CAHD,Bed Purchasing - Southmead Hospital,Permanent Nursing,Gracefields Nursing Home,3500.00, 24-Oct-2017
1218,Revenue,CAHD,Bed Purchasing - Southmead Hospital,Permanent Nursing,Gracefields Nursing Home,625.00, 24-Oct-2017
1219,Revenue,CAHD,South Glos Users in South Glos Homes,Permanent Nursing,Gracefields Nursing Home,620.20, 24-Oct-2017
1220,Revenue,CAHD,South Glos Users in South Glos Homes,Permanent Nursing,Gracefields Nursing Home,620.20, 24-Oct-2017
1221,Revenue,CAHD,Bed purchasing - Elderly S117 - South,Permanent Nursing,Gracefields Nursing Home,2445.68, 24-Oct-2017
1222,Revenue,CAHD,South Glos Users in South Glos Homes,Permanent Nursing,Gracefields Nursing Home,620.20, 24-Oct-2017
1223,Revenue,CAHD,South Glos Users in South Glos Homes,Permanent Nursing,Gracefields Nursing Home,620.20, 24-Oct-2017
1224,Revenue,CAHD,Bed Purchasing - South,Permanent Nursing,Gracefields Nursing Home,3274.00, 24-Oct-2017
1225,Revenue,CAHD,South Glos Users in South Glos Homes,Permanent Nursing,Gracefields Nursing Home,620.20, 24-Oct-2017
1226,Revenue,CAHD,Bed Purchasing - South,Permanent Nursing,Gracefields Nursing Home,3094.72, 24-Oct-2017
1227,Revenue,CAHD,South Glos Users in South Glos Homes,Permanent Nursing,Gracefields Nursing Home,620.20, 24-Oct-2017
1228,Revenue,CAHD,Bed Purchasing - South,Permanent Nursing,Gracefields Nursing Home,3952.20, 24-Oct-2017
1229,Revenue,CAHD,South Glos Users in South Glos Homes,Permanent Nursing,Gracefields Nursing Home,620.20, 24-Oct-2017
1230,Revenue,CAHD,South Glos Users in South Glos Homes,Permanent Nursing,Gracefields Nursing Home,620.20, 24-Oct-2017
1231,Revenue,CAHD,South Glos Users in South Glos Homes,Permanent Nursing,Gracefields Nursing Home,620.20, 24-Oct-2017
1232,Revenue,CAHD,Bed Purchasing - South,Permanent Nursing,Gracefields Nursing Home,3400.00, 24-Oct-2017
1233,Revenue,CAHD,South Glos Users in South Glos Homes,Permanent Nursing,Gracefields Nursing Home,620.20, 24-Oct-2017
1234,Revenue,CAHD,South Glos Users in South Glos Homes,Permanent Nursing,Gracefields Nursing Home,620.20, 24-Oct-2017
1235,Revenue,CAHD,South Glos Users in South Glos Homes,Permanent Nursing,Gracefields Nursing Home,620.20, 24-Oct-2017
1236,Revenue,CAHD,South Glos Users in South Glos Homes,Permanent Nursing,Gracefields Nursing Home,620.20, 24-Oct-2017
1237,Revenue,CAHD,South Glos Users in South Glos Homes,Permanent Nursing,Gracefields Nursing Home,620.20, 24-Oct-2017
1238,Revenue,CAHD,South Glos Users in South Glos Homes,Permanent Nursing,Gracefields Nursing Home,620.20, 24-Oct-2017
1239,Revenue,CAHD,South Glos Users in South Glos Homes,Permanent Nursing,Gracefields Nursing Home,620.20, 24-Oct-2017
1240,Revenue,CAHD,South Glos Users in South Glos Homes,Permanent Nursing,Gracefields Nursing Home,620.20, 24-Oct-2017
1241,Revenue,CAHD,South Glos Users in South Glos Homes,Permanent Nursing,Gracefields Nursing Home,620.20, 24-Oct-2017
1242,Revenue,CAHD,South Glos Users in South Glos Homes,Permanent Nursing,Gracefields Nursing Home,620.20, 24-Oct-2017
1243,Revenue,CAHD,Bed Purchasing - South,Permanent Nursing,Gracefields Nursing Home,3071.40, 24-Oct-2017
1244,Revenue,CAHD,South Glos Users in South Glos Homes,Permanent Nursing,Gracefields Nursing Home,620.20, 24-Oct-2017
1245,Revenue,CAHD,South Glos Users in South Glos Homes,Permanent Nursing,Gracefields Nursing Home,1218.25, 24-Oct-2017
1246,Revenue,CAHD,South Glos Users in South Glos Homes,Permanent Nursing,Gracefields Nursing Home,620.20, 24-Oct-2017
1247,Revenue,CAHD,Bed Purchasing - Southmead Hospital,Permanent Nursing,Gracefields Nursing Home,3094.72, 24-Oct-2017
1248,Revenue,CAHD,South Glos Users in South Glos Homes,Permanent Nursing,Gracefields Nursing Home,620.20, 24-Oct-2017
1249,Revenue,CAHD,South Glos Users in South Glos Homes,Permanent Nursing,Gracefields Nursing Home,620.20, 24-Oct-2017
1250,Revenue,CAHD,Bed Purchasing - South,Permanent Nursing,Gracefields Nursing Home,2970.12, 24-Oct-2017
1251,Revenue,CAHD,South Glos Users in South Glos Homes,Permanent Nursing,Gracefields Nursing Home,620.20, 24-Oct-2017
1252,Revenue,CAHD,South Glos Users in South Glos Homes,Permanent Nursing,Gracefields Nursing Home,620.20, 24-Oct-2017
1253,Revenue,CAHD,South Glos Users in South Glos Homes,Permanent Nursing,Gracefields Nursing Home,620.20, 24-Oct-2017
1254,Revenue,CAHD,South Glos Users in South Glos Homes,Permanent Nursing,Gracefields Nursing Home,620.20, 24-Oct-2017
1255,Revenue,CAHD,South Glos Users in South Glos Homes,Permanent Nursing,Gracefields Nursing Home,620.20, 24-Oct-2017
1256,Revenue,CAHD,Bed Purchasing - South,Permanent Nursing,Gracefields Nursing Home,2445.68, 24-Oct-2017
1257,Revenue,CAHD,South Glos Users in South Glos Homes,Permanent Nursing,Gracefields Nursing Home,620.20, 24-Oct-2017
1258,Revenue,CAHD,Bed Purchasing - South,Permanent Nursing,Gracefields Nursing Home,3400.00, 24-Oct-2017
1259,Revenue,CAHD,South Glos Users in South Glos Homes,Permanent Nursing,Gracefields Nursing Home,620.20, 24-Oct-2017
1260,Revenue,CAHD,South Glos Users in South Glos Homes,Permanent Nursing,Gracefields Nursing Home,620.20, 24-Oct-2017
1261,Revenue,CAHD,Bed Purchasing - South,Permanent Nursing,Gracefields Nursing Home,2868.80, 24-Oct-2017
1262,Revenue,CAHD,South Glos Users in South Glos Homes,Permanent Nursing,Gracefields Nursing Home,620.20, 24-Oct-2017
1263,Revenue,CAHD,Bed Purchasing - Southmead Hospital,Permanent Nursing,Gracefields Nursing Home,3094.72, 24-Oct-2017
1264,Revenue,CAHD,South Glos Users in South Glos Homes,Permanent Nursing,Gracefields Nursing Home,620.20, 24-Oct-2017
1265,Revenue,CAHD,South Glos Users in South Glos Homes,Permanent Nursing,Gracefields Nursing Home,620.20, 24-Oct-2017
1266,Revenue,CAHD,Bed Purchasing - Southmead Hospital,Permanent Nursing,Gracefields Nursing Home,2445.68, 24-Oct-2017
1267,Revenue,CAHD,South Glos Users in South Glos Homes,Permanent Nursing,Gracefields Nursing Home,620.20, 24-Oct-2017
1268,Revenue,CAHD,Bed Purchasing - Southmead Hospital,Permanent Nursing,Gracefields Nursing Home,3274.00, 24-Oct-2017
1269,Revenue,CAHD,South Glos Users in South Glos Homes,Permanent Nursing,Gracefields Nursing Home,2569.40, 24-Oct-2017
1270,Revenue,CAHD,South Glos Users in South Glos Homes,Permanent Nursing,Gracefields Nursing Home,620.20, 24-Oct-2017
1271,Revenue,CAHD,Bed Purchasing - South,Permanent Residential,Granada House Residential Home,2200.00, 24-Oct-2017
1272,Revenue,CAHD,Bed Purchasing - North,Permanent Residential,Greensleeves,2036.72, 06-Oct-2017
1273,Revenue,CAHD,Bed Purchasing - North,Permanent Residential,Greensleeves,2036.72, 24-Oct-2017
1274,Revenue,CAHD,Bed Purchasing - South,Permanent Residential,Gwendoline House,2238.36, 24-Oct-2017
1275,Revenue,CAHD,Bed Purchasing - South,Permanent Residential,Gwendoline House,2370.40, 24-Oct-2017
1276,Revenue,CAHD,Bed Purchasing - Southmead Hospital,Permanent Residential,Gwendoline House,2380.00, 24-Oct-2017
1277,Revenue,CAHD,Bed Purchasing - Southmead Hospital,Permanent Residential,Gwendoline House,1105.00, 24-Oct-2017
1278,Revenue,CAHD,Bed Purchasing - Southmead Hospital,Permanent Residential,Gwendoline House,2068.24, 24-Oct-2017
1279,Revenue,CAHD,Home Care - Elderly - South,Other Small Contracts,H F T,797.00, 20-Oct-2017
1280,Revenue,CAHD,Home Care - Elderly - South,Other Small Contracts,H F T,860.76, 20-Oct-2017
1281,Revenue,CAHD,Section 117 Placements MH Younger,Permanent Residential,Harefield Hall,3039.00, 24-Oct-2017
1282,Revenue,CAHD,Bed Purchasing - South,Permanent Residential,Harefield Hall,2669.60, 24-Oct-2017
1283,Revenue,CAHD,Bed Purchasing - South,Permanent Residential,Harefield Hall,3002.52, 24-Oct-2017
1284,Revenue,CAHD,Bed Purchasing - South,Permanent Residential,Harefield Hall,2252.96, 24-Oct-2017
1285,Revenue,CAHD,Bed Purchasing - South,Permanent Residential,Harefield Hall,2443.48, 24-Oct-2017
1286,Revenue,CAHD,Bed Purchasing - South,Permanent Residential,Harefield Hall,2594.64, 24-Oct-2017
1287,Revenue,CAHD,Home Care Monitoring (CM2000),Other Supplies & Services,HAS Technology Limited T/A CM2000,10759.72, 11-Oct-2017
1288,Revenue,CAHD,Bed Purchasing - Southmead Hospital,Permanent Nursing,Hazelwood Gardens Nursing Home,2608.48, 24-Oct-2017
1289,Revenue,CAHD,Bed Purchasing - Southmead Hospital,Permanent Nursing,Hazelwood Gardens Nursing Home,2245.88, 24-Oct-2017
1290,Revenue,CAHD,Bed Purchasing - Southmead Hospital,Permanent Nursing,Hc-One Ltd,2211.24, 24-Oct-2017
1291,Revenue,CAHD,Bed Purchasing - Southmead Hospital,Permanent Residential,Hc-One Ltd,2140.32, 24-Oct-2017
1292,Revenue,CAHD,Bed Purchasing - Southmead Hospital,Permanent Nursing,Hc-One Ltd,2804.48, 24-Oct-2017
1293,Revenue,CAHD,Bed Purchasing - Southmead Hospital,Permanent Nursing,Hc-One Ltd,2003.20, 24-Oct-2017
1294,Revenue,CAHD,Bed Purchasing - Southmead Hospital,Permanent Nursing,Hc-One Ltd,2135.24, 24-Oct-2017
1295,Revenue,CAHD,Bed Purchasing - Southmead Hospital,Permanent Nursing,Hc-One Ltd,2763.76, 24-Oct-2017
1296,Revenue,CAHD,Bed Purchasing - North,Permanent Nursing,Hc-One Ltd,2130.64, 24-Oct-2017
1297,Revenue,CAHD,Bed Purchasing - North,Permanent Nursing,Hc-One Ltd,2116.36, 24-Oct-2017
1298,Revenue,CAHD,Bed Purchasing - Southmead Hospital,Permanent Nursing,Hc-One Ltd,27698.32, 24-Oct-2017
1299,Revenue,CAHD,Bed Purchasing - Southmead Hospital,Permanent Nursing,Hc-One Ltd,8338.00, 24-Oct-2017
1300,Revenue,CAHD,Bed Purchasing - Southmead Hospital,Fees & Charges Income - General,Hc-One Ltd,4469.30, 24-Oct-2017
1301,Revenue,CAHD,Bed Purchasing - Southmead Hospital,Fees & Charges Income - General,Hc-One Ltd,7477.63, 24-Oct-2017
1302,Revenue,CAHD,Bed Purchasing - Southmead Hospital,Fees & Charges Income - General,Hc-One Ltd,13773.07, 24-Oct-2017
1303,Revenue,CAHD,Bed Purchasing - Southmead Hospital,Permanent Residential,Hc-One Ltd,2224.52, 24-Oct-2017
1304,Revenue,CAHD,Bed Purchasing - North,Permanent Nursing,Hc-One Ltd,2553.98, 24-Oct-2017
1305,Revenue,CAHD,Bed Purchasing - North,Permanent Nursing,Hc-One Ltd,2130.64, 24-Oct-2017
1306,Revenue,CAHD,Bed Purchasing - North,Permanent Nursing,Hc-One Ltd,2130.60, 24-Oct-2017
1307,Revenue,CAHD,Bed Purchasing - Southmead Hospital,Permanent Nursing,Hc-One Ltd,2728.28, 24-Oct-2017
1308,Revenue,CAHD,Bed Purchasing - Southmead Hospital,Permanent Nursing,Hc-One Ltd,2804.48, 24-Oct-2017
1309,Revenue,CAHD,Bed Purchasing - Southmead Hospital,Permanent Nursing,Hc-One Ltd,2560.80, 24-Oct-2017
1310,Revenue,CAHD,Home Care - Elderly - South,Day Care / Social Activities,Headway Bristol,459.00, 02-Oct-2017
1311,Revenue,CAHD,Home Care - Elderly - South,Other Small Contracts,Headway Bristol,216.00, 02-Oct-2017
1312,Revenue,CAHD,Home Care - Elderly - North,Day Care / Social Activities,Headway Bristol,972.00, 02-Oct-2017
1313,Revenue,CAHD,Home Care - Elderly - North,Other Small Contracts,Headway Bristol,64.80, 02-Oct-2017
1314,Revenue,CAHD,Home Care - Elderly - South,Day Care / Social Activities,Headway Bristol,486.00, 09-Oct-2017
1315,Revenue,CAHD,Home Care - Elderly - South,Other Small Contracts,Headway Bristol,129.60, 09-Oct-2017
1316,Revenue,CAHD,Home Care - Elderly - North,Day Care / Social Activities,Headway Bristol,810.00, 09-Oct-2017
1317,Revenue,CAHD,Home Care - Elderly - North,Other Small Contracts,Headway Bristol,64.80, 09-Oct-2017
1318,Revenue,CAHD,Home Care - Elderly - South,Day Care / Social Activities,Headway Bristol,496.80, 16-Oct-2017
1319,Revenue,CAHD,Home Care - Elderly - South,Other Small Contracts,Headway Bristol,151.20, 16-Oct-2017
1320,Revenue,CAHD,Home Care - Elderly - North,Day Care / Social Activities,Headway Bristol,1090.80, 16-Oct-2017
1321,Revenue,CAHD,Home Care - Elderly - North,Other Small Contracts,Headway Bristol,64.80, 16-Oct-2017
1322,Revenue,CAHD,Younger MH non-res purchasing,Day Care / Social Activities,Headway Bristol,86.40, 16-Oct-2017
1323,Revenue,CAHD,Home Care - Elderly - South,Day Care / Social Activities,Headway Bristol,388.80, 23-Oct-2017
1324,Revenue,CAHD,Home Care - Elderly - South,Other Small Contracts,Headway Bristol,129.60, 23-Oct-2017
1325,Revenue,CAHD,Home Care - Elderly - North,Day Care / Social Activities,Headway Bristol,1328.40, 23-Oct-2017
1326,Revenue,CAHD,Home Care - Elderly - North,Other Small Contracts,Headway Bristol,64.80, 23-Oct-2017
1327,Revenue,CAHD,Younger MH non-res purchasing,Day Care / Social Activities,Headway Bristol,86.40, 23-Oct-2017
1328,Revenue,CAHD,Home Care - Elderly - South,Day Care / Social Activities,Headway Bristol,540.00, 30-Oct-2017
1329,Revenue,CAHD,Home Care - Elderly - South,Other Small Contracts,Headway Bristol,216.00, 30-Oct-2017
1330,Revenue,CAHD,Home Care - Elderly - North,Day Care / Social Activities,Headway Bristol,1069.20, 30-Oct-2017
1331,Revenue,CAHD,Home Care - Elderly - North,Other Small Contracts,Headway Bristol,194.40, 30-Oct-2017
1332,Revenue,CAHD,Home Care - Elderly - South,Other Small Contracts,Helping Hands Homecare,855.68, 06-Oct-2017
1333,Revenue,CAHD,Home Care - Elderly - North,Day Care / Social Activities,Helping Hands Homecare,210.56, 06-Oct-2017
1334,Revenue,CAHD,Home Care - Elderly - North,Other Small Contracts,Helping Hands Homecare,5452.83, 06-Oct-2017
1335,Revenue,CAHD,Younger MH non-res purchasing,Other Small Contracts,Helping Hands Homecare,33.42, 06-Oct-2017
1336,Revenue,CAHD,Home Care - Elderly - South,Other Small Contracts,Helping Hands Homecare,784.00, 13-Oct-2017
1337,Revenue,CAHD,Home Care - Elderly - North,Day Care / Social Activities,Helping Hands Homecare,215.04, 13-Oct-2017
1338,Revenue,CAHD,Home Care - Elderly - North,Other Small Contracts,Helping Hands Homecare,5742.86, 13-Oct-2017
1339,Revenue,CAHD,Younger MH non-res purchasing,Other Small Contracts,Helping Hands Homecare,66.84, 13-Oct-2017
1340,Revenue,CAHD,Home Care - Elderly - South,Other Small Contracts,Helping Hands Homecare,654.08, 20-Oct-2017
1341,Revenue,CAHD,Home Care - Elderly - North,Day Care / Social Activities,Helping Hands Homecare,129.92, 20-Oct-2017
1342,Revenue,CAHD,Home Care - Elderly - North,Other Small Contracts,Helping Hands Homecare,5304.40, 20-Oct-2017
1343,Revenue,CAHD,S117 Placements PCT,Permanent Residential,Hesley Hall,18899.04, 24-Oct-2017
1344,Revenue,CAHD,Bed Purchasing - North,Permanent Residential,High Border Lodge,2001.68, 24-Oct-2017
1345,Revenue,CAHD,Bed Purchasing - Southmead Hospital,Permanent Residential,Highgate Studios,2378.68, 24-Oct-2017
1346,Revenue,CAHD,Bed Purchasing - Southmead Hospital,Permanent Nursing,Holly Villa,2063.48, 24-Oct-2017
1347,Revenue,CAHD,Bed Purchasing - North,Permanent Residential,Holmleigh Care Homes Ltd,4579.12, 24-Oct-2017
1348,Revenue,CAHD,Bed Purchasing - South,Permanent Residential,Holmleigh Care Homes Ltd,4374.12, 24-Oct-2017
1349,Revenue,CAHD,Jointly Funded H&SC Packages,Permanent Residential,Holmleigh Care Homes Ltd,1253.16, 24-Oct-2017
1350,Revenue,CAHD,Bed Purchasing - North,Permanent Residential,Home Farm Trust Ltd  5-6 Brook Office Pa,3316.24, 24-Oct-2017
1351,Revenue,CAHD,Bed Purchasing - North,Permanent Residential,Home Farm Trust Ltd  5-6 Brook Office Pa,3852.32, 24-Oct-2017
1352,Revenue,CAHD,Home Care - Elderly - South,Supported Living,Home Farm Trust Ltd  5-6 Brook Office Pa,4074.20, 24-Oct-2017
1353,Revenue,CAHD,18-25 Year Olds,Permanent Residential,Home From Home Care Ltd,9740.76, 24-Oct-2017
1354,Revenue,CAHD,Bed Purchasing - North,Permanent Residential,Homes Caring For Autism Ltd  Churchill H,8175.92, 24-Oct-2017
1355,Revenue,CAHD,Jointly Funded H&SC Packages,Permanent Residential,Homes Caring For Autism Ltd  Churchill H,2470.36, 24-Oct-2017
1356,Revenue,CAHD,18-25 Year Olds,Permanent Residential,Homes Caring For Autism Ltd  Churchill H,5765.32, 24-Oct-2017
1357,Revenue,CAHD,Jointly Funded H&SC Packages,Permanent Residential,Homes Caring For Autism Ltd  Churchill H,8039.24, 24-Oct-2017
1358,Revenue,CAHD,Bed Purchasing - Southmead Hospital,Permanent Nursing,Horfield Care Limited,1458.56, 09-Oct-2017
1359,Revenue,CAHD,Bed Purchasing - Southmead Hospital,Permanent Nursing,Horfield Care Limited,1844.36, 09-Oct-2017
1360,Revenue,CAHD,Bed Purchasing - Southmead Hospital,Permanent Nursing,Horfield Care Limited,1488.38, 09-Oct-2017
1361,Revenue,CAHD,Bed Purchasing - South,Permanent Nursing,Horfield Care Limited,1346.91, 09-Oct-2017
1362,Revenue,CAHD,Bed Purchasing - South,Permanent Nursing,Horfield Care Limited,1367.91, 09-Oct-2017
1363,Revenue,CAHD,Younger MH non-res purchasing,Supported Living,Horizon,1194.40, 24-Oct-2017
1364,Revenue,CAHD,Home Care - Elderly - South,Private & Voluntary Home Care,Housing & Care 21,9677.00, 26-Oct-2017
1365,Revenue,CAHD,Home Care - Elderly - North,Private & Voluntary Home Care,Housing & Care 21,9677.00, 26-Oct-2017
1366,Revenue,CAHD,Home Care - Elderly - South,Other Supplies & Services,Housing & Care 21,3577.04, 26-Oct-2017
1367,Revenue,CAHD,Home Care - Elderly - North,Day Care / Social Activities,Housing & Care 21,1173.90, 26-Oct-2017
1368,Revenue,CAHD,Home Care - Elderly - North,Day Care / Social Activities,Housing & Care 21,1173.90, 26-Oct-2017
1369,Revenue,CAHD,Extra Care Housing,Private & Voluntary Home Care,Housing 21,40614.39, 10-Oct-2017
1370,Revenue,CAHD,Social Lettings Agency,Fees - General,Individual,12.22, 11-Oct-2017
1371,Revenue,CAHD,Social Lettings Agency,Other Supplies & Services,Individual,624.92, 11-Oct-2017
1372,Revenue,CAHD,Social Lettings Agency,Other Supplies & Services,Individual,576.00, 30-Oct-2017
1373,Revenue,CAHD,Training - Adult Services,Training Expenses,Jo Williams,826.00, 11-Oct-2017
1374,Revenue,CAHD,Training - Adult Services,Training Expenses,Jonathan Coles,640.00, 06-Oct-2017
1375,Revenue,CAHD,Bed Purchasing - South,Permanent Residential,Jonen House,4147.72, 24-Oct-2017
1376,Revenue,CAHD,Home Care - Elderly - South,Supported Living,Julia Simone- Supp. Ind.,1209.92, 24-Oct-2017
1377,Revenue,CAHD,Younger MH non-res purchasing,Supported Living,Julia Simone- Supp. Ind.,1209.92, 24-Oct-2017
1378,Revenue,CAHD,Home Care - Elderly - North,Supported Living,Julia Simone- Supp. Ind.,1244.76, 24-Oct-2017
1379,Revenue,CAHD,Younger MH non-res purchasing,Supported Living,Julia Simone- Supp. Ind.,1450.34, 24-Oct-2017
1380,Revenue,CAHD,Younger MH non-res purchasing,Supported Living,Julia Simone- Supp. Ind.,1194.40, 24-Oct-2017
1381,Revenue,CAHD,Younger MH non-res purchasing,Supported Living,Julia Simone- Supp. Ind.,1209.76, 24-Oct-2017
1382,Revenue,CAHD,Younger MH non-res purchasing,Supported Living,Julia Simone- Supp. Ind.,1209.88, 24-Oct-2017
1383,Revenue,CAHD,Younger MH non-res purchasing,Supported Living,Julia Simone- Supp. Ind.,1209.92, 24-Oct-2017
1384,Revenue,CAHD,Bed Purchasing - South,Permanent Residential,Julia Simone- Supp. Ind.,4475.32, 24-Oct-2017
1385,Revenue,CAHD,Bed purchasing -S28A  Under 65 - North,Permanent Residential,Julia Simone- Supp. Ind.,3988.04, 24-Oct-2017
1386,Revenue,CAHD,Services,Services,Individual,9647.10, 20-Oct-2017
1387,Revenue,CAHD,Bed Purchasing - Elderly S117- North,Permanent Residential,Kahala Court,2800.00, 24-Oct-2017
1388,Revenue,CAHD,Management & Support costs,Other Supplies & Services,Keith Smith,929.87, 24-Oct-2017
1389,Revenue,CAHD,Home Care - Elderly - South,Other Small Contracts,Kensington Community Care,2168.32, 04-Oct-2017
1390,Revenue,CAHD,Home Care - Elderly - North,Other Small Contracts,Kensington Community Care,6007.68, 04-Oct-2017
1391,Revenue,CAHD,Home Care - Elderly - South,Other Small Contracts,Kensington Community Care,1814.40, 13-Oct-2017
1392,Revenue,CAHD,Home Care - Elderly - North,Other Small Contracts,Kensington Community Care,5761.28, 13-Oct-2017
1393,Revenue,CAHD,Home Care - Elderly - South,Other Small Contracts,Kensington Community Care,2150.40, 20-Oct-2017
1394,Revenue,CAHD,Home Care - Elderly - North,Other Small Contracts,Kensington Community Care,6491.52, 20-Oct-2017
1395,Revenue,CAHD,Home Care - Elderly - South,Other Small Contracts,Kensington Community Care,2141.44, 27-Oct-2017
1396,Revenue,CAHD,Home Care - Elderly - North,Other Small Contracts,Kensington Community Care,6164.48, 27-Oct-2017
1397,Revenue,CAHD,Bed Purchasing - Southmead Hospital,Permanent Residential,Kenver House Residential Home,2248.96, 24-Oct-2017
1398,Revenue,CAHD,Bed Purchasing - South,Permanent Residential,Kenver House Residential Home,2252.04, 24-Oct-2017
1399,Revenue,CAHD,Bed Purchasing - Southmead Hospital,Permanent Residential,Kenver House Residential Home,2316.00, 24-Oct-2017
1400,Revenue,CAHD,Bed Purchasing - South,Permanent Residential,Kenver House Residential Home,2463.08, 24-Oct-2017
1401,Revenue,CAHD,Bed purchasing - Elderly S117 - South,Permanent Residential,Kenver House Residential Home,2463.08, 24-Oct-2017
1402,Revenue,CAHD,Bed Purchasing - South,Permanent Residential,Kenver House Residential Home,2613.56, 24-Oct-2017
1403,Revenue,CAHD,Bed Purchasing - South,Permanent Residential,Kenver House Residential Home,2463.08, 24-Oct-2017
1404,Revenue,CAHD,Bed Purchasing - South,Permanent Residential,Kenver House Residential Home,2463.08, 24-Oct-2017
1405,Revenue,CAHD,Bed Purchasing - South,Permanent Residential,Kenver House Residential Home,2248.96, 24-Oct-2017
1406,Revenue,CAHD,Home Care - Elderly - South,Other Small Contracts,Keyring Living Support Networks,1336.00, 19-Oct-2017
1407,Revenue,CAHD,Home Care - Elderly - North,Other Small Contracts,Keyring Living Support Networks,1264.00, 19-Oct-2017
1408,Revenue,CAHD,Home Care - Elderly - South,Other Small Contracts,Keyring Living Support Networks,1272.00, 19-Oct-2017
1409,Revenue,CAHD,Bed Purchasing - North,Permanent Residential,Kilkhampton Lodge,17727.52, 24-Oct-2017
1410,Revenue,CAHD,Bed Purchasing - North,Permanent Nursing,Kingfisher Lodge Care Centre,3329.08, 24-Oct-2017
1411,Revenue,CAHD,Bed Purchasing - Southmead Hospital,Permanent Nursing,Kingfisher Lodge Care Centre,3600.00, 24-Oct-2017
1412,Revenue,CAHD,Bed purchasing - Elderly S117 - South,Permanent Nursing,Kingfisher Lodge Care Centre,4579.80, 24-Oct-2017
1413,Revenue,CAHD,Bed Purchasing - North,Permanent Residential,Kisimul Group,12236.52, 24-Oct-2017
1414,Revenue,CAHD,Bed and Breakfast,Bed & Breakfast,Knightstone Housing Association Limited,1432.20, 18-Oct-2017
1415,Revenue,CAHD,Bed and Breakfast,Bed & Breakfast,Knightstone Housing Association Limited,1825.11, 10-Oct-2017
1416,Revenue,CAHD,Bed and Breakfast,Bed & Breakfast,Knightstone Housing Association Limited,2148.09, 10-Oct-2017
1417,Revenue,CAHD,Bed and Breakfast,Bed & Breakfast,Knightstone Housing Association Limited,1384.35, 10-Oct-2017
1418,Revenue,CAHD,Bed and Breakfast,Bed & Breakfast,Knightstone Housing Association Limited,2794.26, 11-Oct-2017
1419,Revenue,CAHD,Bed and Breakfast,Bed & Breakfast,Knightstone Housing Association Limited,1074.15, 20-Oct-2017
1420,Revenue,CAHD,Bed and Breakfast,Bed & Breakfast,Knightstone Housing Association Limited,2148.09, 20-Oct-2017
1421,Revenue,CAHD,Bed and Breakfast,Bed & Breakfast,Knightstone Housing Association Limited,931.42, 20-Oct-2017
1422,Revenue,CAHD,Bed and Breakfast,Bed & Breakfast,Knightstone Housing Association Limited,716.03, 20-Oct-2017
1423,Revenue,CAHD,Bed and Breakfast,Bed & Breakfast,Knightstone Housing Association Limited,716.03, 12-Oct-2017
1424,Revenue,CAHD,Bed and Breakfast,Bed & Breakfast,Knightstone Housing Association Limited,608.37, 12-Oct-2017
1425,Revenue,CAHD,Home Care - Elderly - South,Other Small Contracts,Kumari Care Limited,777.34, 04-Oct-2017
1426,Revenue,CAHD,Home Care - Elderly - North,Other Small Contracts,Kumari Care Limited,936.37, 04-Oct-2017
1427,Revenue,CAHD,Home Care - Elderly - South,Other Small Contracts,Kumari Care Limited,676.26, 16-Oct-2017
1428,Revenue,CAHD,Home Care - Elderly - North,Other Small Contracts,Kumari Care Limited,1001.98, 16-Oct-2017
1429,Revenue,CAHD,Home Care - Elderly - South,Other Small Contracts,Kumari Care Limited,716.04, 17-Oct-2017
1430,Revenue,CAHD,Home Care - Elderly - North,Other Small Contracts,Kumari Care Limited,1001.98, 17-Oct-2017
1431,Revenue,CAHD,Home Care - Elderly - South,Other Small Contracts,Kumari Care Limited,724.88, 27-Oct-2017
1432,Revenue,CAHD,Home Care - Elderly - North,Other Small Contracts,Kumari Care Limited,1001.98, 27-Oct-2017
1433,Revenue,CAHD,Learning Difficulties Development Fund,Other Supplies & Services,L D Awareness,1367.50, 09-Oct-2017
1434,Revenue,CAHD,Bed Purchasing - North,Permanent Nursing,Larchfield Care Home,3068.36, 24-Oct-2017
1435,Revenue,CAHD,Bed Purchasing - North,Permanent Residential,Leonard Cheshire  National Account Centr,3517.16, 24-Oct-2017
1436,Revenue,CAHD,Bed Purchasing - South,Permanent Residential,Leonard Cheshire  National Account Centr,3889.64, 24-Oct-2017
1437,Revenue,CAHD,Bed Purchasing - North,Permanent Nursing,Leonard Cheshire  National Account Centr,4082.72, 24-Oct-2017
1438,Revenue,CAHD,Bed Purchasing - North,Permanent Nursing,Leonard Cheshire  National Account Centr,3361.60, 24-Oct-2017
1439,Revenue,CAHD,18-25 Year Olds,Permanent Residential,Leonard Cheshire  National Account Centr,3757.76, 24-Oct-2017
1440,Revenue,CAHD,Bed Purchasing - North,Permanent Residential,Leonard Cheshire  National Account Centr,6516.64, 24-Oct-2017
1441,Revenue,CAHD,Bed Purchasing - North,Permanent Nursing,Leonard Cheshire  National Account Centr,5246.76, 24-Oct-2017
1442,Revenue,CAHD,Bed Purchasing - North,Permanent Nursing,Leonard Cheshire  National Account Centr,3402.80, 24-Oct-2017
1443,Revenue,CAHD,Bed Purchasing - North,Permanent Nursing,Leonard Cheshire  National Account Centr,5131.24, 24-Oct-2017
1444,Revenue,CAHD,Bed Purchasing - North,Permanent Residential,Leonard Cheshire  National Account Centr,3457.60, 24-Oct-2017
1445,Revenue,CAHD,Bed Purchasing - North,Permanent Nursing,Leonard Cheshire  National Account Centr,3302.88, 24-Oct-2017
1446,Revenue,CAHD,Bed Purchasing - North,Permanent Nursing,Leonard Cheshire  National Account Centr,5866.96, 24-Oct-2017
1447,Revenue,CAHD,Bed Purchasing - South,Permanent Nursing,Leonard Cheshire  National Account Centr,3488.56, 24-Oct-2017
1448,Revenue,CAHD,Bed Purchasing - Southmead Hospital,Permanent Nursing,Leonard Cheshire  National Account Centr,3572.28, 24-Oct-2017
1449,Revenue,CAHD,Bed Purchasing - South,Respite Planned - Nursing,Leonard Cheshire  National Account Centr,22041.91, 24-Oct-2017
1450,Revenue,CAHD,Bed Purchasing - North,Permanent Nursing,Leonard Cheshire  National Account Centr,3910.52, 24-Oct-2017
1451,Revenue,CAHD,Bed Purchasing - North,Permanent Nursing,Leonard Cheshire  National Account Centr,4692.36, 24-Oct-2017
1452,Revenue,CAHD,18-25 Year Olds,Permanent Residential,Linden House,9647.20, 24-Oct-2017
1453,Revenue,CAHD,Bed Purchasing - North,Permanent Residential,Linden House,8211.64, 24-Oct-2017
1454,Revenue,CAHD,Bed Purchasing - South,Permanent Residential,Linden House,29524.88, 24-Oct-2017
1455,Revenue,CAHD,Bed Purchasing - South,Permanent Residential,Linden House,8435.68, 24-Oct-2017
1456,Revenue,CAHD,Bed Purchasing - South,Fees & Charges Income - General,Linden House,921.94, 24-Oct-2017
1457,Revenue,CAHD,Bed purchasing -S28A  Under 65 - North,Permanent Residential,Linden House,19952.76, 24-Oct-2017
1458,Revenue,CAHD,Bed purchasing -S28A  Under 65 - North,Permanent Residential,Linden House,12145.16, 24-Oct-2017
1459,Revenue,CAHD,Bed Purchasing - Southmead Hospital,Permanent Residential,Little Croft,1886.24, 24-Oct-2017
1460,Revenue,CAHD,Bed Purchasing - South,Permanent Residential,Little Croft,2053.56, 24-Oct-2017
1461,Revenue,CAHD,Bed Purchasing - Southmead Hospital,Permanent Residential,Little Croft,1886.24, 24-Oct-2017
1462,Revenue,CAHD,Bed Purchasing - North,Permanent Residential,Little Croft,1886.24, 24-Oct-2017
1463,Revenue,CAHD,Bed Purchasing - Southmead Hospital,Permanent Residential,Little Croft,2258.92, 24-Oct-2017
1464,Revenue,CAHD,Bed Purchasing - South,Permanent Residential,Little Croft,2735.12, 24-Oct-2017
1465,Revenue,CAHD,Bed Purchasing - South,Permanent Residential,Little Croft,5785.71, 24-Oct-2017
1466,Revenue,CAHD,Bed Purchasing - South,Permanent Residential,Little Croft,3000.00, 24-Oct-2017
1467,Revenue,CAHD,Bed Purchasing - South,Permanent Residential,Little Croft,2329.92, 24-Oct-2017
1468,Revenue,CAHD,Bed Purchasing - Southmead Hospital,Permanent Residential,Little Croft,3000.00, 24-Oct-2017
1469,Revenue,CAHD,Bed Purchasing - Southmead Hospital,Permanent Residential,Little Croft,2735.12, 24-Oct-2017
1470,Revenue,CAHD,Bed Purchasing - South,Permanent Residential,Little Croft,1886.24, 24-Oct-2017
1471,Revenue,CAHD,Bed Purchasing - Southmead Hospital,Permanent Residential,Little Croft,2735.12, 24-Oct-2017
1472,Revenue,CAHD,Bed Purchasing - Southmead Hospital,Permanent Residential,Little Croft,2373.64, 24-Oct-2017
1473,Revenue,CAHD,Bed Purchasing - Southmead Hospital,Permanent Residential,Little Croft,1867.92, 24-Oct-2017
1474,Revenue,CAHD,Bed Purchasing - Southmead Hospital,Permanent Residential,Little Croft,2048.96, 24-Oct-2017
1475,Revenue,CAHD,Bed Purchasing - Southmead Hospital,Permanent Residential,Little Croft,2532.52, 24-Oct-2017
1476,Revenue,CAHD,Bed Purchasing - Southmead Hospital,Permanent Residential,Little Croft,2735.12, 24-Oct-2017
1477,Revenue,CAHD,Bed Purchasing - South,Permanent Residential,Little Croft,5785.71, 24-Oct-2017
1478,Revenue,CAHD,Bed Purchasing - South,Permanent Residential,Little Croft,3000.00, 24-Oct-2017
1479,Revenue,CAHD,Bed Purchasing - South,Fees & Charges Income - General,Little Croft,1017.98, 24-Oct-2017
1480,Revenue,CAHD,Bed Purchasing - Southmead Hospital,Permanent Residential,Little Croft,1886.24, 24-Oct-2017
1481,Revenue,CAHD,Bed Purchasing - South,Permanent Residential,Little Croft,2329.92, 24-Oct-2017
1482,Revenue,CAHD,Bed Purchasing - South,Permanent Residential,Little Croft,3000.00, 24-Oct-2017
1483,Revenue,CAHD,Bed Purchasing - Southmead Hospital,Permanent Residential,Little Croft,2735.12, 24-Oct-2017
1484,Revenue,CAHD,Bed Purchasing - Southmead Hospital,Permanent Residential,Little Croft,1823.40, 24-Oct-2017
1485,Revenue,CAHD,Bed Purchasing - South,Permanent Residential,Little Croft,2070.72, 24-Oct-2017
1486,Revenue,CAHD,Bed Purchasing - Southmead Hospital,Permanent Residential,Little Croft,1886.24, 24-Oct-2017
1487,Revenue,CAHD,Bed Purchasing - Southmead Hospital,Permanent Residential,Little Croft,1886.24, 24-Oct-2017
1488,Revenue,CAHD,Bed Purchasing - South,Permanent Residential,Little Croft,2228.60, 24-Oct-2017
1489,Revenue,CAHD,Bed Purchasing - North,Permanent Residential,Littlecroft Residential Homes  Longcroft,7058.16, 24-Oct-2017
1490,Revenue,CAHD,18-25 Year Olds,Supported Living,Lloyds TSB Commercial Finance Limited,2916.48, 04-Oct-2017
1491,Revenue,CAHD,Home Care - Elderly - South,Day Care / Social Activities,Lloyds TSB Commercial Finance Limited,5622.40, 04-Oct-2017
1492,Revenue,CAHD,Home Care - Elderly - South,Other Small Contracts,Lloyds TSB Commercial Finance Limited,6471.09, 04-Oct-2017
1493,Revenue,CAHD,Home Care - Elderly - South,Supported Living,Lloyds TSB Commercial Finance Limited,8653.70, 04-Oct-2017
1494,Revenue,CAHD,Home Care - Elderly - North,Day Care / Social Activities,Lloyds TSB Commercial Finance Limited,215.04, 04-Oct-2017
1495,Revenue,CAHD,Home Care - Elderly - North,Supported Living,Lloyds TSB Commercial Finance Limited,1599.36, 04-Oct-2017
1496,Revenue,CAHD,Younger MH non-res purchasing,Other Small Contracts,Lloyds TSB Commercial Finance Limited,10928.56, 04-Oct-2017
1497,Revenue,CAHD,18-25 Year Olds,Supported Living,Lloyds TSB Commercial Finance Limited,2916.48, 12-Oct-2017
1498,Revenue,CAHD,Home Care - Elderly - South,Day Care / Social Activities,Lloyds TSB Commercial Finance Limited,5537.28, 12-Oct-2017
1499,Revenue,CAHD,Home Care - Elderly - South,Other Small Contracts,Lloyds TSB Commercial Finance Limited,6461.75, 12-Oct-2017
1500,Revenue,CAHD,Home Care - Elderly - South,Supported Living,Lloyds TSB Commercial Finance Limited,8986.80, 12-Oct-2017
1501,Revenue,CAHD,Home Care - Elderly - North,Day Care / Social Activities,Lloyds TSB Commercial Finance Limited,215.04, 12-Oct-2017
1502,Revenue,CAHD,Home Care - Elderly - North,Supported Living,Lloyds TSB Commercial Finance Limited,2011.52, 12-Oct-2017
1503,Revenue,CAHD,Younger MH non-res purchasing,Other Small Contracts,Lloyds TSB Commercial Finance Limited,10923.80, 12-Oct-2017
1504,Revenue,CAHD,18-25 Year Olds,Supported Living,Lloyds TSB Commercial Finance Limited,2916.48, 27-Oct-2017
1505,Revenue,CAHD,Home Care - Elderly - South,Day Care / Social Activities,Lloyds TSB Commercial Finance Limited,5658.24, 27-Oct-2017
1506,Revenue,CAHD,Home Care - Elderly - South,Other Small Contracts,Lloyds TSB Commercial Finance Limited,7988.84, 27-Oct-2017
1507,Revenue,CAHD,Home Care - Elderly - South,Supported Living,Lloyds TSB Commercial Finance Limited,6801.28, 27-Oct-2017
1508,Revenue,CAHD,Home Care - Elderly - North,Day Care / Social Activities,Lloyds TSB Commercial Finance Limited,215.04, 27-Oct-2017
1509,Revenue,CAHD,Home Care - Elderly - North,Supported Living,Lloyds TSB Commercial Finance Limited,1590.40, 27-Oct-2017
1510,Revenue,CAHD,Younger MH non-res purchasing,Other Small Contracts,Lloyds TSB Commercial Finance Limited,10934.64, 27-Oct-2017
1511,Revenue,CAHD,18-25 Year Olds,Supported Living,Lloyds TSB Commercial Finance Limited,2916.48, 27-Oct-2017
1512,Revenue,CAHD,Home Care - Elderly - South,Day Care / Social Activities,Lloyds TSB Commercial Finance Limited,5631.36, 27-Oct-2017
1513,Revenue,CAHD,Home Care - Elderly - South,Other Small Contracts,Lloyds TSB Commercial Finance Limited,8467.44, 27-Oct-2017
1514,Revenue,CAHD,Home Care - Elderly - South,Supported Living,Lloyds TSB Commercial Finance Limited,6762.54, 27-Oct-2017
1515,Revenue,CAHD,Home Care - Elderly - North,Day Care / Social Activities,Lloyds TSB Commercial Finance Limited,215.04, 27-Oct-2017
1516,Revenue,CAHD,Home Care - Elderly - North,Supported Living,Lloyds TSB Commercial Finance Limited,2007.04, 27-Oct-2017
1517,Revenue,CAHD,Younger MH non-res purchasing,Other Small Contracts,Lloyds TSB Commercial Finance Limited,10940.04, 27-Oct-2017
1518,Revenue,CAHD,Home Care - Elderly - North,Other Small Contracts,Lloyds TSB Commercial Finance Limited,766.08, 10-Oct-2017
1519,Revenue,CAHD,Home Care - Elderly - South,Other Small Contracts,Lloyds TSB Commercial Finance Limited,2298.24, 18-Oct-2017
1520,Revenue,CAHD,Home Care - Elderly - South,Other Small Contracts,Lloyds TSB Commercial Finance Limited,2298.24, 04-Oct-2017
1521,Revenue,CAHD,Home Care - Elderly - South,Other Small Contracts,Lloyds TSB Commercial Finance Limited,2298.24, 04-Oct-2017
1522,Revenue,CAHD,Home Care - Elderly - South,Other Small Contracts,Lloyds TSB Commercial Finance Limited,912.00, 17-Oct-2017
1523,Revenue,CAHD,Home Care - Elderly - South,Other Small Contracts,Lloyds TSB Commercial Finance Limited,2444.16, 04-Oct-2017
1524,Revenue,CAHD,CAH Assistant Directors,Other Supplies & Services,Local Government Association,900.00, 09-Oct-2017
1525,Revenue,CAHD,CAH Assistant Directors,Other Supplies & Services,Local Government Association,1350.00, 09-Oct-2017
1526,Revenue,CAHD,South Glos Users in South Glos Homes,Permanent Nursing,Lodge House,620.20, 24-Oct-2017
1527,Revenue,CAHD,South Glos Users in South Glos Homes,Permanent Nursing,Lodge House,620.20, 24-Oct-2017
1528,Revenue,CAHD,Bed Purchasing - South,Permanent Nursing,Lodge House,2248.72, 24-Oct-2017
1529,Revenue,CAHD,South Glos Users in South Glos Homes,Permanent Nursing,Lodge House,620.20, 24-Oct-2017
1530,Revenue,CAHD,Bed Purchasing - South,Permanent Nursing,Lodge House,3239.80, 24-Oct-2017
1531,Revenue,CAHD,South Glos Users in South Glos Homes,Permanent Nursing,Lodge House,620.20, 24-Oct-2017
1532,Revenue,CAHD,South Glos Users in South Glos Homes,Permanent Nursing,Lodge House,620.20, 24-Oct-2017
1533,Revenue,CAHD,South Glos Users in South Glos Homes,Permanent Nursing,Lodge House,620.20, 24-Oct-2017
1534,Revenue,CAHD,Bed Purchasing - South,Permanent Nursing,Lodge House,2744.68, 24-Oct-2017
1535,Revenue,CAHD,South Glos Users in South Glos Homes,Permanent Nursing,Lodge House,620.20, 24-Oct-2017
1536,Revenue,CAHD,South Glos Users in South Glos Homes,Permanent Nursing,Lodge House,620.20, 24-Oct-2017
1537,Revenue,CAHD,South Glos Users in South Glos Homes,Permanent Nursing,Lodge House,620.20, 24-Oct-2017
1538,Revenue,CAHD,Bed Purchasing - South,Permanent Nursing,Lodge House,3109.92, 24-Oct-2017
1539,Revenue,CAHD,South Glos Users in South Glos Homes,Permanent Nursing,Lodge House,620.20, 24-Oct-2017
1540,Revenue,CAHD,Bed Purchasing - South,Permanent Nursing,Lodge House,3992.00, 24-Oct-2017
1541,Revenue,CAHD,South Glos Users in South Glos Homes,Permanent Nursing,Lodge House,1351.15, 24-Oct-2017
1542,Revenue,CAHD,South Glos Users in South Glos Homes,Permanent Nursing,Lodge House,620.20, 24-Oct-2017
1543,Revenue,CAHD,South Glos Users in South Glos Homes,Permanent Nursing,Lodge House,620.20, 24-Oct-2017
1544,Revenue,CAHD,South Glos Users in South Glos Homes,Permanent Nursing,Lodge House,620.20, 24-Oct-2017
1545,Revenue,CAHD,South Glos Users in South Glos Homes,Permanent Nursing,Lodge House,620.20, 24-Oct-2017
1546,Revenue,CAHD,Bed Purchasing - Southmead Hospital,Permanent Nursing,Lodge House,3109.92, 24-Oct-2017
1547,Revenue,CAHD,South Glos Users in South Glos Homes,Permanent Nursing,Lodge House,620.20, 24-Oct-2017
1548,Revenue,CAHD,South Glos Users in South Glos Homes,Permanent Nursing,Lodge House,620.20, 24-Oct-2017
1549,Revenue,CAHD,South Glos Users in South Glos Homes,Permanent Nursing,Lodge House,620.20, 24-Oct-2017
1550,Revenue,CAHD,Bed Purchasing - Southmead Hospital,Permanent Nursing,Lodge House,3239.80, 24-Oct-2017
1551,Revenue,CAHD,South Glos Users in South Glos Homes,Permanent Nursing,Lodge House,620.20, 24-Oct-2017
1552,Revenue,CAHD,Bed Purchasing - North,Permanent Nursing,Lodge House,2987.84, 24-Oct-2017
1553,Revenue,CAHD,South Glos Users in South Glos Homes,Permanent Nursing,Lodge House,620.20, 24-Oct-2017
1554,Revenue,CAHD,Bed Purchasing - South,Permanent Nursing,Lodge House,3277.04, 24-Oct-2017
1555,Revenue,CAHD,South Glos Users in South Glos Homes,Permanent Nursing,Lodge House,620.20, 24-Oct-2017
1556,Revenue,CAHD,Bed Purchasing - Southmead Hospital,Permanent Nursing,Lodge House,3860.00, 24-Oct-2017
1557,Revenue,CAHD,South Glos Users in South Glos Homes,Permanent Nursing,Lodge House,620.20, 24-Oct-2017
1558,Revenue,CAHD,Bed Purchasing - South,Permanent Nursing,Lodge House,3991.80, 24-Oct-2017
1559,Revenue,CAHD,South Glos Users in South Glos Homes,Permanent Nursing,Lodge House,620.20, 24-Oct-2017
1560,Revenue,CAHD,South Glos Users in South Glos Homes,Permanent Nursing,Lodge House,620.20, 24-Oct-2017
1561,Revenue,CAHD,Bed Purchasing - South,Permanent Nursing,Lodge House,3239.80, 24-Oct-2017
1562,Revenue,CAHD,South Glos Users in South Glos Homes,Permanent Nursing,Lodge House,620.20, 24-Oct-2017
1563,Revenue,CAHD,South Glos Users in South Glos Homes,Permanent Nursing,Lodge House,620.20, 24-Oct-2017
1564,Revenue,CAHD,South Glos Users in South Glos Homes,Permanent Nursing,Lodge House,620.20, 24-Oct-2017
1565,Revenue,CAHD,South Glos Users in South Glos Homes,Permanent Nursing,Lodge House,620.20, 24-Oct-2017
1566,Revenue,CAHD,Bed Purchasing - Southmead Hospital,Permanent Nursing,Lodge House,3992.00, 24-Oct-2017
1567,Revenue,CAHD,South Glos Users in South Glos Homes,Permanent Nursing,Lodge House,1772.00, 24-Oct-2017
1568,Revenue,CAHD,South Glos Users in South Glos Homes,Permanent Nursing,Lodge House,620.20, 24-Oct-2017
1569,Revenue,CAHD,South Glos Users in South Glos Homes,Permanent Nursing,Lodge House,620.20, 24-Oct-2017
1570,Revenue,CAHD,South Glos Users in South Glos Homes,Permanent Nursing,Lodge House,620.20, 24-Oct-2017
1571,Revenue,CAHD,South Glos Users in South Glos Homes,Permanent Nursing,Lodge House,620.20, 24-Oct-2017
1572,Revenue,CAHD,Bed Purchasing - South,Permanent Nursing,Lodge House,3277.04, 24-Oct-2017
1573,Revenue,CAHD,South Glos Users in South Glos Homes,Permanent Nursing,Lodge House,620.20, 24-Oct-2017
1574,Revenue,CAHD,South Glos Users in South Glos Homes,Permanent Nursing,Lodge House,620.20, 24-Oct-2017
1575,Revenue,CAHD,South Glos Users in South Glos Homes,Permanent Nursing,Lodge House,620.20, 24-Oct-2017
1576,Revenue,CAHD,South Glos Users in South Glos Homes,Permanent Nursing,Lodge House,620.20, 24-Oct-2017
1577,Revenue,CAHD,Bed Purchasing - Southmead Hospital,Permanent Nursing,Lodge House,3428.00, 24-Oct-2017
1578,Revenue,CAHD,South Glos Users in South Glos Homes,Permanent Nursing,Lodge House,620.20, 24-Oct-2017
1579,Revenue,CAHD,South Glos Users in South Glos Homes,Permanent Nursing,Lodge House,620.20, 24-Oct-2017
1580,Revenue,CAHD,South Glos Users in South Glos Homes,Permanent Nursing,Lodge House,620.20, 24-Oct-2017
1581,Revenue,CAHD,South Glos Users in South Glos Homes,Permanent Nursing,Lodge House,620.20, 24-Oct-2017
1582,Revenue,CAHD,Bed Purchasing - South,Permanent Nursing,Lodge House,3410.76, 24-Oct-2017
1583,Revenue,CAHD,South Glos Users in South Glos Homes,Permanent Nursing,Lodge House,620.20, 24-Oct-2017
1584,Revenue,CAHD,Bed Purchasing - Southmead Hospital,Permanent Nursing,Lodge House,3584.29, 24-Oct-2017
1585,Revenue,CAHD,South Glos Users in South Glos Homes,Permanent Nursing,Lodge House,620.20, 24-Oct-2017
1586,Revenue,CAHD,South Glos Users in South Glos Homes,Permanent Nursing,Lodge House,620.20, 24-Oct-2017
1587,Revenue,CAHD,South Glos Users in South Glos Homes,Permanent Nursing,Lodge House,620.20, 24-Oct-2017
1588,Revenue,CAHD,Bed Purchasing - S28A - Over 65- North,Permanent Residential,Longrun House,8879.52, 24-Oct-2017
1589,Revenue,CAHD,Bed Purchasing - South,Permanent Residential,Longrun House,3123.72, 24-Oct-2017
1590,Revenue,CAHD,Jointly Funded H&SC Packages,Permanent Residential,Longrun House,2717.92, 24-Oct-2017
1591,Revenue,CAHD,Home Care - Elderly - North,Day Care / Social Activities,Lower Kilcott,1521.44, 24-Oct-2017
1592,Revenue,CAHD,Services,Services,Individual,2142.96, 02-Oct-2017
1593,Revenue,CAHD,Services,Services,Individual,535.74, 30-Oct-2017
1594,Revenue,CAHD,Social Lettings Agency,Fees - General,Individual,13.60, 05-Oct-2017
1595,Revenue,CAHD,Social Lettings Agency,Other Supplies & Services,Individual,768.40, 05-Oct-2017
1596,Revenue,CAHD,Home Care - Elderly - South,Day Care / Social Activities,Make it Mentoring CIC Limited,596.96, 10-Oct-2017
1597,Revenue,CAHD,Bed Purchasing - Southmead Hospital,Permanent Residential,Manor Cottage,2800.00, 24-Oct-2017
1598,Revenue,CAHD,Bed Purchasing - South,Permanent Residential,Manor Cottage,2431.20, 24-Oct-2017
1599,Revenue,CAHD,Bed Purchasing - South,Permanent Residential,Manor Cottage,3018.76, 24-Oct-2017
1600,Revenue,CAHD,Bed Purchasing - Southmead Hospital,Permanent Residential,Manor Cottage,1886.24, 24-Oct-2017
1601,Revenue,CAHD,Bed Purchasing - South,Permanent Residential,Manor Cottage,2075.72, 24-Oct-2017
1602,Revenue,CAHD,Home Care - Elderly - South,Supported Living,Maples Community Care Limited,656.64, 05-Oct-2017
1603,Revenue,CAHD,Home Care - Elderly - South,Supported Living,Maples Community Care Limited,3437.10, 05-Oct-2017
1604,Revenue,CAHD,Younger MH non-res purchasing,Other Small Contracts,Maples Community Care Limited,772.92, 20-Oct-2017
1605,Revenue,CAHD,Younger MH non-res purchasing,Supported Living,Maples Community Care Limited,861.84, 20-Oct-2017
1606,Revenue,CAHD,Younger MH non-res purchasing,Supported Living,Maples Community Care Limited,1220.94, 20-Oct-2017
1607,Revenue,CAHD,Home Care - Elderly - South,Supported Living,Maples Community Care Limited,3447.36, 20-Oct-2017
1608,Revenue,CAHD,Younger MH non-res purchasing,Supported Living,Maples Community Care Limited,1436.40, 20-Oct-2017
1609,Revenue,CAHD,Younger MH non-res purchasing,Supported Living,Maples Community Care Limited,820.80, 20-Oct-2017
1610,Revenue,CAHD,Younger MH non-res purchasing,Supported Living,Maples Community Care Limited,1195.29, 20-Oct-2017
1611,Revenue,CAHD,Younger MH non-res purchasing,Other Small Contracts,Maples Community Care Limited,554.04, 20-Oct-2017
1612,Revenue,CAHD,Younger MH non-res purchasing,Other Small Contracts,Maples Community Care Limited,1456.92, 20-Oct-2017
1613,Revenue,CAHD,Younger MH non-res purchasing,Supported Living,Maples Community Care Limited,1437.48, 24-Oct-2017
1614,Revenue,CAHD,Home Care - Elderly - South,Supported Living,Maples Community Care Limited,1437.48, 24-Oct-2017
1615,Revenue,CAHD,Younger MH non-res purchasing,Supported Living,Maples Community Care Limited,1437.48, 24-Oct-2017
1616,Revenue,CAHD,Younger MH non-res purchasing,Supported Living,Maples Community Care Limited,1437.48, 24-Oct-2017
1617,Revenue,CAHD,Home Care - Elderly - South,Supported Living,Maples Community Care Limited,1418.20, 24-Oct-2017
1618,Revenue,CAHD,Services,Services,Individual,894.00, 09-Oct-2017
1619,Revenue,CAHD,Social Lettings Agency,Fees - General,Individual,12.22, 20-Oct-2017
1620,Revenue,CAHD,Social Lettings Agency,Other Supplies & Services,Individual,690.32, 20-Oct-2017
1621,Revenue,CAHD,CAH Assistant Directors,Consultants Fees,Mark Gurrey Consulting Ltd,5160.00, 04-Oct-2017
1622,Revenue,CAHD,Bed Purchasing - South,Permanent Residential,Marsden Healthcare Ltd,1697.32, 24-Oct-2017
1623,Revenue,CAHD,Bed Purchasing - South,Permanent Residential,Marsden Healthcare Ltd,2149.20, 24-Oct-2017
1624,Revenue,CAHD,Bed Purchasing - Southmead Hospital,Permanent Nursing,Meadow Care Home,4862.40, 24-Oct-2017
1625,Revenue,CAHD,Bed Purchasing - South,Permanent Nursing,Meadow Care Home,2516.48, 24-Oct-2017
1626,Revenue,CAHD,Bed Purchasing - Elderly S117- North,Permanent Nursing,Meadow Care Home,3901.76, 24-Oct-2017
1627,Revenue,CAHD,Bed Purchasing - South,Permanent Residential,Meadow Care Home,4200.00, 24-Oct-2017
1628,Revenue,CAHD,Bed Purchasing - Elderly S117- North,Permanent Nursing,Meadow Care Home,4229.28, 24-Oct-2017
1629,Revenue,CAHD,Bed Purchasing - North,Permanent Nursing,Meadow Care Home,4862.40, 24-Oct-2017
1630,Revenue,CAHD,Bed Purchasing - Elderly S117- North,Permanent Nursing,Meadow Care Home,5420.20, 24-Oct-2017
1631,Revenue,CAHD,Bed Purchasing - North,Permanent Nursing,Meadow Care Home,4862.40, 24-Oct-2017
1632,Revenue,CAHD,Bed Purchasing - South,Permanent Nursing,Meadow Care Home,4800.00, 24-Oct-2017
1633,Revenue,CAHD,Home Care - Elderly - South,Day Care / Social Activities,Mears Care,195.80, 04-Oct-2017
1634,Revenue,CAHD,Home Care - Elderly - South,Other Small Contracts,Mears Care,3692.76, 04-Oct-2017
1635,Revenue,CAHD,Home Care - Elderly - North,Other Small Contracts,Mears Care,3163.95, 04-Oct-2017
1636,Revenue,CAHD,Home Care - Elderly - South,Day Care / Social Activities,Mears Care,164.65, 04-Oct-2017
1637,Revenue,CAHD,Home Care - Elderly - South,Other Small Contracts,Mears Care,3750.61, 04-Oct-2017
1638,Revenue,CAHD,Home Care - Elderly - North,Other Small Contracts,Mears Care,3328.60, 04-Oct-2017
1639,Revenue,CAHD,Home Care - Elderly - South,Day Care / Social Activities,Mears Care,26.70, 20-Oct-2017
1640,Revenue,CAHD,Home Care - Elderly - South,Other Small Contracts,Mears Care,3537.52, 20-Oct-2017
1641,Revenue,CAHD,Home Care - Elderly - North,Other Small Contracts,Mears Care,3195.10, 20-Oct-2017
1642,Revenue,CAHD,Home Care - Elderly - South,Day Care / Social Activities,Mears Care,186.90, 20-Oct-2017
1643,Revenue,CAHD,Home Care - Elderly - South,Other Small Contracts,Mears Care,3769.43, 20-Oct-2017
1644,Revenue,CAHD,Home Care - Elderly - North,Other Small Contracts,Mears Care,3279.65, 20-Oct-2017
1645,Revenue,CAHD,Kingswood Centre - Maple Suite,Equipment Maintenance,Medaco,510.00, 04-Oct-2017
1646,Revenue,CAHD,ICES / NRS Contract,Daily Living Equipment,Medequip Assistive Technology Limited,166002.18, 30-Oct-2017
1647,Revenue,CAHD,ICES / NRS Contract,Daily Living Equipment,Medequip Assistive Technology Limited,1324.23, 30-Oct-2017
1648,Revenue,CAHD,Bed Purchasing - North,Permanent Residential,Memorial House,5940.24, 24-Oct-2017
1649,Revenue,CAHD,Intermediate Care Accommodation,Other Supplies & Services,Merlin Housing Society,662.86, 24-Oct-2017
1650,Revenue,CAHD,Intermediate Care Accommodation,Other Supplies & Services,Merlin Housing Society,530.29, 27-Oct-2017
1651,Revenue,CAHD,Home Care - Elderly - South,Supported Living,Milestones - Unit 10,4315.88, 24-Oct-2017
1652,Revenue,CAHD,18-25 Year Olds,Supported Living,Milestones - Unit 10,2131.52, 24-Oct-2017
1653,Revenue,CAHD,Home Care - Elderly - South,Supported Living,Milestones - Unit 10,1857.60, 24-Oct-2017
1654,Revenue,CAHD,18-25 Year Olds,Supported Living,Milestones - Unit 10,2131.52, 24-Oct-2017
1655,Revenue,CAHD,18-25 Year Olds,Supported Living,Milestones - Unit 10,2131.52, 24-Oct-2017
1656,Revenue,CAHD,Home Care - Elderly - South,Supported Living,Milestones - Unit 10,4315.88, 24-Oct-2017
1657,Revenue,CAHD,Home Care - Elderly - North,Supported Living,Milestones - Unit 10,4185.48, 24-Oct-2017
1658,Revenue,CAHD,Home Care - Elderly - South,Supported Living,Milestones - Unit 10,3741.16, 24-Oct-2017
1659,Revenue,CAHD,Home Care - Elderly - South,Supported Living,Milestones - Unit 10,2379.72, 24-Oct-2017
1660,Revenue,CAHD,Home Care - Elderly - South,Supported Living,Milestones - Unit 10,3414.32, 24-Oct-2017
1661,Revenue,CAHD,Home Care - Elderly - South,Supported Living,Milestones - Unit 10,2159.68, 24-Oct-2017
1662,Revenue,CAHD,Home Care - Elderly - North,Supported Living,Milestones - Unit 10,4185.48, 24-Oct-2017
1663,Revenue,CAHD,Home Care - Elderly - South,Supported Living,Milestones - Unit 10,3985.28, 24-Oct-2017
1664,Revenue,CAHD,Home Care - Elderly - North,Supported Living,Milestones - Unit 10,3699.56, 24-Oct-2017
1665,Revenue,CAHD,Supported Living (S28a) North,Supported Living,Milestones - Unit 10,3699.52, 24-Oct-2017
1666,Revenue,CAHD,Supported Living (S28a) South,Supported Living,Milestones - Unit 10,5653.24, 24-Oct-2017
1667,Revenue,CAHD,Home Care - Elderly - South,Supported Living,Milestones - Unit 10,2292.20, 24-Oct-2017
1668,Revenue,CAHD,Supported Living (S28a) South,Supported Living,Milestones - Unit 10,2292.28, 24-Oct-2017
1669,Revenue,CAHD,Home Care - Elderly - South,Supported Living,Milestones - Unit 10,2159.68, 24-Oct-2017
1670,Revenue,CAHD,Supported Living (S28a) North,Supported Living,Milestones - Unit 10,3712.00, 24-Oct-2017
1671,Revenue,CAHD,Supported Living (S28a) South,Supported Living,Milestones - Unit 10,2292.28, 24-Oct-2017
1672,Revenue,CAHD,Supported Living (S28a) South,Supported Living,Milestones - Unit 10,2292.28, 24-Oct-2017
1673,Revenue,CAHD,Section 117 Placements MH Younger,Permanent Nursing,Milestones - Unit 10,3593.72, 24-Oct-2017
1674,Revenue,CAHD,South Glos Users in South Glos Homes,Permanent Nursing,Milestones - Unit 10,620.20, 24-Oct-2017
1675,Revenue,CAHD,South Glos Users in South Glos Homes,Permanent Nursing,Milestones - Unit 10,620.20, 24-Oct-2017
1676,Revenue,CAHD,MH Purchasing - Younger,Permanent Residential,Milestones - Unit 10,1458.72, 24-Oct-2017
1677,Revenue,CAHD,Bed Purchasing - Southmead Hospital,Permanent Nursing,Milestones - Unit 10,3734.92, 24-Oct-2017
1678,Revenue,CAHD,Bed Purchasing - South,Permanent Residential,Milestones - Unit 10,5436.00, 24-Oct-2017
1679,Revenue,CAHD,Bed Purchasing - South,Permanent Residential,Milestones - Unit 10,5243.60, 24-Oct-2017
1680,Revenue,CAHD,Jointly Funded H&SC Packages,Permanent Residential,Milestones - Unit 10,1703.28, 24-Oct-2017
1681,Revenue,CAHD,Bed Purchasing - South,Permanent Nursing,Milestones - Unit 10,2082.04, 24-Oct-2017
1682,Revenue,CAHD,Bed Purchasing - South,Permanent Residential,Milestones - Unit 10,4257.08, 24-Oct-2017
1683,Revenue,CAHD,Bed purchasing - Elderly S117 - South,Permanent Nursing,Milestones - Unit 10,4993.60, 24-Oct-2017
1684,Revenue,CAHD,Jointly Funded H&SC Packages,Permanent Nursing,Milestones - Unit 10,2924.24, 24-Oct-2017
1685,Revenue,CAHD,South Glos Users in South Glos Homes,Permanent Nursing,Milestones - Unit 10,620.20, 24-Oct-2017
1686,Revenue,CAHD,Bed Purchasing - North,Permanent Residential,Milestones - Unit 10,7353.56, 24-Oct-2017
1687,Revenue,CAHD,South Glos Users in South Glos Homes,Permanent Nursing,Milestones - Unit 10,620.20, 24-Oct-2017
1688,Revenue,CAHD,Bed Purchasing - Elderly S117- North,Permanent Nursing,Milestones - Unit 10,3556.68, 24-Oct-2017
1689,Revenue,CAHD,Jointly Funded H&SC Packages,Permanent Nursing,Milestones - Unit 10,5773.44, 24-Oct-2017
1690,Revenue,CAHD,South Glos Users in South Glos Homes,Permanent Nursing,Milestones - Unit 10,620.20, 24-Oct-2017
1691,Revenue,CAHD,South Glos Users in South Glos Homes,Permanent Nursing,Milestones - Unit 10,620.20, 24-Oct-2017
1692,Revenue,CAHD,Bed Purchasing - South,Permanent Residential,Milestones - Unit 10,2731.04, 24-Oct-2017
1693,Revenue,CAHD,18-25 Year Olds,Permanent Residential,Milestones - Unit 10,4858.88, 24-Oct-2017
1694,Revenue,CAHD,South Glos Users in South Glos Homes,Permanent Nursing,Milestones - Unit 10,620.20, 24-Oct-2017
1695,Revenue,CAHD,Bed Purchasing - South,Permanent Residential,Milestones - Unit 10,4987.12, 24-Oct-2017
1696,Revenue,CAHD,Bed Purchasing - South,Permanent Residential,Milestones - Unit 10,4912.96, 24-Oct-2017
1697,Revenue,CAHD,Bed purchasing -S28A  Under 65 - North,Permanent Residential,Milestones - Unit 10,4104.76, 24-Oct-2017
1698,Revenue,CAHD,Bed purchasing -S28A  Under 65 - North,Permanent Residential,Milestones - Unit 10,6050.68, 24-Oct-2017
1699,Revenue,CAHD,Bed purchasing - S28A Under 65 - South,Permanent Residential,Milestones - Unit 10,6068.72, 24-Oct-2017
1700,Revenue,CAHD,Bed Purchasing - South,Permanent Residential,Milestones - Unit 10,5507.76, 24-Oct-2017
1701,Revenue,CAHD,Bed Purchasing - South,Permanent Residential,Milestones - Unit 10,6092.24, 24-Oct-2017
1702,Revenue,CAHD,Bed purchasing - S28A Under 65 - South,Permanent Nursing,Milestones - Unit 10,8085.08, 24-Oct-2017
1703,Revenue,CAHD,MH Purchasing - Younger,Permanent Residential,Milestones - Unit 10,1420.68, 24-Oct-2017
1704,Revenue,CAHD,Bed Purchasing - South,Permanent Residential,Milestones - Unit 10,5782.20, 24-Oct-2017
1705,Revenue,CAHD,Bed Purchasing - South,Permanent Residential,Milestones - Unit 10,5824.92, 24-Oct-2017
1706,Revenue,CAHD,Bed Purchasing - South,Permanent Residential,Milestones - Unit 10,4155.68, 24-Oct-2017
1707,Revenue,CAHD,Bed Purchasing - North,Permanent Residential,Milestones - Unit 10,3983.88, 24-Oct-2017
1708,Revenue,CAHD,Bed Purchasing - South,Permanent Nursing,Milestones - Unit 10,6604.76, 24-Oct-2017
1709,Revenue,CAHD,Bed Purchasing - Southmead Hospital,Permanent Residential,Milestones - Unit 10,4309.08, 24-Oct-2017
1710,Revenue,CAHD,Bed Purchasing - North,Permanent Residential,Milestones - Unit 10,4415.80, 24-Oct-2017
1711,Revenue,CAHD,Bed purchasing -S28A  Under 65 - North,Permanent Nursing,Milestones - Unit 10,5857.12, 24-Oct-2017
1712,Revenue,CAHD,South Glos Users in South Glos Homes,Permanent Nursing,Milestones - Unit 10,620.20, 24-Oct-2017
1713,Revenue,CAHD,Bed Purchasing - North,Permanent Residential,Milestones - Unit 10,5267.36, 24-Oct-2017
1714,Revenue,CAHD,Bed purchasing -S28A  Under 65 - North,Permanent Residential,Milestones - Unit 10,7657.52, 24-Oct-2017
1715,Revenue,CAHD,Bed purchasing -S28A  Under 65 - North,Permanent Nursing,Milestones - Unit 10,6352.52, 24-Oct-2017
1716,Revenue,CAHD,South Glos Users in South Glos Homes,Permanent Nursing,Milestones - Unit 10,620.20, 24-Oct-2017
1717,Revenue,CAHD,Bed purchasing -S28A  Under 65 - North,Permanent Residential,Milestones - Unit 10,7353.56, 24-Oct-2017
1718,Revenue,CAHD,Bed Purchasing - South,Permanent Nursing,Milestones - Unit 10,6668.72, 24-Oct-2017
1719,Revenue,CAHD,Bed purchasing - S28A Under 65 - South,Permanent Residential,Milestones - Unit 10,5151.48, 24-Oct-2017
1720,Revenue,CAHD,Bed Purchasing - S28A - Over 65- North,Permanent Residential,Milestones - Unit 10,7369.16, 24-Oct-2017
1721,Revenue,CAHD,Bed purchasing -S28A  Under 65 - North,Permanent Residential,Milestones - Unit 10,7657.52, 24-Oct-2017
1722,Revenue,CAHD,Bed purchasing -S28A  Under 65 - North,Permanent Residential,Milestones - Unit 10,7657.52, 24-Oct-2017
1723,Revenue,CAHD,Bed Purchasing - LD S28A- Over 65- South,Permanent Residential,Milestones - Unit 10,4880.20, 24-Oct-2017
1724,Revenue,CAHD,Bed purchasing - S28A Under 65 - South,Permanent Residential,Milestones - Unit 10,5100.92, 24-Oct-2017
1725,Revenue,CAHD,Bed Purchasing - South,Permanent Residential,Milestones - Unit 10,9969.80, 24-Oct-2017
1726,Revenue,CAHD,Bed purchasing - S28A Under 65 - South,Permanent Residential,Milestones - Unit 10,4235.12, 24-Oct-2017
1727,Revenue,CAHD,Bed Purchasing - LD S28A- Over 65- South,Permanent Residential,Milestones - Unit 10,5446.00, 24-Oct-2017
1728,Revenue,CAHD,Bed Purchasing - LD S28A- Over 65- South,Permanent Residential,Milestones - Unit 10,5880.56, 24-Oct-2017
1729,Revenue,CAHD,Bed Purchasing - LD S28A- Over 65- South,Permanent Nursing,Milestones - Unit 10,7929.76, 24-Oct-2017
1730,Revenue,CAHD,Bed Purchasing - S28A - Over 65- North,Permanent Residential,Milestones - Unit 10,3524.76, 24-Oct-2017
1731,Revenue,CAHD,Bed Purchasing - South,Permanent Residential,Milestones - Unit 10,5197.72, 24-Oct-2017
1732,Revenue,CAHD,Section 117 Placements MH Younger,Permanent Residential,Milestones - Unit 10,1444.52, 24-Oct-2017
1733,Revenue,CAHD,Bed Purchasing - South,Permanent Residential,Milestones - Unit 10,1458.72, 24-Oct-2017
1734,Revenue,CAHD,Bed Purchasing - Southmead Hospital,Permanent Nursing,Milestones - Unit 10,6501.08, 24-Oct-2017
1735,Revenue,CAHD,Bed Purchasing - North,Permanent Residential,Milestones - Unit 10,5106.84, 24-Oct-2017
1736,Revenue,CAHD,Bed Purchasing - South,Permanent Nursing,Milestones - Unit 10,7227.04, 24-Oct-2017
1737,Revenue,CAHD,South Glos Users in South Glos Homes,Permanent Nursing,Milestones - Unit 10,620.20, 24-Oct-2017
1738,Revenue,CAHD,Bed Purchasing - South,Permanent Residential,Milestones - Unit 10,4800.52, 24-Oct-2017
1739,Revenue,CAHD,Bed purchasing -S28A  Under 65 - North,Permanent Residential,Milestones - Unit 10,6221.96, 24-Oct-2017
1740,Revenue,CAHD,Bed Purchasing - S28A - Over 65- North,Permanent Residential,Milestones - Unit 10,4353.68, 24-Oct-2017
1741,Revenue,CAHD,MH Purchasing - Younger,Permanent Residential,Milestones - Unit 10,1420.68, 24-Oct-2017
1742,Revenue,CAHD,Bed Purchasing - S28A - Over 65- North,Permanent Residential,Milestones - Unit 10,3944.84, 24-Oct-2017
1743,Revenue,CAHD,Bed Purchasing - LD S28A- Over 65- South,Permanent Residential,Milestones - Unit 10,4838.52, 24-Oct-2017
1744,Revenue,CAHD,Bed purchasing - S28A Under 65 - South,Permanent Residential,Milestones - Unit 10,5698.88, 24-Oct-2017
1745,Revenue,CAHD,Bed purchasing - S28A Under 65 - South,Permanent Nursing,Milestones - Unit 10,5898.88, 24-Oct-2017
1746,Revenue,CAHD,South Glos Users in South Glos Homes,Permanent Nursing,Milestones - Unit 10,620.20, 24-Oct-2017
1747,Revenue,CAHD,Bed Purchasing - LD S28A- Over 65- South,Permanent Nursing,Milestones - Unit 10,5937.96, 24-Oct-2017
1748,Revenue,CAHD,South Glos Users in South Glos Homes,Permanent Nursing,Milestones - Unit 10,620.20, 24-Oct-2017
1749,Revenue,CAHD,Bed Purchasing - LD S28A- Over 65- South,Permanent Residential,Milestones - Unit 10,5448.00, 24-Oct-2017
1750,Revenue,CAHD,Bed Purchasing - LD S28A- Over 65- South,Permanent Residential,Milestones - Unit 10,5328.24, 24-Oct-2017
1751,Revenue,CAHD,Bed purchasing - S28A Under 65 - South,Permanent Residential,Milestones - Unit 10,8532.00, 24-Oct-2017
1752,Revenue,CAHD,Bed Purchasing - LD S28A- Over 65- South,Permanent Residential,Milestones - Unit 10,5436.00, 24-Oct-2017
1753,Revenue,CAHD,Bed Purchasing - S28A - Over 65- North,Permanent Nursing,Milestones - Unit 10,5440.76, 24-Oct-2017
1754,Revenue,CAHD,South Glos Users in South Glos Homes,Permanent Nursing,Milestones - Unit 10,620.20, 24-Oct-2017
1755,Revenue,CAHD,Bed Purchasing - S28A - Over 65- North,Permanent Residential,Milestones - Unit 10,5405.64, 24-Oct-2017
1756,Revenue,CAHD,Bed purchasing - S28A Under 65 - South,Permanent Residential,Milestones - Unit 10,5396.40, 24-Oct-2017
1757,Revenue,CAHD,Bed Purchasing - S28A - Over 65- North,Permanent Residential,Milestones - Unit 10,5314.88, 24-Oct-2017
1758,Revenue,CAHD,Bed purchasing -S28A  Under 65 - North,Permanent Residential,Milestones - Unit 10,7657.52, 24-Oct-2017
1759,Revenue,CAHD,Bed purchasing -S28A  Under 65 - North,Permanent Residential,Milestones - Unit 10,4233.28, 24-Oct-2017
1760,Revenue,CAHD,Bed Purchasing - S28A - Over 65- North,Permanent Residential,Milestones - Unit 10,4106.28, 24-Oct-2017
1761,Revenue,CAHD,South Glos Users in South Glos Homes,Permanent Nursing,Milestones - Unit 10,620.20, 24-Oct-2017
1762,Revenue,CAHD,Bed Purchasing - North,Permanent Nursing,Milestones - Unit 10,1947.24, 24-Oct-2017
1763,Revenue,CAHD,South Glos Users in South Glos Homes,Permanent Nursing,Milestones - Unit 10,620.20, 24-Oct-2017
1764,Revenue,CAHD,MH Purchasing - Younger,Permanent Nursing,Milestones - Unit 10,1553.56, 24-Oct-2017
1765,Revenue,CAHD,South Glos Users in South Glos Homes,Permanent Nursing,Milestones - Unit 10,620.20, 24-Oct-2017
1766,Revenue,CAHD,Bed Purchasing - South,Permanent Nursing,Milestones - Unit 10,6605.64, 24-Oct-2017
1767,Revenue,CAHD,South Glos Users in South Glos Homes,Permanent Nursing,Milestones - Unit 10,620.20, 24-Oct-2017
1768,Revenue,CAHD,South Glos Users in South Glos Homes,Permanent Nursing,Milestones - Unit 10,620.20, 24-Oct-2017
1769,Revenue,CAHD,Bed Purchasing - South,Permanent Residential,Milestones - Unit 10,3987.04, 24-Oct-2017
1770,Revenue,CAHD,Bed Purchasing - North,Permanent Residential,Milestones - Unit 10,6678.04, 24-Oct-2017
1771,Revenue,CAHD,Bed purchasing - S28A Under 65 - South,Permanent Residential,Milestones - Unit 10,6474.72, 24-Oct-2017
1772,Revenue,CAHD,Bed purchasing - S28A Under 65 - South,Permanent Residential,Milestones - Unit 10,6752.32, 24-Oct-2017
1773,Revenue,CAHD,South Glos Users in South Glos Homes,Permanent Nursing,Milestones - Unit 10,620.20, 24-Oct-2017
1774,Revenue,CAHD,Bed Purchasing - LD S28A- Over 65- South,Permanent Residential,Milestones - Unit 10,5155.52, 24-Oct-2017
1775,Revenue,CAHD,Bed Purchasing - South,Permanent Residential,Milestones - Unit 10,6475.16, 24-Oct-2017
1776,Revenue,CAHD,Bed Purchasing - LD S28A- Over 65- South,Permanent Residential,Milestones - Unit 10,4221.00, 24-Oct-2017
1777,Revenue,CAHD,Bed Purchasing - South,Permanent Residential,Milestones - Unit 10,1886.24, 24-Oct-2017
1778,Revenue,CAHD,Bed Purchasing - Elderly S117- North,Permanent Nursing,Milestones - Unit 10,3692.80, 24-Oct-2017
1779,Revenue,CAHD,Bed Purchasing - Elderly S117- North,Permanent Nursing,Milestones - Unit 10,2798.40, 24-Oct-2017
1780,Revenue,CAHD,Bed Purchasing - Elderly S117- North,Permanent Nursing,Milestones - Unit 10,763.20, 24-Oct-2017
1781,Revenue,CAHD,South Glos Users in South Glos Homes,Permanent Nursing,Milestones - Unit 10,620.20, 24-Oct-2017
1782,Revenue,CAHD,Section 117 Placements MH Younger,Permanent Residential,Milestones - Unit 10,1444.52, 24-Oct-2017
1783,Revenue,CAHD,Bed Purchasing - North,Permanent Nursing,Milestones - Unit 10,4511.88, 24-Oct-2017
1784,Revenue,CAHD,Bed Purchasing - North,Permanent Nursing,Milestones - Unit 10,4796.84, 24-Oct-2017
1785,Revenue,CAHD,Bed Purchasing - South,Permanent Nursing,Milestones - Unit 10,4029.08, 24-Oct-2017
1786,Revenue,CAHD,Bed Purchasing - South,Permanent Nursing,Milestones - Unit 10,3370.00, 24-Oct-2017
1787,Revenue,CAHD,Bed Purchasing - South,Permanent Nursing,Milestones - Unit 10,4826.08, 24-Oct-2017
1788,Revenue,CAHD,Bed Purchasing - South,Permanent Nursing,Milestones - Unit 10,4512.64, 24-Oct-2017
1789,Revenue,CAHD,Bed Purchasing - South,Permanent Nursing,Milestones - Unit 10,7393.84, 24-Oct-2017
1790,Revenue,CAHD,Section 117 Placements MH Younger,Permanent Residential,Milestones - Unit 10,6291.80, 24-Oct-2017
1791,Revenue,CAHD,Section 117 Placements MH Younger,Permanent Residential,Milestones - Unit 10,4088.48, 24-Oct-2017
1792,Revenue,CAHD,Jointly Funded H&SC Packages,Permanent Residential,Milestones - Unit 10,1085.08, 24-Oct-2017
1793,Revenue,CAHD,Bed purchasing - Elderly S117 - South,Permanent Residential,Milestones - Unit 10,3255.20, 24-Oct-2017
1794,Revenue,CAHD,Home Care - Elderly - South,Day Care / Social Activities,Milestones Supported Living Services,6769.45, 19-Oct-2017
1795,Revenue,CAHD,Home Care - Elderly - South,Other Small Contracts,Milestones Supported Living Services,10624.11, 19-Oct-2017
1796,Revenue,CAHD,Home Care - Elderly - North,Day Care / Social Activities,Milestones Supported Living Services,628.83, 19-Oct-2017
1797,Revenue,CAHD,Home Care - Elderly - North,Other Small Contracts,Milestones Supported Living Services,5610.48, 19-Oct-2017
1798,Revenue,CAHD,Home Care - Elderly - North,Supported Living,Milestones Supported Living Services,179.01, 19-Oct-2017
1799,Revenue,CAHD,Day Care - North,Day Care / Social Activities,Milestones Supported Living Services,146.88, 19-Oct-2017
1800,Revenue,CAHD,Younger MH non-res purchasing,Day Care / Social Activities,Milestones Supported Living Services,32.13, 19-Oct-2017
1801,Revenue,CAHD,Younger MH non-res purchasing,Other Small Contracts,Milestones Supported Living Services,123.92, 19-Oct-2017
1802,Revenue,CAHD,18-25 Year Olds,Other Small Contracts,Milestones Supported Living Services,550.80, 19-Oct-2017
1803,Revenue,CAHD,Home Care - Elderly - South,Day Care / Social Activities,Milestones Supported Living Services,6299.02, 19-Oct-2017
1804,Revenue,CAHD,Home Care - Elderly - South,Other Small Contracts,Milestones Supported Living Services,12341.56, 19-Oct-2017
1805,Revenue,CAHD,Home Care - Elderly - South,Supported Living,Milestones Supported Living Services,1707.16, 19-Oct-2017
1806,Revenue,CAHD,Home Care - Elderly - North,Day Care / Social Activities,Milestones Supported Living Services,550.80, 19-Oct-2017
1807,Revenue,CAHD,Home Care - Elderly - North,Other Small Contracts,Milestones Supported Living Services,5260.24, 19-Oct-2017
1808,Revenue,CAHD,Home Care - Elderly - North,Supported Living,Milestones Supported Living Services,191.30, 19-Oct-2017
1809,Revenue,CAHD,Day Care - North,Day Care / Social Activities,Milestones Supported Living Services,151.47, 19-Oct-2017
1810,Revenue,CAHD,Younger MH non-res purchasing,Other Small Contracts,Milestones Supported Living Services,123.92, 19-Oct-2017
1811,Revenue,CAHD,18-25 Year Olds,Other Small Contracts,Milestones Supported Living Services,1363.23, 27-Oct-2017
1812,Revenue,CAHD,Home Care - Elderly - South,Day Care / Social Activities,Milestones Supported Living Services,5795.54, 27-Oct-2017
1813,Revenue,CAHD,Home Care - Elderly - South,Other Small Contracts,Milestones Supported Living Services,11857.10, 27-Oct-2017
1814,Revenue,CAHD,Home Care - Elderly - South,Supported Living,Milestones Supported Living Services,1702.57, 27-Oct-2017
1815,Revenue,CAHD,Home Care - Elderly - North,Day Care / Social Activities,Milestones Supported Living Services,642.60, 27-Oct-2017
1816,Revenue,CAHD,Home Care - Elderly - North,Other Small Contracts,Milestones Supported Living Services,6942.87, 27-Oct-2017
1817,Revenue,CAHD,Home Care - Elderly - North,Supported Living,Milestones Supported Living Services,186.63, 27-Oct-2017
1818,Revenue,CAHD,Day Care - North,Day Care / Social Activities,Milestones Supported Living Services,146.88, 27-Oct-2017
1819,Revenue,CAHD,Younger MH non-res purchasing,Day Care / Social Activities,Milestones Supported Living Services,27.54, 27-Oct-2017
1820,Revenue,CAHD,Younger MH non-res purchasing,Other Small Contracts,Milestones Supported Living Services,146.87, 27-Oct-2017
1821,Revenue,CAHD,18-25 Year Olds,Other Small Contracts,Milestones Supported Living Services,1156.68, 26-Oct-2017
1822,Revenue,CAHD,Home Care - Elderly - South,Day Care / Social Activities,Milestones Supported Living Services,5276.61, 26-Oct-2017
1823,Revenue,CAHD,Home Care - Elderly - South,Other Small Contracts,Milestones Supported Living Services,12215.87, 26-Oct-2017
1824,Revenue,CAHD,Home Care - Elderly - South,Supported Living,Milestones Supported Living Services,708.69, 26-Oct-2017
1825,Revenue,CAHD,Home Care - Elderly - North,Day Care / Social Activities,Milestones Supported Living Services,702.27, 26-Oct-2017
1826,Revenue,CAHD,Home Care - Elderly - North,Other Small Contracts,Milestones Supported Living Services,7061.54, 26-Oct-2017
1827,Revenue,CAHD,Home Care - Elderly - North,Supported Living,Milestones Supported Living Services,186.63, 26-Oct-2017
1828,Revenue,CAHD,Day Care - North,Day Care / Social Activities,Milestones Supported Living Services,146.88, 26-Oct-2017
1829,Revenue,CAHD,Younger MH non-res purchasing,Day Care / Social Activities,Milestones Supported Living Services,32.13, 26-Oct-2017
1830,Revenue,CAHD,Younger MH non-res purchasing,Other Small Contracts,Milestones Supported Living Services,146.88, 26-Oct-2017
1831,Revenue,CAHD,18-25 Year Olds,Other Small Contracts,Milestones Supported Living Services,1087.83, 26-Oct-2017
1832,Revenue,CAHD,Home Care - Elderly - South,Day Care / Social Activities,Milestones Supported Living Services,4710.84, 26-Oct-2017
1833,Revenue,CAHD,Home Care - Elderly - South,Other Small Contracts,Milestones Supported Living Services,11812.44, 26-Oct-2017
1834,Revenue,CAHD,Home Care - Elderly - South,Supported Living,Milestones Supported Living Services,105.57, 26-Oct-2017
1835,Revenue,CAHD,Home Care - Elderly - North,Day Care / Social Activities,Milestones Supported Living Services,633.42, 26-Oct-2017
1836,Revenue,CAHD,Home Care - Elderly - North,Other Small Contracts,Milestones Supported Living Services,7615.68, 26-Oct-2017
1837,Revenue,CAHD,Home Care - Elderly - North,Supported Living,Milestones Supported Living Services,205.29, 26-Oct-2017
1838,Revenue,CAHD,Day Care - North,Day Care / Social Activities,Milestones Supported Living Services,146.88, 26-Oct-2017
1839,Revenue,CAHD,Younger MH non-res purchasing,Day Care / Social Activities,Milestones Supported Living Services,32.13, 26-Oct-2017
1840,Revenue,CAHD,Younger MH non-res purchasing,Other Small Contracts,Milestones Supported Living Services,146.87, 26-Oct-2017
1841,Revenue,CAHD,18-25 Year Olds,Other Small Contracts,Milestones Supported Living Services,1069.47, 26-Oct-2017
